Service Area,Service Division,Expense Type,Expense Code,Detailed Expense Type,Payment Date,Transaction Number,Amount Exc Vat,Supplier Name
Assistant Chief Executive,Partnerships & Community Engagement Div.,Cap Exp on Grants & Other Financial Assistance (REFCUS),918004,Contributions to other bodies,01-Sep-2015,3016124-15AB-MDUR002,"15,000.00",CORNSAY PARISH COUNCIL.
Assistant Chief Executive,Partnerships & Community Engagement Div.,Cap Exp on Grants & Other Financial Assistance (REFCUS),918004,Contributions to other bodies,01-Sep-2015,3016149-15NB-DVLY006,"2,304.00",DIPTON PARK BOWLING CLUB.
Assistant Chief Executive,Partnerships & Community Engagement Div.,Cap Exp on Grants & Other Financial Assistance (REFCUS),918004,Contributions to other bodies,01-Sep-2015,3016239-15NB-EDUR017,"2,471.00",MONK HESLEDEN PARISH COUNCIL.
Assistant Chief Executive,Partnerships & Community Engagement Div.,Transfer Payments,525030,Other,01-Sep-2015,3016315-15AB-GAMP001,"14,358.00",SUCCESS NORTH EAST COMMUNITY INTEREST COMPANY (CIC).
Children and Adult Services,Childrens Services,Supplies and Services,308011,Furniture,01-Sep-2015,3016077-152877,519.00,ALBANY CONTRACT FURNITURE.
Children and Adult Services,Commissioning inc Supporting People,Debtors,930138,Debtor IC+ Residential Care Voids - CCG,01-Sep-2015,3016080-CAS-08-2015-064,552.08,ALLIANCE CARE.
Children and Adult Services,Education,Construction Work,908105,Construction work,01-Sep-2015,3016088-420282,"8,600.94",ARQIVA LTD.
Children and Adult Services,Education,Construction Work,908105,Construction work,01-Sep-2015,3016090-I1512354,720.00,ASKAMS COMPLIANCE SERVICES LTD.
Children and Adult Services,Commissioning inc Supporting People,Third Party Payments,478101,Purchase of Care,01-Sep-2015,3016091-AHS00842,"10,096.32",AUCKLAND HOME SOLUTIONS CIC.
Children and Adult Services,Commissioning inc Supporting People,Third Party Payments,478101,Purchase of Care,01-Sep-2015,3016091-AHS00844,"1,100.00",AUCKLAND HOME SOLUTIONS CIC.
Children and Adult Services,Education,Construction Work,908105,Construction work,01-Sep-2015,3016093-28637,"4,929.50",BARR & WRAY LTD.
Children and Adult Services,Education,Construction Work,908105,Construction work,01-Sep-2015,3016093-28638,"2,899.62",BARR & WRAY LTD.
Children and Adult Services,Head of Adults,Supplies and Services,338366,Services,01-Sep-2015,3016109-26265,"4,773.70",CARE ABILITY.
Children and Adult Services,Head of Adults,Supplies and Services,338366,Services,01-Sep-2015,3016109-26266,"3,723.20",CARE ABILITY.
Children and Adult Services,Head of Adults,Supplies and Services,338366,Services,01-Sep-2015,3016109-26267,787.35,CARE ABILITY.
Children and Adult Services,Head of Adults,Supplies and Services,338366,Services,01-Sep-2015,3016109-26268,"1,574.70",CARE ABILITY.
Children and Adult Services,Head of Adults,Third Party Payments,470101,Purchase of Care,01-Sep-2015,3016110-2191575A,"2,325.71",CARE UK..
Children and Adult Services,Head of Adults,Third Party Payments,470101,Purchase of Care,01-Sep-2015,3016110-2198449A,"2,189.69",CARE UK..
Children and Adult Services,Childrens Services,Employees,080025,Agency Staff,01-Sep-2015,3016138-326791,"161,056.52",DE POEL MANAGED SERVICES LTD.
Children and Adult Services,Childrens Services,Supplies and Services,338044,Services,01-Sep-2015,3016152-15/16-039,"1,215.95",DR STEPHANIE HILL.
Children and Adult Services,Commissioning inc Supporting People,Debtors,930138,Debtor IC+ Residential Care Voids - CCG,01-Sep-2015,3016161-CAS-08-2015-058,"4,347.63",EMBRACE ALL LTD.
Children and Adult Services,Commissioning inc Supporting People,Debtors,930138,Debtor IC+ Residential Care Voids - CCG,01-Sep-2015,3016162-CAS-08-2015-057,"2,070.30",EMBRACE ALL LTD.
Children and Adult Services,Childrens Services,Supplies and Services,384302,Miscellaneous Expenses,01-Sep-2015,3016172-JULY6-07/08/2015,500.00,FUTURE LEISURE IN COXHOE (FLIC).
Children and Adult Services,Education,Construction Work,908105,Construction work,01-Sep-2015,3016224-23737,500.00,LUCION ENVIRONMENTAL LLP LTD.
Children and Adult Services,Commissioning inc Supporting People,Debtors,930138,Debtor IC+ Residential Care Voids - CCG,01-Sep-2015,3016267-CAS-08-2015-059,"1,794.26",PELTON GRANGE CARE HOME.
Children and Adult Services,Commissioning inc Supporting People,Debtors,930138,Debtor IC+ Residential Care Voids - CCG,01-Sep-2015,3016268-CAS-08-2015-061,"6,279.91",PERFECT CARE LTD T/A BELMONT GRANGE CARE HOME.
Children and Adult Services,Commissioning inc Supporting People,Debtors,930138,Debtor IC+ Residential Care Voids - CCG,01-Sep-2015,3016310-CAS-08-2015-063,690.10,ST MARYS NURSING HOME.
Children and Adult Services,Education,Supplies and Services,338027,Services,01-Sep-2015,3016316-30,847.60,SUE SMITH..
Children and Adult Services,Education,Employees,040001,Recruitment Instruction and Training,01-Sep-2015,3016331-TARINV/15386161,710.10,TES GLOBAL LTD.
Children and Adult Services,Childrens Services,Third Party Payments,430100,Rendered by Private Contractors,01-Sep-2015,3016350-726162,978.00,WICKSTEED LEISURE LTD.
Dedicated Schools Grant,Dedicated Schools Grant,Construction Work,908105,Construction work,01-Sep-2015,3016116-17198,"2,276.54",CATHEDRAL LOCK & SAFE SERVICES LTD.
Neighbourhood Services,Technical Services,Supplies and Services,304221,Equipment and Materials,01-Sep-2015,3016071-FUL0040733,"20,572.99",ACO TECHNOLOGIES PLC.
Neighbourhood Services,Technical Services,Supplies and Services,304221,Equipment and Materials,01-Sep-2015,3016076-21863092,"1,602.88",AGGREGATE INDUSTRIES UK LTD.
Neighbourhood Services,Technical Services,Supplies and Services,304221,Equipment and Materials,01-Sep-2015,3016076-21863093,"3,650.39",AGGREGATE INDUSTRIES UK LTD.
Neighbourhood Services,Technical Services,Supplies and Services,304221,Equipment and Materials,01-Sep-2015,3016076-21863094,688.85,AGGREGATE INDUSTRIES UK LTD.
Neighbourhood Services,Technical Services,Supplies and Services,304221,Equipment and Materials,01-Sep-2015,3016076-21869592,"1,208.86",AGGREGATE INDUSTRIES UK LTD.
Neighbourhood Services,Technical Services,Supplies and Services,304221,Equipment and Materials,01-Sep-2015,3016076-21869593,"1,379.75",AGGREGATE INDUSTRIES UK LTD.
Neighbourhood Services,Technical Services,Supplies and Services,304221,Equipment and Materials,01-Sep-2015,3016076-21869594,622.40,AGGREGATE INDUSTRIES UK LTD.
Neighbourhood Services,Technical Services,Supplies and Services,304221,Equipment and Materials,01-Sep-2015,3016076-21869595,"4,942.02",AGGREGATE INDUSTRIES UK LTD.
Neighbourhood Services,Technical Services,Supplies and Services,304221,Equipment and Materials,01-Sep-2015,3016076-21875675,"6,201.03",AGGREGATE INDUSTRIES UK LTD.
Neighbourhood Services,Technical Services,Supplies and Services,304221,Equipment and Materials,01-Sep-2015,3016076-21875873,703.96,AGGREGATE INDUSTRIES UK LTD.
Neighbourhood Services,Technical Services,Supplies and Services,304221,Equipment and Materials,01-Sep-2015,3016076-21875874,523.61,AGGREGATE INDUSTRIES UK LTD.
Neighbourhood Services,Direct Services,Third Party Payments,430100,Rendered by Private Contractors,01-Sep-2015,3016116-17200,"1,006.98",CATHEDRAL LOCK & SAFE SERVICES LTD.
Neighbourhood Services,Technical Services,Stock,926900,Stock in hand-Inventory system,01-Sep-2015,3016117-9950/01658520,"2,162.34",CERAMIC TILE DISTRIBUTORS (CTD).
Neighbourhood Services,Technical Services,Employees,040149,Recruitment Instruction and Training,01-Sep-2015,3016119-646817,"1,749.00",CITB.
Neighbourhood Services,Technical Services,Stock,926004,Stock,01-Sep-2015,3016122-90136601,"20,697.43",ICL UK (SALES) LTD.
Neighbourhood Services,Technical Services,Stock,926004,Stock,01-Sep-2015,3016122-90136602,"12,240.04",ICL UK (SALES) LTD.
Neighbourhood Services,Technical Services,Stock,926004,Stock,01-Sep-2015,3016122-90136603,"1,424.38",ICL UK (SALES) LTD.
Neighbourhood Services,Technical Services,Stock,926004,Stock,01-Sep-2015,3016122-90136604,"5,023.15",ICL UK (SALES) LTD.
Neighbourhood Services,Technical Services,Supplies and Services,342033,Computers and Communications,01-Sep-2015,3016140-7402227833,809.28,DELL COMPUTER CORPORATION LTD.
Neighbourhood Services,Technical Services,Stock,926900,Stock in hand-Inventory system,01-Sep-2015,3016181-06/566514,"2,800.00",GREENHAM TRADING LTD.
Neighbourhood Services,Direct Services,Premises,145023,Cleaning and Domestic Supplies,01-Sep-2015,3016181-06/567728,"1,342.40",GREENHAM TRADING LTD.
Neighbourhood Services,Technical Services,Stock,926900,Stock in hand-Inventory system,01-Sep-2015,3016181-06/567731,575.30,GREENHAM TRADING LTD.
Neighbourhood Services,Technical Services,Supplies and Services,304221,Equipment and Materials,01-Sep-2015,3016196-498307,"1,314.88",INSTARMAC GROUP PLC.
Neighbourhood Services,Technical Services,Construction Work,908108,Capital - Surface Dressing,01-Sep-2015,3016202-11487,"6,588.99",JACK COUPE & SONS LTD T/A COUPE LINE.
Neighbourhood Services,Technical Services,Stock,926900,Stock in hand-Inventory system,01-Sep-2015,3016208-NI028713,"96,284.20",JOHN MACLEAN & SONS ELECTRICAL (DINGWALL) LTD.
Neighbourhood Services,Technical Services,Supplies and Services,304358,Equipment and Materials,01-Sep-2015,3016209-23771,"1,215.60",JOHN R BUTTERFIELD LTD.
Neighbourhood Services,Technical Services,Supplies and Services,304358,Equipment and Materials,01-Sep-2015,3016209-23800,989.00,JOHN R BUTTERFIELD LTD.
Neighbourhood Services,Technical Services,Supplies and Services,304358,Equipment and Materials,01-Sep-2015,3016209-23802,737.40,JOHN R BUTTERFIELD LTD.
Neighbourhood Services,Technical Services,Supplies and Services,304358,Equipment and Materials,01-Sep-2015,3016209-23843,926.20,JOHN R BUTTERFIELD LTD.
Neighbourhood Services,Technical Services,Supplies and Services,304358,Equipment and Materials,01-Sep-2015,3016209-23866,925.00,JOHN R BUTTERFIELD LTD.
Neighbourhood Services,Technical Services,Supplies and Services,304358,Equipment and Materials,01-Sep-2015,3016209-23868,614.00,JOHN R BUTTERFIELD LTD.
Neighbourhood Services,Technical Services,Supplies and Services,304358,Equipment and Materials,01-Sep-2015,3016209-23869,703.00,JOHN R BUTTERFIELD LTD.
Neighbourhood Services,Technical Services,Supplies and Services,304358,Equipment and Materials,01-Sep-2015,3016209-23870,614.00,JOHN R BUTTERFIELD LTD.
Neighbourhood Services,Technical Services,Supplies and Services,304358,Equipment and Materials,01-Sep-2015,3016209-23872,"1,769.70",JOHN R BUTTERFIELD LTD.
Neighbourhood Services,Technical Services,Supplies and Services,304358,Equipment and Materials,01-Sep-2015,3016209-23873,914.20,JOHN R BUTTERFIELD LTD.
Neighbourhood Services,Technical Services,Supplies and Services,304358,Equipment and Materials,01-Sep-2015,3016209-23876,"1,251.75",JOHN R BUTTERFIELD LTD.
Neighbourhood Services,Technical Services,Supplies and Services,304358,Equipment and Materials,01-Sep-2015,3016209-23892,"1,180.00",JOHN R BUTTERFIELD LTD.
Neighbourhood Services,Technical Services,Supplies and Services,304358,Equipment and Materials,01-Sep-2015,3016209-23894,"1,640.88",JOHN R BUTTERFIELD LTD.
Neighbourhood Services,Technical Services,Supplies and Services,304358,Equipment and Materials,01-Sep-2015,3016209-23895,"1,441.25",JOHN R BUTTERFIELD LTD.
Neighbourhood Services,Technical Services,Supplies and Services,304358,Equipment and Materials,01-Sep-2015,3016209-23899,777.40,JOHN R BUTTERFIELD LTD.
Neighbourhood Services,Technical Services,Supplies and Services,304358,Equipment and Materials,01-Sep-2015,3016209-23900,983.10,JOHN R BUTTERFIELD LTD.
Neighbourhood Services,Technical Services,Supplies and Services,304358,Equipment and Materials,01-Sep-2015,3016209-23918,"1,681.25",JOHN R BUTTERFIELD LTD.
Neighbourhood Services,Technical Services,Supplies and Services,304358,Equipment and Materials,01-Sep-2015,3016209-23919,"1,580.70",JOHN R BUTTERFIELD LTD.
Neighbourhood Services,Technical Services,Supplies and Services,304358,Equipment and Materials,01-Sep-2015,3016209-23921,"1,009.80",JOHN R BUTTERFIELD LTD.
Neighbourhood Services,Technical Services,Supplies and Services,304358,Equipment and Materials,01-Sep-2015,3016209-23922,703.00,JOHN R BUTTERFIELD LTD.
Neighbourhood Services,Technical Services,Supplies and Services,304221,Equipment and Materials,01-Sep-2015,3016213-CNI22807/D,"5,443.36",JT DOVE LTD.
Neighbourhood Services,Technical Services,Stock,926900,Stock in hand-Inventory system,01-Sep-2015,3016213-STI424069,765.77,JT DOVE LTD.
Neighbourhood Services,Technical Services,Supplies and Services,304358,Equipment and Materials,01-Sep-2015,3016215-1150,"3,237.25",KEVIN SNOWDON GROUNDWORKS LTD.
Neighbourhood Services,Technical Services,Supplies and Services,304358,Equipment and Materials,01-Sep-2015,3016215-1153,"2,261.50",KEVIN SNOWDON GROUNDWORKS LTD.
Neighbourhood Services,Technical Services,Supplies and Services,304358,Equipment and Materials,01-Sep-2015,3016217-INV00793673,"10,000.00",LANES GROUP PLC.
Neighbourhood Services,Technical Services,Supplies and Services,304358,Equipment and Materials,01-Sep-2015,3016225-32A,"2,302.95",M & E & MR WALTON.
Neighbourhood Services,Technical Services,Supplies and Services,304358,Equipment and Materials,01-Sep-2015,3016226-16/08/2015,650.00,M SPENCE SURFACING LTD.
Neighbourhood Services,Technical Services,Supplies and Services,304358,Equipment and Materials,01-Sep-2015,3016226-22/08/2015,650.00,M SPENCE SURFACING LTD.
Neighbourhood Services,Direct Services,Supplies and Services,304259,Equipment and Materials,01-Sep-2015,3016227-SLS/20017844,586.40,MAHA UK LTD.
Neighbourhood Services,Technical Services,Supplies and Services,304358,Equipment and Materials,01-Sep-2015,3016231-1836,533.00,MARTIN JEWITT PLANT HIRE.
Neighbourhood Services,Direct Services,Third Party Payments,430100,Rendered by Private Contractors,01-Sep-2015,3016243-5859,504.90,N1 JETTING SYSTEMS LTD.
Neighbourhood Services,Technical Services,Third Party Payments,430100,Rendered by Private Contractors,01-Sep-2015,3016247-NC7/C395/BW,"16,861.82",NEDCO CONTRACTS (NE) LTD.
Neighbourhood Services,Technical Services,Third Party Payments,430100,Rendered by Private Contractors,01-Sep-2015,3016247-NC8/C395/BW,"15,680.74",NEDCO CONTRACTS (NE) LTD.
Neighbourhood Services,Technical Services,Third Party Payments,430100,Rendered by Private Contractors,01-Sep-2015,3016247-NC9/C396/BW,"2,442.74",NEDCO CONTRACTS (NE) LTD.
Neighbourhood Services,Technical Services,Supplies and Services,304047,Equipment and Materials,01-Sep-2015,3016257-DI20221226,"1,428.38",NORTHERN POWERGRID (NORTHEAST) LTD.
Neighbourhood Services,Technical Services,Supplies and Services,304221,Equipment and Materials,01-Sep-2015,3016257-DI20221239,"2,474.12",NORTHERN POWERGRID (NORTHEAST) LTD.
Neighbourhood Services,Direct Services,Supplies and Services,304259,Equipment and Materials,01-Sep-2015,3016258-1683486,"1,518.00",NORTHERN TOOLS & ACCESSORIES.
Neighbourhood Services,Technical Services,Third Party Payments,460254,Contract Payments,01-Sep-2015,3016259-115510,"1,140.00",NORTHUMBERLAND COUNTY COUNCIL.
Neighbourhood Services,Technical Services,Premises,120009,Energy Costs,01-Sep-2015,3016260-NNO7QH8M,"5,488.89",NPOWER.
Neighbourhood Services,Culture & Sport,Supplies and Services,324117,Provisions,01-Sep-2015,3016263-22/2085116,"1,191.31",PALMER & HARVEY MCLANE LTD.
Neighbourhood Services,Direct Services,Supplies and Services,304221,Equipment and Materials,01-Sep-2015,3016265-BR527573,"2,270.93",PARK ELECTRICAL DISTRIBUTORS LTD.
Neighbourhood Services,Technical Services,Stock,926900,Stock in hand-Inventory system,01-Sep-2015,3016265-XL149819,651.61,PARK ELECTRICAL DISTRIBUTORS LTD.
Neighbourhood Services,Technical Services,Stock,926900,Stock in hand-Inventory system,01-Sep-2015,3016272-101101,505.00,PLUMBING & HEATING SUPPLIES LTD.
Neighbourhood Services,Technical Services,Third Party Payments,430100,Rendered by Private Contractors,01-Sep-2015,3016279-31688,"9,520.00",RENTAJET GROUP LTD.
Neighbourhood Services,Direct Services,Debtors,930046,Debtor-leasing,01-Sep-2015,3016290-200692,"23,041.23",S JENNINGS LTD.
Neighbourhood Services,Direct Services,Debtors,930046,Debtor-leasing,01-Sep-2015,3016290-200698,"23,041.23",S JENNINGS LTD.
Neighbourhood Services,Culture & Sport,Supplies and Services,384199,Miscellaneous Expenses,01-Sep-2015,3016291-2615,660.00,SALLYANNE FLEMONS.
Neighbourhood Services,Culture & Sport,Supplies and Services,384700,Miscellaneous Expenses,01-Sep-2015,3016302-NEI,"4,238.00",SLAM COMMUNITY DEVELOPMENT TRUST (CDT).
Neighbourhood Services,Technical Services,Stock,926900,Stock in hand-Inventory system,01-Sep-2015,3016303-187207,"2,830.00",SNAPFAST.
Neighbourhood Services,Culture & Sport,Fees,901002,Professional Fees,01-Sep-2015,3016305-732/PJ1471/11,"5,160.25",SOUTHERN GREEN LTD.
Neighbourhood Services,Technical Services,Stock,926900,Stock in hand-Inventory system,01-Sep-2015,3016306-270094693,741.97,SOVEREIGN CHEMICALS LTD.
Neighbourhood Services,Technical Services,Supplies and Services,304221,Equipment and Materials,01-Sep-2015,3016314-074252,"1,283.32",STONEGRAVE AGGREGATES LTD.
Neighbourhood Services,Technical Services,Supplies and Services,304221,Equipment and Materials,01-Sep-2015,3016314-074296,"1,127.12",STONEGRAVE AGGREGATES LTD.
Neighbourhood Services,Technical Services,Stock,926900,Stock in hand-Inventory system,01-Sep-2015,3016319-46/968574,"2,320.00",SUPPLY UK.
Neighbourhood Services,Technical Services,Supplies and Services,304221,Equipment and Materials,01-Sep-2015,3016340-151874,870.03,TYNEDALE ROADSTONE LTD.
Neighbourhood Services,Direct Services,Supplies and Services,304358,Equipment and Materials,01-Sep-2015,3016347-39722,"2,810.00",W MARLEY AGRICULTURAL CONTRACTORS LTD.
Neighbourhood Services,Technical Services,Supplies and Services,304358,Equipment and Materials,01-Sep-2015,3016347-39723,"1,000.00",W MARLEY AGRICULTURAL CONTRACTORS LTD.
Neighbourhood Services,Technical Services,Stock,926900,Stock in hand-Inventory system,01-Sep-2015,3016353-24636317,773.77,WOLSELEY UK LTD.
Neighbourhood Services,Technical Services,Stock,926900,Stock in hand-Inventory system,01-Sep-2015,3016353-24933290,570.50,WOLSELEY UK LTD.
Regeneration & Economic Development,Economic Development and Housing,Premises,120009,Energy Costs,01-Sep-2015,3016260,552.60,NPOWER.
Regeneration & Economic Development,Economic Development and Housing,Cap Exp on Grants & Other Financial Assistance (REFCUS),918401,Capital grants,01-Sep-2015,3016073-RED-08-2015-167,"1,620.00",ADVANCED BUILDING & JOINERY LTD.
Regeneration & Economic Development,Economic Development and Housing,Cap Exp on Grants & Other Financial Assistance (REFCUS),918401,Capital grants,01-Sep-2015,3016107-RED-08-2015-164,"6,500.00",C & B PROPERTY SERVICES.
Regeneration & Economic Development,Economic Development and Housing,Cap Exp on Grants & Other Financial Assistance (REFCUS),918401,Capital grants,01-Sep-2015,3016107-RED-08-2015-165,"2,500.00",C & B PROPERTY SERVICES.
Regeneration & Economic Development,Economic Development and Housing,Cap Exp on Grants & Other Financial Assistance (REFCUS),918401,Capital grants,01-Sep-2015,3016107-RED-08-2015-166,"1,500.00",C & B PROPERTY SERVICES.
Regeneration & Economic Development,Economic Development and Housing,Cap Exp on Grants & Other Financial Assistance (REFCUS),918401,Capital grants,01-Sep-2015,3016108-RED-08-2015-169,"7,500.00",CANARY WHARF PROPERTY MANAGEMENT LTD.
Regeneration & Economic Development,Economic Development and Housing,Supplies and Services,338035,Services,01-Sep-2015,3016118-INV520506,504.75,CHARTERED INSTITUTE OF ENVIRONMENTAL HEALTH.
Regeneration & Economic Development,Spatial Policy Planning Assets & Environment,Supplies and Services,338045,Services,01-Sep-2015,3016167-106080/DCC01,"6,450.00",FAIRHURST.
Regeneration & Economic Development,Transport and Contracted Services,Third Party Payments,430106,Rendered by Private Contractors,01-Sep-2015,3016174-17669,530.00,GARNETTS LTD (COACHES).
Regeneration & Economic Development,Economic Development and Housing,Supplies and Services,384700,Miscellaneous Expenses,01-Sep-2015,3016186-43604,522.00,HETAS LTD.
Regeneration & Economic Development,Transport and Contracted Services,Employees,040149,Recruitment Instruction and Training,01-Sep-2015,3016191-1913,600.00,HSF TRAINING LTD.
Regeneration & Economic Development,Transport and Contracted Services,Third Party Payments,430106,Rendered by Private Contractors,01-Sep-2015,3016207-DCC8/15,"1,906.68",JOHN JAMES BRUNSKILL.
Regeneration & Economic Development,Economic Development and Housing,Cap Exp on Grants & Other Financial Assistance (REFCUS),918401,Capital grants,01-Sep-2015,3016211-RED-08-2015-168,"3,133.00",JON BEST ELECTRICAL SERVICES.
Regeneration & Economic Development,Transport and Contracted Services,Other Expenses,914002,Capital - Advertisments,01-Sep-2015,3016251-12128219,767.34,NEWSQUEST (YORKSHIRE & NORTH EAST) LTD.
Regeneration & Economic Development,Spatial Policy Planning Assets & Environment,Supplies and Services,336005,Advertising,01-Sep-2015,3016251-12128236,869.29,NEWSQUEST (YORKSHIRE & NORTH EAST) LTD.
Regeneration & Economic Development,Economic Development and Housing,Construction Work,908105,Construction work,01-Sep-2015,3016293-5855020159,"71,022.00",SCOTTISH GAS T/A WARM UP NORTH.
Regeneration & Economic Development,Transport and Contracted Services,Third Party Payments,430106,Rendered by Private Contractors,01-Sep-2015,3016311-14929,"2,585.42",STANLEY TRAVEL (NORTH EAST) LTD.
Regeneration & Economic Development,Transport and Contracted Services,Third Party Payments,430106,Rendered by Private Contractors,01-Sep-2015,3016311-15319,"2,585.42",STANLEY TRAVEL (NORTH EAST) LTD.
Regeneration & Economic Development,Economic Development and Housing,Cap Exp on Grants & Other Financial Assistance (REFCUS),918401,Capital grants,01-Sep-2015,3016335-002,875.00,THYSSENKRUPP ENCASA A DIVISION OF THYSSENKRUPP ACCESS LTD.
Regeneration & Economic Development,Economic Development and Housing,Cap Exp on Grants & Other Financial Assistance (REFCUS),918401,Capital grants,01-Sep-2015,3016335-003,"3,205.00",THYSSENKRUPP ENCASA A DIVISION OF THYSSENKRUPP ACCESS LTD.
Regeneration & Economic Development,Economic Development and Housing,Cap Exp on Grants & Other Financial Assistance (REFCUS),918401,Capital grants,01-Sep-2015,3016336-001,"3,947.00",TOTAL HYGIENE LTD.
Resources,Financial Services,Transfer Payments,520002,Housing Benefits,01-Sep-2015,3016133,"1,555.32",DALE & VALLEY HOMES.
Resources,I.C.T. Services,Supplies and Services,304245,Equipment and Materials,01-Sep-2015,3016083-5053649,"1,186.76",ANTALIS LTD.
Resources,Legal & Democratic Services,Supplies and Services,338025,Services,01-Sep-2015,3016145-00000349,"1,590.00",DERWENTSIDE FUNERAL SERVICE.
Resources,Human Resources,Supplies and Services,384199,Miscellaneous Expenses,01-Sep-2015,3016175-2255,"1,820.00",GENESYS HUMAN RESOURCE SOLUTIONS.
Resources,Financial Services,Supplies and Services,338064,Services,01-Sep-2015,3016255-11210,"18,412.00",NORTH EAST REGIONAL EMPLOYERS ORGANISATION (NEREO).
Resources,Legal & Democratic Services,Premises,125009,Rents,01-Sep-2015,3016281-7242,577.62,RIVERGREEN DEVELOPMENTS PLC.
Resources,I.C.T. Services,Vehicles Equipment Furniture and Fittings,912701,Computer equipment,01-Sep-2015,3016307-OP/M038587,541.37,SPECIALIST COMPUTER CENTRES PLC.
Resources,I.C.T. Services,Stock,926900,Stock in hand-Inventory system,01-Sep-2015,3016359-Y674729,"3,600.00",XMA LTD.
Resources,I.C.T. Services,Stock,926900,Stock in hand-Inventory system,01-Sep-2015,3016359-Y681628,"68,200.00",XMA LTD.
Assistant Chief Executive,Partnerships & Community Engagement Div.,Cap Exp on Grants & Other Financial Assistance (REFCUS),918004,Contributions to other bodies,02-Sep-2015,3017189-14AB-EDRC007,"16,000.00",TRIMDON FOUNDRY PARISH COUNCIL.
Assistant Chief Executive,Partnerships & Community Engagement Div.,Cap Exp on Grants & Other Financial Assistance (REFCUS),918004,Contributions to other bodies,02-Sep-2015,3017189-15NB-EDRC006,"5,000.00",TRIMDON FOUNDRY PARISH COUNCIL.
Children and Adult Services,Childrens Services,Transport,210057,Repair and Maintenance of Vehicles,02-Sep-2015,300574-82574467,"3,122.83",BRISTOL STREET MOTORS.
Children and Adult Services,Childrens Services,Third Party Payments,440016,Other Third Party Payments,02-Sep-2015,3016467-1049542,673.80,REDACTED - PAYMENT TO INDIVIDUAL
Children and Adult Services,Childrens Services,Third Party Payments,440028,Other Third Party Payments,02-Sep-2015,3016585-1048400,538.08,REDACTED - PAYMENT TO INDIVIDUAL
Children and Adult Services,Childrens Services,Third Party Payments,440001,Other Third Party Payments,02-Sep-2015,3016613-1049581,576.00,REDACTED - PAYMENT TO INDIVIDUAL
Children and Adult Services,Childrens Services,Third Party Payments,440016,Other Third Party Payments,02-Sep-2015,3016712-1049061,745.50,REDACTED - PAYMENT TO INDIVIDUAL
Children and Adult Services,Childrens Services,Third Party Payments,440015,Other Third Party Payments,02-Sep-2015,3016803-1049012,811.33,REDACTED - PAYMENT TO INDIVIDUAL
Children and Adult Services,Childrens Services,Third Party Payments,440027,Other Third Party Payments,02-Sep-2015,3016896-1049605,"1,210.68",REDACTED - PAYMENT TO INDIVIDUAL
Children and Adult Services,Education,Construction Work,908105,Construction work,02-Sep-2015,3016966-152838,"10,800.00",ALBANY CONTRACT FURNITURE.
Children and Adult Services,Education,Construction Work,908105,Construction work,02-Sep-2015,3016966-152894,"2,640.00",ALBANY CONTRACT FURNITURE.
Children and Adult Services,Public Health,Supplies and Services,384540,Miscellaneous Expenses,02-Sep-2015,3016970-28776,853.00,ALLWAG PROMOTIONS LTD.
Children and Adult Services,Planning & Service Strategy,Supplies and Services,338026,Services,02-Sep-2015,3016973-ARCARE-DCC03,"2,619.03",AR CARE CONSULTANCY LTD.
Children and Adult Services,Planning & Service Strategy,Supplies and Services,338026,Services,02-Sep-2015,3016973-ARCARE-DCC04,"1,009.56",AR CARE CONSULTANCY LTD.
Children and Adult Services,Commissioning inc Supporting People,Third Party Payments,473111,Purchase of Care,02-Sep-2015,3016979-4100498243,"3,072.00",BEARPARK COMMUNITY MAG.
Children and Adult Services,Commissioning inc Supporting People,Third Party Payments,442002,Supporting People,02-Sep-2015,3016982-1963034,"16,448.04",BID SERVICES WITH DEAF PEOPLE.
Children and Adult Services,Education,Third Party Payments,440999,Other Third Party Payments,02-Sep-2015,3016993-4100454313,"8,698.40",CDC ENTERPRISE AGENCY.
Children and Adult Services,Education,Third Party Payments,440999,Other Third Party Payments,02-Sep-2015,3016993-LEARN,"4,892.85",CDC ENTERPRISE AGENCY.
Children and Adult Services,Commissioning inc Supporting People,Third Party Payments,442002,Supporting People,02-Sep-2015,3017002-1963058,"3,452.04",CHILDREN NORTH EAST.
Children and Adult Services,Childrens Services,Transport,230005,Contract Hire,02-Sep-2015,3017009-15028A,580.00,CLUBMAN CABS.
Children and Adult Services,Commissioning inc Supporting People,Third Party Payments,442002,Supporting People,02-Sep-2015,3017015-1962968,"19,868.48",CREATIVE SUPPORT LTD.
Children and Adult Services,Childrens Services,Third Party Payments,425041,Rendered by Voluntary Organisations,02-Sep-2015,3017024-3482543,"18,000.00",DFW ADOPTION.
Children and Adult Services,Commissioning inc Supporting People,Third Party Payments,442002,Supporting People,02-Sep-2015,3017026-1962967,"5,668.48",DISC LTD.
Children and Adult Services,Commissioning inc Supporting People,Third Party Payments,442002,Supporting People,02-Sep-2015,3017026-1962993,"27,885.68",DISC LTD.
Children and Adult Services,Commissioning inc Supporting People,Third Party Payments,441001,Supporting People,02-Sep-2015,3017035-1962994,"20,819.76",DURHAM ACTION ON SINGLE HOUSING.
Children and Adult Services,Commissioning inc Supporting People,Third Party Payments,443001,Supporting People,02-Sep-2015,3017035-1962995,"2,951.84",DURHAM ACTION ON SINGLE HOUSING.
Children and Adult Services,Commissioning inc Supporting People,Third Party Payments,443001,Supporting People,02-Sep-2015,3017035-1962999,"1,475.92",DURHAM ACTION ON SINGLE HOUSING.
Children and Adult Services,Commissioning inc Supporting People,Third Party Payments,441001,Supporting People,02-Sep-2015,3017038-1963003,"5,483.40",EAST DURHAM COMMUNITY INITIATIVES LTD.
Children and Adult Services,Commissioning inc Supporting People,Third Party Payments,442002,Supporting People,02-Sep-2015,3017046-1962969,"30,071.20",FOUNDATION.
Children and Adult Services,Childrens Services,Supplies and Services,384199,Miscellaneous Expenses,02-Sep-2015,3017050-17632,840.00,GARNETTS LTD (COACHES).
Children and Adult Services,Head of Adults,Premises,125009,Rents,02-Sep-2015,3017058-3200-205786,"3,297.26",GVA GRIMLEY LLP.
Children and Adult Services,Commissioning inc Supporting People,Third Party Payments,442002,Supporting People,02-Sep-2015,3017060-1963004,"5,995.44",HANOVER HOUSING ASSOCIATION.
Children and Adult Services,Commissioning inc Supporting People,Third Party Payments,441001,Supporting People,02-Sep-2015,3017061-1962970,"18,082.80",HARBOUR SUPPORT SERVICES.
Children and Adult Services,Education,Supplies and Services,338094,Services,02-Sep-2015,3017088-2010512,545.00,LEISUREWORKS.
Children and Adult Services,Commissioning inc Supporting People,Third Party Payments,442002,Supporting People,02-Sep-2015,3017100-1962971,"5,469.72",MENTAL HEALTH MATTERS.
Children and Adult Services,Commissioning inc Supporting People,Third Party Payments,442002,Supporting People,02-Sep-2015,3017105-1962972,"5,240.36",MOVING ON.
Children and Adult Services,Childrens Services,Supplies and Services,340001,Postages,02-Sep-2015,3017110-43615191,500.00,NEOPOST CREDIFON.
Children and Adult Services,Childrens Services,Supplies and Services,340001,Postages,02-Sep-2015,3017110-CAS-09-2015-006,500.00,NEOPOST CREDIFON.
Children and Adult Services,Commissioning inc Supporting People,Third Party Payments,442002,Supporting People,02-Sep-2015,3017137-1962978,"7,356.72",RICHMOND FELLOWSHIP.
Children and Adult Services,Commissioning inc Supporting People,Third Party Payments,444002,Supporting People,02-Sep-2015,3017137-1962979,"4,068.24",RICHMOND FELLOWSHIP.
Children and Adult Services,Commissioning inc Supporting People,Third Party Payments,441001,Supporting People,02-Sep-2015,3017137-1962991,"9,423.88",RICHMOND FELLOWSHIP.
Children and Adult Services,Commissioning inc Supporting People,Third Party Payments,442002,Supporting People,02-Sep-2015,3017150-1962973,"9,044.36",SHAID.
Children and Adult Services,Childrens Services,Third Party Payments,425041,Rendered by Voluntary Organisations,02-Sep-2015,3017161-995859,"2,250.00",ST FRANCIS CHILDRENS SOCIETY.
Children and Adult Services,Commissioning inc Supporting People,Third Party Payments,442002,Supporting People,02-Sep-2015,3017165-1962962,"145,778.32",STONHAM HOUSING ASSOCIATION LTD.
Children and Adult Services,Commissioning inc Supporting People,Third Party Payments,442002,Supporting People,02-Sep-2015,3017165-1962977,"29,343.52",STONHAM HOUSING ASSOCIATION LTD.
Children and Adult Services,Commissioning inc Supporting People,Third Party Payments,443001,Supporting People,02-Sep-2015,3017165-1963011,"23,955.16",STONHAM HOUSING ASSOCIATION LTD.
Children and Adult Services,Commissioning inc Supporting People,Third Party Payments,443001,Supporting People,02-Sep-2015,3017165-1963021,"11,715.88",STONHAM HOUSING ASSOCIATION LTD.
Children and Adult Services,Commissioning inc Supporting People,Third Party Payments,441001,Supporting People,02-Sep-2015,3017165-1963038,"67,257.36",STONHAM HOUSING ASSOCIATION LTD.
Children and Adult Services,Commissioning inc Supporting People,Third Party Payments,443001,Supporting People,02-Sep-2015,3017165-1963039,980.00,STONHAM HOUSING ASSOCIATION LTD.
Children and Adult Services,Commissioning inc Supporting People,Third Party Payments,442002,Supporting People,02-Sep-2015,3017165-1963053,"23,639.04",STONHAM HOUSING ASSOCIATION LTD.
Children and Adult Services,Childrens Services,Third Party Payments,425040,Rendered by Voluntary Organisations,02-Sep-2015,3017170-168802,730.03,SWIIS FOSTER CARE LTD.
Children and Adult Services,Childrens Services,Third Party Payments,425040,Rendered by Voluntary Organisations,02-Sep-2015,3017170-168803,977.13,SWIIS FOSTER CARE LTD.
Children and Adult Services,Childrens Services,Third Party Payments,425040,Rendered by Voluntary Organisations,02-Sep-2015,3017170-168804,"1,535.70",SWIIS FOSTER CARE LTD.
Children and Adult Services,Childrens Services,Third Party Payments,425040,Rendered by Voluntary Organisations,02-Sep-2015,3017170-168806,"1,146.69",SWIIS FOSTER CARE LTD.
Children and Adult Services,Childrens Services,Third Party Payments,425040,Rendered by Voluntary Organisations,02-Sep-2015,3017170-168807,"1,054.26",SWIIS FOSTER CARE LTD.
Children and Adult Services,Childrens Services,Third Party Payments,425040,Rendered by Voluntary Organisations,02-Sep-2015,3017170-168808,"1,374.39",SWIIS FOSTER CARE LTD.
Children and Adult Services,Childrens Services,Transport,235073,Public Transport,02-Sep-2015,3017174-951,894.79,TEESDALE COMMUNITY RESOURCES (TCR) LTD.
Children and Adult Services,Planning & Service Strategy,Supplies and Services,338094,Services,02-Sep-2015,3017176-3089,"1,217.00",THE DURHAM CENTRE LTD.
Children and Adult Services,Commissioning inc Supporting People,Supplies and Services,384199,Miscellaneous Expenses,02-Sep-2015,3017176-3283,899.00,THE DURHAM CENTRE LTD.
Children and Adult Services,Planning & Service Strategy,Supplies and Services,384199,Miscellaneous Expenses,02-Sep-2015,3017182-3827,567.50,THE WORK PLACE (AYCLIFFE) LTD.
Children and Adult Services,Commissioning inc Supporting People,Third Party Payments,441001,Supporting People,02-Sep-2015,3017183-1962976,"26,009.80",THIRTEEN CARE & SUPPORT.
Children and Adult Services,Commissioning inc Supporting People,Third Party Payments,442002,Supporting People,02-Sep-2015,3017183-1963059,"9,366.16",THIRTEEN CARE & SUPPORT.
Children and Adult Services,Commissioning inc Supporting People,Third Party Payments,441001,Supporting People,02-Sep-2015,3017183-1963062,"7,510.04",THIRTEEN CARE & SUPPORT.
Children and Adult Services,Commissioning inc Supporting People,Third Party Payments,442002,Supporting People,02-Sep-2015,3017183-1963063,"1,519.52",THIRTEEN CARE & SUPPORT.
Children and Adult Services,Commissioning inc Supporting People,Third Party Payments,441001,Supporting People,02-Sep-2015,3017183-1963064,"9,924.64",THIRTEEN CARE & SUPPORT.
Children and Adult Services,Commissioning inc Supporting People,Third Party Payments,442002,Supporting People,02-Sep-2015,3017187-1962992,"36,446.00",THREE RIVERS HOUSING ASSOCIATION LTD.
Children and Adult Services,Childrens Services,Premises,150005,Apportioned Exps of Operational Blds,02-Sep-2015,3017192-DCC011B,"1,461.68",TYNE VIEW PROPERTY MANAGEMENT LTD.
Children and Adult Services,Commissioning inc Supporting People,Third Party Payments,441001,Supporting People,02-Sep-2015,3017196-1963005,"1,183.60",WADDINGTON STREET CENTRE LTD.
Children and Adult Services,Commissioning inc Supporting People,Third Party Payments,443001,Supporting People,02-Sep-2015,3017196-1963006,930.08,WADDINGTON STREET CENTRE LTD.
Children and Adult Services,Commissioning inc Supporting People,Third Party Payments,444002,Supporting People,02-Sep-2015,3017196-1963010,531.90,WADDINGTON STREET CENTRE LTD.
Children and Adult Services,Commissioning inc Supporting People,Third Party Payments,441001,Supporting People,02-Sep-2015,3017199-1962974,"7,157.00",WEAR VALLEY WOMENS AID.
Neighbourhood Services,Culture & Sport,Employees,080025,Agency Staff,02-Sep-2015,300576-000909,600.00,CLEARVIEW TECHNICAL LTD.
Neighbourhood Services,Direct Services,Third Party Payments,430100,Rendered by Private Contractors,02-Sep-2015,300586-F54/2015,"7,142.96",EDEN WORMS & COMPOST.
Neighbourhood Services,Technical Services,Third Party Payments,430100,Rendered by Private Contractors,02-Sep-2015,300590-40527,876.20,HORIZON UTILITY SUPPLIES LTD.
Neighbourhood Services,Technical Services,Employees,040149,Recruitment Instruction and Training,02-Sep-2015,300633-INV465471,650.00,VERSALIFT DISTRIBUTORS (UK) LTD.
Neighbourhood Services,Direct Services,Income,720263,Fees and Charges,02-Sep-2015,300635-NEI-INC-09-2015-001,544.99,WYN CONSTRUCTION LTD.
Neighbourhood Services,Projects and Business services,Third Party Payments,430115,Rendered by Private Contractors,02-Sep-2015,3016961-1247,"14,950.32",A THOMPSON.
Neighbourhood Services,Projects and Business services,Third Party Payments,430115,Rendered by Private Contractors,02-Sep-2015,3016962-0039,"15,244.61",A WILLEY T/A GREENTECH RECYCLING.
Neighbourhood Services,Technical Services,Supplies and Services,304221,Equipment and Materials,02-Sep-2015,3016964-21878873,"1,242.71",AGGREGATE INDUSTRIES UK LTD.
Neighbourhood Services,Technical Services,Supplies and Services,304221,Equipment and Materials,02-Sep-2015,3016964-21878874,964.69,AGGREGATE INDUSTRIES UK LTD.
Neighbourhood Services,Technical Services,Supplies and Services,304221,Equipment and Materials,02-Sep-2015,3016964-21878875,"3,657.92",AGGREGATE INDUSTRIES UK LTD.
Neighbourhood Services,Technical Services,Supplies and Services,304221,Equipment and Materials,02-Sep-2015,3016964-21878877,"5,313.61",AGGREGATE INDUSTRIES UK LTD.
Neighbourhood Services,Technical Services,Supplies and Services,304221,Equipment and Materials,02-Sep-2015,3016964-21920890,"3,759.49",AGGREGATE INDUSTRIES UK LTD.
Neighbourhood Services,Projects and Business services,Supplies and Services,338027,Services,02-Sep-2015,3016967-HL189833,"1,027.32",ALCONTROL LABORATORIES.
Neighbourhood Services,Technical Services,Stock,926900,Stock in hand-Inventory system,02-Sep-2015,3016977-SIN308231,669.63,ATF SUPPLIES LTD.
Neighbourhood Services,Technical Services,Stock,926900,Stock in hand-Inventory system,02-Sep-2015,3016977-SIN308401,511.16,ATF SUPPLIES LTD.
Neighbourhood Services,Technical Services,Stock,926900,Stock in hand-Inventory system,02-Sep-2015,3016997-9950/01657696,"2,135.75",CERAMIC TILE DISTRIBUTORS (CTD).
Neighbourhood Services,Technical Services,Stock,926900,Stock in hand-Inventory system,02-Sep-2015,3016999-85274,700.00,CHAMBERLAIN DOORS LTD.
Neighbourhood Services,Technical Services,Stock,926004,Stock,02-Sep-2015,3017008-90136612,"22,825.09",ICL UK (SALES) LTD.
Neighbourhood Services,Direct Services,Third Party Payments,430100,Rendered by Private Contractors,02-Sep-2015,3017010-6413,"6,100.00",COMMERCIAL COVERINGS LTD.
Neighbourhood Services,Culture & Sport,Supplies and Services,304259,Equipment and Materials,02-Sep-2015,3017012-13506,"1,510.00",COOL BREEZE LTD.
Neighbourhood Services,Technical Services,Supplies and Services,342033,Computers and Communications,02-Sep-2015,3017021-7402228400,"4,896.00",DELL COMPUTER CORPORATION LTD.
Neighbourhood Services,Direct Services,Third Party Payments,430100,Rendered by Private Contractors,02-Sep-2015,3017041-3214,750.00,EURO TRUCK BODIES.
Neighbourhood Services,Projects and Business services,Third Party Payments,430120,Rendered by Private Contractors,02-Sep-2015,3017045-CTIN06450253,"3,324.93",FINNING (UK) LTD.
Neighbourhood Services,Projects and Business services,Third Party Payments,430120,Rendered by Private Contractors,02-Sep-2015,3017045-CTIN06450254,"1,878.66",FINNING (UK) LTD.
Neighbourhood Services,Projects and Business services,Third Party Payments,430120,Rendered by Private Contractors,02-Sep-2015,3017045-CTIN06450255,"1,734.53",FINNING (UK) LTD.
Neighbourhood Services,Projects and Business services,Third Party Payments,430120,Rendered by Private Contractors,02-Sep-2015,3017045-CTIN06452223,"2,360.75",FINNING (UK) LTD.
Neighbourhood Services,Projects and Business services,Third Party Payments,430120,Rendered by Private Contractors,02-Sep-2015,3017045-CTIN06452224,"2,470.09",FINNING (UK) LTD.
Neighbourhood Services,Projects and Business services,Third Party Payments,430120,Rendered by Private Contractors,02-Sep-2015,3017045-CTIN06452225,"2,102.31",FINNING (UK) LTD.
Neighbourhood Services,Projects and Business services,Third Party Payments,430120,Rendered by Private Contractors,02-Sep-2015,3017045-CTIN06454355,"2,991.94",FINNING (UK) LTD.
Neighbourhood Services,Projects and Business services,Third Party Payments,430120,Rendered by Private Contractors,02-Sep-2015,3017045-CTIN06454356,"1,491.00",FINNING (UK) LTD.
Neighbourhood Services,Projects and Business services,Third Party Payments,430120,Rendered by Private Contractors,02-Sep-2015,3017045-SINV8760202,652.50,FINNING (UK) LTD.
Neighbourhood Services,Projects and Business services,Third Party Payments,430120,Rendered by Private Contractors,02-Sep-2015,3017045-SINV8760204,"1,077.50",FINNING (UK) LTD.
Neighbourhood Services,Direct Services,Third Party Payments,430100,Rendered by Private Contractors,02-Sep-2015,3017049-93446427,994.60,GARDNER DENVER LTD.
Neighbourhood Services,Technical Services,Stock,926900,Stock in hand-Inventory system,02-Sep-2015,3017056-06/568130,572.88,GREENHAM TRADING LTD.
Neighbourhood Services,Technical Services,Stock,926900,Stock in hand-Inventory system,02-Sep-2015,3017065-498428,"2,424.80",INSTARMAC GROUP PLC.
Neighbourhood Services,Culture & Sport,Supplies and Services,332029,Printing Stationery and Gen Off Exps,02-Sep-2015,3017066-12567,708.00,ISAPPHIRE LTD.
Neighbourhood Services,Culture & Sport,Supplies and Services,332029,Printing Stationery and Gen Off Exps,02-Sep-2015,3017067-12569,"4,950.00",ISAPPHIRE LTD.
Neighbourhood Services,Technical Services,Stock,926900,Stock in hand-Inventory system,02-Sep-2015,3017080-PHBII25323,"3,358.00",JT DOVE LTD.
Neighbourhood Services,Technical Services,Stock,926900,Stock in hand-Inventory system,02-Sep-2015,3017080-PHSTI25331,734.52,JT DOVE LTD.
Neighbourhood Services,Direct Services,Supplies and Services,304221,Equipment and Materials,02-Sep-2015,3017087-44930,728.40,LEISURETEQ.
Neighbourhood Services,Direct Services,Supplies and Services,304221,Equipment and Materials,02-Sep-2015,3017089-NE148818,"1,381.40",LLOYD WORRALL (NEWCASTLE UPON TYNE) LTD.
Neighbourhood Services,Direct Services,Supplies and Services,304221,Equipment and Materials,02-Sep-2015,3017089-NE150030,598.06,LLOYD WORRALL (NEWCASTLE UPON TYNE) LTD.
Neighbourhood Services,Direct Services,Supplies and Services,304221,Equipment and Materials,02-Sep-2015,3017089-NE150036,"1,543.04",LLOYD WORRALL (NEWCASTLE UPON TYNE) LTD.
Neighbourhood Services,Direct Services,Supplies and Services,304221,Equipment and Materials,02-Sep-2015,3017089-NE150112,"16,642.01",LLOYD WORRALL (NEWCASTLE UPON TYNE) LTD.
Neighbourhood Services,Direct Services,Supplies and Services,304221,Equipment and Materials,02-Sep-2015,3017089-NE150362,974.50,LLOYD WORRALL (NEWCASTLE UPON TYNE) LTD.
Neighbourhood Services,Direct Services,Third Party Payments,430100,Rendered by Private Contractors,02-Sep-2015,3017090-HI0075708,712.56,LOOKERS LEASING LTD.
Neighbourhood Services,Technical Services,Supplies and Services,304221,Equipment and Materials,02-Sep-2015,3017120-DI20221272,868.82,NORTHERN POWERGRID (NORTHEAST) LTD.
Neighbourhood Services,Technical Services,Supplies and Services,304221,Equipment and Materials,02-Sep-2015,3017120-DI20221273,"1,234.77",NORTHERN POWERGRID (NORTHEAST) LTD.
Neighbourhood Services,Technical Services,Stock,926900,Stock in hand-Inventory system,02-Sep-2015,3017121-1682713,"1,009.72",NORTHERN TOOLS & ACCESSORIES.
Neighbourhood Services,Direct Services,Third Party Payments,430100,Rendered by Private Contractors,02-Sep-2015,3017125-5111-01,"1,079.73",OPUS BUILDING SERVICES LTD.
Neighbourhood Services,Technical Services,Stock,926900,Stock in hand-Inventory system,02-Sep-2015,3017127-XL149709,"5,690.10",PARK ELECTRICAL DISTRIBUTORS LTD.
Neighbourhood Services,Technical Services,Stock,926900,Stock in hand-Inventory system,02-Sep-2015,3017127-XL149880,"1,191.30",PARK ELECTRICAL DISTRIBUTORS LTD.
Neighbourhood Services,Technical Services,Stock,926900,Stock in hand-Inventory system,02-Sep-2015,3017127-XL150077,940.50,PARK ELECTRICAL DISTRIBUTORS LTD.
Neighbourhood Services,Projects and Business services,Supplies and Services,340001,Postages,02-Sep-2015,3017143-9050375693,"1,025.93",ROYAL MAIL GROUP PLC.
Neighbourhood Services,Direct Services,Supplies and Services,304221,Equipment and Materials,02-Sep-2015,3017151-CD970252133,"1,331.20",SHERRIFF AMENITY.
Neighbourhood Services,Direct Services,Third Party Payments,430100,Rendered by Private Contractors,02-Sep-2015,3017160-4855,"20,729.82",ST ASTIER LTD.
Neighbourhood Services,Technical Services,Supplies and Services,304221,Equipment and Materials,02-Sep-2015,3017164-074331,"1,407.32",STONEGRAVE AGGREGATES LTD.
Neighbourhood Services,Direct Services,Supplies and Services,338099,Services,02-Sep-2015,3017166-SA038-15,"1,010.00",STRAY AID LTD.
Neighbourhood Services,Technical Services,Stock,926900,Stock in hand-Inventory system,02-Sep-2015,3017168-25020113,"1,803.50",SW DIRECTIONAL DRILLING LTD T/A TEESSIDE INDUSTRIAL SUPPLIES.
Neighbourhood Services,Technical Services,Supplies and Services,304221,Equipment and Materials,02-Sep-2015,3017172-9032939799,542.88,TARMAC TRADING LTD.
Neighbourhood Services,Technical Services,Stock,926900,Stock in hand-Inventory system,02-Sep-2015,3017172-9032974534,696.50,TARMAC TRADING LTD.
Neighbourhood Services,Technical Services,Supplies and Services,304221,Equipment and Materials,02-Sep-2015,3017172-9033085176,670.00,TARMAC TRADING LTD.
Neighbourhood Services,Technical Services,Employees,040149,Recruitment Instruction and Training,02-Sep-2015,3017175-96315478,710.00,TERBERG MATEC (UK) LTD.
Neighbourhood Services,Culture & Sport,Supplies and Services,338047,Services,02-Sep-2015,3017179,"3,767.38",THE LORD CHAMBERLAINS MEN.
Neighbourhood Services,Culture & Sport,Supplies and Services,338099,Services,02-Sep-2015,3017184-4100502726,575.01,THOMAS GUEST.
Neighbourhood Services,Direct Services,Third Party Payments,430100,Rendered by Private Contractors,02-Sep-2015,3017191-642,"3,016.88",TYNE PLASTERING LTD.
Neighbourhood Services,Direct Services,Premises,125009,Rents,02-Sep-2015,3017204-349215,"2,131.59",WHITTLE JONES (GROUP) LTD.
Neighbourhood Services,Technical Services,Stock,926900,Stock in hand-Inventory system,02-Sep-2015,3017209-24922178,"2,231.18",WOLSELEY UK LTD.
Neighbourhood Services,Technical Services,Stock,926900,Stock in hand-Inventory system,02-Sep-2015,3017209-24922179,"1,348.05",WOLSELEY UK LTD.
Regeneration & Economic Development,Spatial Policy Planning Assets & Environment,Supplies and Services,338027,Services,02-Sep-2015,300625-18534\MHE,"1,500.00",OXFORD ECONOMICS LTD.
Regeneration & Economic Development,Transport and Contracted Services,Construction Work,908105,Construction work,02-Sep-2015,3017071-11493,839.30,JACK COUPE & SONS LTD T/A COUPE LINE.
Regeneration & Economic Development,Transport and Contracted Services,Third Party Payments,430100,Rendered by Private Contractors,02-Sep-2015,3017135-5123,"1,597.39",QW SECURITY LTD.
Regeneration & Economic Development,Economic Development and Housing,Supplies and Services,344033,Telephones,02-Sep-2015,3017144-0013242,717.59,RUSSELL TELECOM LTD.
Regeneration & Economic Development,Economic Development and Housing,Supplies and Services,384700,Miscellaneous Expenses,02-Sep-2015,3017173-006,"1,000.00",TARZAN BARS LTD.
Regeneration & Economic Development,Economic Development and Housing,Cap Exp on Grants & Other Financial Assistance (REFCUS),918004,Contributions to other bodies,02-Sep-2015,3017177-101,"2,320.00",THE GRAND HOTEL.
Resources,Legal & Democratic Services,Supplies and Services,338042,Services,02-Sep-2015,300603-221144,"2,070.00",MISS FIONA MCCRAE.
Resources,Legal & Democratic Services,Supplies and Services,338042,Services,02-Sep-2015,300610-228399,720.00,MR GERALD BROWNE.
Resources,Legal & Democratic Services,Supplies and Services,338057,Services,02-Sep-2015,3017140-0000020837,990.00,ROAR FORENSICS LTD.
Resources,Financial Services,Supplies and Services,340001,Postages,02-Sep-2015,3017143-9050374463,"14,453.76",ROYAL MAIL GROUP PLC.
Resources,Legal & Democratic Services,Supplies and Services,340001,Postages,02-Sep-2015,3017143-9050380982,"1,185.72",ROYAL MAIL GROUP PLC.
Resources,Legal & Democratic Services,Employees,040149,Recruitment Instruction and Training,02-Sep-2015,3017178-EVE12992,615.00,THE INSTITUTE OF LICENSING (EVENTS) LTD.
Assistant Chief Executive,Partnerships & Community Engagement Div.,Supplies and Services,384086,Miscellaneous Expenses,03-Sep-2015,3017283-15NB-4TOG003,"10,000.00",ENTER CIC.
Assistant Chief Executive,Partnerships & Community Engagement Div.,Cap Exp on Grants & Other Financial Assistance (REFCUS),918004,Contributions to other bodies,03-Sep-2015,3017303-15NB-EDUR020,"3,102.00",HEADQUARTERS EAST ST MTCE FUND.
Assistant Chief Executive,Policy & Communications Division,Supplies and Services,336007,Advertising,03-Sep-2015,3017339-01092,840.00,LEE DOBSON PHOTOGRAPHY.
Assistant Chief Executive,Partnerships & Community Engagement Div.,Transfer Payments,525030,Other,03-Sep-2015,3017407-SJ/253,"3,575.40",SHOPJACKET LTD.
Assistant Chief Executive,Partnerships & Community Engagement Div.,Cap Exp on Grants & Other Financial Assistance (REFCUS),918004,Contributions to other bodies,03-Sep-2015,3017451-12NB-MDUR036,"3,475.35",USHAW MOOR CRICKET CLUB.
Assistant Chief Executive,Partnerships & Community Engagement Div.,Transfer Payments,525030,Other,03-Sep-2015,3017464-14AB-3TWN016,"16,766.00",WILLINGTON COMMUNITY ACTION.
Children and Adult Services,Childrens Services,Supplies and Services,342513,Computers and Communications,03-Sep-2015,3017216-41866,"1,089.00",ALARM RADIO MONITORING LTD.
Children and Adult Services,Education,Third Party Payments,440999,Other Third Party Payments,03-Sep-2015,3017239-028,710.57,CAPITAL 4 TRAINING LTD
Children and Adult Services,Education,Supplies and Services,338094,Services,03-Sep-2015,3017287-5100492,612.00,EXCEL ACADEMY PARTNERSHIP T/A FRAMWELLGATE SCH DURHAM.
Children and Adult Services,Education,Third Party Payments,440999,Other Third Party Payments,03-Sep-2015,3017307-D1IN/00019134,"5,842.50",HOME GROUP LTD.
Children and Adult Services,Education,Third Party Payments,440999,Other Third Party Payments,03-Sep-2015,3017307-D1IN/00019136,"4,666.42",HOME GROUP LTD.
Children and Adult Services,Education,Third Party Payments,440999,Other Third Party Payments,03-Sep-2015,3017307-D1IN/00019455,"15,120.00",HOME GROUP LTD.
Children and Adult Services,Education,Third Party Payments,440999,Other Third Party Payments,03-Sep-2015,3017307-D1IN/00019456,"34,675.66",HOME GROUP LTD.
Children and Adult Services,Head of Adults,Premises,125009,Rents,03-Sep-2015,3017335-395334,782.50,KNIGHT FRANK LLP.
Children and Adult Services,Childrens Services,Transport,240045,Car Allowances,03-Sep-2015,3017415-4473,"71,615.02",SOCIAL RESOURCE CENTRE LTD.
Children and Adult Services,Education,Supplies and Services,338027,Services,03-Sep-2015,3017419-0687,"68,940.00",ST JOHN`S SCHOOL & SIXTH FORM COLLEGE A CATHOLIC ACADEMY.
Children and Adult Services,Commissioning inc Supporting People,Third Party Payments,441001,Supporting People,03-Sep-2015,3017435-1963035,"19,231.20",THE CYRENIANS LTD T/A CHANGING LIVES.
Children and Adult Services,Head of Adults,Supplies and Services,384616,Miscellaneous Expenses,03-Sep-2015,3017441-SH131516,"9,273.41",THREE RIVERS HOUSING ASSOCIATION LTD.
Dedicated Schools Grant,Dedicated Schools Grant,Third Party Payments,410037,Rendered by Other Local Authorities,03-Sep-2015,3017261-2654512,"4,767.93",DARLINGTON BOROUGH COUNCIL.
Neighbourhood Services,Technical Services,Supplies and Services,304221,Equipment and Materials,03-Sep-2015,3017213-001454,624.12,A PARRY MOBILE WELDING & FABRICATION.
Neighbourhood Services,Technical Services,Supplies and Services,304221,Equipment and Materials,03-Sep-2015,3017215-21884892,"1,266.54",AGGREGATE INDUSTRIES UK LTD.
Neighbourhood Services,Technical Services,Supplies and Services,304221,Equipment and Materials,03-Sep-2015,3017215-21884893,"1,005.50",AGGREGATE INDUSTRIES UK LTD.
Neighbourhood Services,Technical Services,Supplies and Services,304221,Equipment and Materials,03-Sep-2015,3017215-21884894,619.10,AGGREGATE INDUSTRIES UK LTD.
Neighbourhood Services,Technical Services,Supplies and Services,304221,Equipment and Materials,03-Sep-2015,3017215-21884895,770.21,AGGREGATE INDUSTRIES UK LTD.
Neighbourhood Services,Technical Services,Supplies and Services,304221,Equipment and Materials,03-Sep-2015,3017215-21884896,"11,106.93",AGGREGATE INDUSTRIES UK LTD.
Neighbourhood Services,Technical Services,Supplies and Services,304221,Equipment and Materials,03-Sep-2015,3017215-21884897,"4,275.29",AGGREGATE INDUSTRIES UK LTD.
Neighbourhood Services,Direct Services,Third Party Payments,430100,Rendered by Private Contractors,03-Sep-2015,3017222-1220541272,"1,828.57",ASSA ABLOY ENTRANCE SYSTEMS LTD.
Neighbourhood Services,Direct Services,Third Party Payments,430100,Rendered by Private Contractors,03-Sep-2015,3017222-1220542028,773.00,ASSA ABLOY ENTRANCE SYSTEMS LTD.
Neighbourhood Services,Culture & Sport,Supplies and Services,384700,Miscellaneous Expenses,03-Sep-2015,3017230-NEI,"1,700.00",BISHOP AUCKLAND TABLE TENNIS CLUB.
Neighbourhood Services,Culture & Sport,Supplies and Services,324001,Provisions,03-Sep-2015,3017240-841707695,"2,378.24",CARLSBERG UK LTD.
Neighbourhood Services,Direct Services,Third Party Payments,430100,Rendered by Private Contractors,03-Sep-2015,3017242-131,"4,367.62",CEILINGS DIRECT LTD.
Neighbourhood Services,Direct Services,Third Party Payments,430100,Rendered by Private Contractors,03-Sep-2015,3017242-132,"1,150.17",CEILINGS DIRECT LTD.
Neighbourhood Services,Technical Services,Stock,926900,Stock in hand-Inventory system,03-Sep-2015,3017252-170893,612.00,COLAS LTD.
Neighbourhood Services,Culture & Sport,Income,720810,Fees and Charges,03-Sep-2015,3017253-PS24136,"30,717.19",COMPETITION LINE UK LTD.
Neighbourhood Services,Culture & Sport,Income,720810,Fees and Charges,03-Sep-2015,3017253-PS24137,"4,884.79",COMPETITION LINE UK LTD.
Neighbourhood Services,Culture & Sport,Income,720810,Fees and Charges,03-Sep-2015,3017253-PS24138,"20,530.94",COMPETITION LINE UK LTD.
Neighbourhood Services,Culture & Sport,Third Party Payments,430100,Rendered by Private Contractors,03-Sep-2015,3017253-PS24139,"7,203.79",COMPETITION LINE UK LTD.
Neighbourhood Services,Direct Services,Third Party Payments,430100,Rendered by Private Contractors,03-Sep-2015,3017267-236,"1,854.90",DPC SCREEDING LTD.
Neighbourhood Services,Technical Services,Premises,120009,Energy Costs,03-Sep-2015,3017270-FA15040,"1,056.93",DURHAM CATHEDRAL (TRADING) LTD.
Neighbourhood Services,Direct Services,Supplies and Services,304259,Equipment and Materials,03-Sep-2015,3017274-0000096994,"1,229.02",EARLEY ORNAMENTALS LTD.
Neighbourhood Services,Direct Services,Premises,150015,Apportioned Exps of Operational Blds,03-Sep-2015,3017279-14327607,"1,400.00",ELLIOTT GROUP LTD.
Neighbourhood Services,Culture & Sport,Supplies and Services,338047,Services,03-Sep-2015,3017282-7/15,"2,000.00",EMMA JAMES T/A SEAMLESS DESIGNS.
Neighbourhood Services,Culture & Sport,Supplies and Services,384540,Miscellaneous Expenses,03-Sep-2015,3017288-SINV00055521,"2,460.00",EXTERION MEDIA.
Neighbourhood Services,Technical Services,Supplies and Services,304358,Equipment and Materials,03-Sep-2015,3017295-10140,"1,040.00",GEORGE VARDY HAULAGE.
Neighbourhood Services,Technical Services,Supplies and Services,304358,Equipment and Materials,03-Sep-2015,3017295-10142,730.00,GEORGE VARDY HAULAGE.
Neighbourhood Services,Technical Services,Supplies and Services,304358,Equipment and Materials,03-Sep-2015,3017295-10143,570.00,GEORGE VARDY HAULAGE.
Neighbourhood Services,Direct Services,Supplies and Services,384999,Miscellaneous Expenses,03-Sep-2015,3017299-0000010484,"10,000.00",GROUNDWORK NORTH EAST.
Neighbourhood Services,Direct Services,Transport,215005,Running Costs of Vehicles,03-Sep-2015,3017301-547452,"16,453.03",HARVEST ENERGY LTD.
Neighbourhood Services,Direct Services,Transport,215005,Running Costs of Vehicles,03-Sep-2015,3017301-548144,"15,791.40",HARVEST ENERGY LTD.
Neighbourhood Services,Direct Services,Third Party Payments,430100,Rendered by Private Contractors,03-Sep-2015,3017306-SIN051048,"25,599.47",HODGSON SAYERS LTD.
Neighbourhood Services,Technical Services,Stock,926900,Stock in hand-Inventory system,03-Sep-2015,3017314-498612,"2,780.40",INSTARMAC GROUP PLC.
Neighbourhood Services,Technical Services,Employees,040149,Recruitment Instruction and Training,03-Sep-2015,3017315-IOSINV007063,680.00,INSTITUTE OF SWIMMING.
Neighbourhood Services,Projects and Business services,Third Party Payments,430114,Rendered by Private Contractors,03-Sep-2015,3017317-95877,"11,482.20",J & B RECYCLING LTD.
Neighbourhood Services,Technical Services,Supplies and Services,304358,Equipment and Materials,03-Sep-2015,3017319-5304971,"1,198.08",JA GILSON (AGRICULTURAL CONTRACTORS) LTD.
Neighbourhood Services,Technical Services,Construction Work,908108,Capital - Surface Dressing,03-Sep-2015,3017320-11495,"1,559.32",JACK COUPE & SONS LTD T/A COUPE LINE.
Neighbourhood Services,Technical Services,Construction Work,908108,Capital - Surface Dressing,03-Sep-2015,3017320-11496,"1,149.61",JACK COUPE & SONS LTD T/A COUPE LINE.
Neighbourhood Services,Technical Services,Construction Work,908105,Construction work,03-Sep-2015,3017320-11524,"1,800.00",JACK COUPE & SONS LTD T/A COUPE LINE.
Neighbourhood Services,Technical Services,Construction Work,908105,Construction work,03-Sep-2015,3017320-11525,"4,200.00",JACK COUPE & SONS LTD T/A COUPE LINE.
Neighbourhood Services,Direct Services,Third Party Payments,430100,Rendered by Private Contractors,03-Sep-2015,3017321-3083,765.40,JAMES INGLEFORD SCAFFOLDING LTD.
Neighbourhood Services,Direct Services,Supplies and Services,304259,Equipment and Materials,03-Sep-2015,3017325-0000192,"4,435.00",JN KEARTON.
Neighbourhood Services,Technical Services,Supplies and Services,304221,Equipment and Materials,03-Sep-2015,3017331-CNI22829/D,681.68,JT DOVE LTD.
Neighbourhood Services,Technical Services,Stock,926900,Stock in hand-Inventory system,03-Sep-2015,3017331-PHSTI25349,"2,063.40",JT DOVE LTD.
Neighbourhood Services,Direct Services,Supplies and Services,304221,Equipment and Materials,03-Sep-2015,3017342-INV-5213433,"2,090.42",LINDAB LTD.
Neighbourhood Services,Culture & Sport,Supplies and Services,338047,Services,03-Sep-2015,3017352-2319.1SC,"2,000.00",MONEYPENNY AGENCY CLIENTS ACCOUNT.
Neighbourhood Services,Direct Services,Third Party Payments,430100,Rendered by Private Contractors,03-Sep-2015,3017378-567,"7,989.17",PARAMOUNT CEILINGS & PARTITIONS.
Neighbourhood Services,Technical Services,Stock,926900,Stock in hand-Inventory system,03-Sep-2015,3017379-XL149944,"1,789.50",PARK ELECTRICAL DISTRIBUTORS LTD.
Neighbourhood Services,Direct Services,Third Party Payments,430100,Rendered by Private Contractors,03-Sep-2015,3017385-80015,550.00,PROTECTOR SECURITY GROUP LTD.
Neighbourhood Services,Culture & Sport,Supplies and Services,384199,Miscellaneous Expenses,03-Sep-2015,3017391-004824,900.00,REG VARDY BAND.
Neighbourhood Services,Direct Services,Vehicles Equipment Furniture and Fittings,912541,Purchase-vehicles,03-Sep-2015,3017400-200701,"23,041.23",S JENNINGS LTD.
Neighbourhood Services,Direct Services,Debtors,930046,Debtor-leasing,03-Sep-2015,3017400-200702,"23,041.23",S JENNINGS LTD.
Neighbourhood Services,Culture & Sport,Supplies and Services,304252,Equipment and Materials,03-Sep-2015,3017401-9417,957.55,SAFE SECURE LOCKER SERVICES LTD.
Neighbourhood Services,Culture & Sport,Supplies and Services,384700,Miscellaneous Expenses,03-Sep-2015,3017413-NEI,"1,400.00",SLAM COMMUNITY DEVELOPMENT TRUST (CDT).
Neighbourhood Services,Culture & Sport,Income,715699,Sales,03-Sep-2015,3017416-GDB000089,955.04,SOCIETY OF LONDON THEATRE.
Neighbourhood Services,Technical Services,Supplies and Services,304221,Equipment and Materials,03-Sep-2015,3017424-074364,"2,604.00",STONEGRAVE AGGREGATES LTD.
Neighbourhood Services,Technical Services,Stock,926900,Stock in hand-Inventory system,03-Sep-2015,3017439-0037273827,779.00,THOMAS & BETTS NETHERLANDS BV.
Neighbourhood Services,Culture & Sport,Supplies and Services,304221,Equipment and Materials,03-Sep-2015,3017442-58,"1,316.66",THRILLS & SKILLS FOR LIFE.
Neighbourhood Services,Direct Services,Supplies and Services,304221,Equipment and Materials,03-Sep-2015,3017444-103919,"1,747.98",TOMMY WARDLE.
Neighbourhood Services,Direct Services,Third Party Payments,430100,Rendered by Private Contractors,03-Sep-2015,3017448-623,"2,295.00",TYNE PLASTERING LTD.
Regeneration & Economic Development,Spatial Policy Planning Assets & Environment,Supplies and Services,338027,Services,03-Sep-2015,3017438,"1,700.00",39 ESSEX CHAMBERS.
Regeneration & Economic Development,Transport and Contracted Services,Vehicles Equipment Furniture and Fittings,912529,Purchase-equipment,03-Sep-2015,3017225-35731,"8,412.14",BAYDALE CONTROL SYSTEMS LTD.
Regeneration & Economic Development,Economic Development and Housing,Supplies and Services,324117,Provisions,03-Sep-2015,3017229-62619827,693.66,BIDVEST FOODSERVICE (FORMERLY 3663).
Regeneration & Economic Development,Economic Development and Housing,Supplies and Services,372009,Subscriptions,03-Sep-2015,3017237-7384A,900.00,BUSINESS FUNDING RESEARCH LTD.
Regeneration & Economic Development,Transport and Contracted Services,Supplies and Services,384899,Miscellaneous Expenses,03-Sep-2015,3017241-011,804.54,CASSOP CUM QUARRINGTON PARISH COUNCIL.
Regeneration & Economic Development,Economic Development and Housing,Supplies and Services,338035,Services,03-Sep-2015,3017246-INV520586,504.75,CHARTERED INSTITUTE OF ENVIRONMENTAL HEALTH.
Regeneration & Economic Development,Economic Development and Housing,Premises,106099,Centrally Controlled Rep and Maint,03-Sep-2015,3017312-31619052,569.00,INITIAL WASHROOM SOLUTIONS.
Regeneration & Economic Development,Economic Development and Housing,Cap Exp on Grants & Other Financial Assistance (REFCUS),918401,Capital grants,03-Sep-2015,3017329-RED-08-2015-088,"4,000.00",JP DONELLY T/A UNIVERSAL JOINERY SERVICES.
Regeneration & Economic Development,Economic Development and Housing,Income,740021,Other Income,03-Sep-2015,3017335-380118INV,"1,059.77",KNIGHT FRANK LLP.
Regeneration & Economic Development,Economic Development and Housing,Supplies and Services,384700,Miscellaneous Expenses,03-Sep-2015,3017354-013,"1,000.00",MR DAVID BOYLE T/A MFT ENGINEERING.
Regeneration & Economic Development,Spatial Policy Planning Assets & Environment,Supplies and Services,304999,Equipment and Materials,03-Sep-2015,3017371-SIN001386,"2,081.24",NORTHUMBERLAND NATIONAL PARK AUTHORITY.
Regeneration & Economic Development,Transport and Contracted Services,Third Party Payments,430100,Rendered by Private Contractors,03-Sep-2015,3017387-5141,"4,754.43",QW SECURITY LTD.
Regeneration & Economic Development,Transport and Contracted Services,Supplies and Services,342053,Computers and Communications,03-Sep-2015,3017408-M0715036,750.00,SIAS LTD.
Regeneration & Economic Development,Economic Development and Housing,Supplies and Services,342053,Computers and Communications,03-Sep-2015,3017434-38308,"3,392.00",TEXTHELP LTD.
Resources,Legal & Democratic Services,Supplies and Services,338042,Services,03-Sep-2015,3017262-315547/INVBD78,540.00,DERE STREET BARRISTERS.
Resources,I.C.T. Services,Supplies and Services,342051,Computers and Communications,03-Sep-2015,3017324-16811,980.00,JC APPLICATIONS DEVELOPMENT LTD.
Children and Adult Services,Commissioning inc Supporting People,Third Party Payments,479111,Purchase of Care,04-Sep-2015,3017483-0448,"108,108.25",AGE UK COUNTY DURHAM.
Children and Adult Services,Public Health,Third Party Payments,460803,Contract Payments,04-Sep-2015,3017493-DVMM/20NRT,532.54,ASDA PHARMACY.
Children and Adult Services,Public Health,Third Party Payments,460803,Contract Payments,04-Sep-2015,3017495-DPQX/24NRT,602.23,ASDA PHARMACY.
Children and Adult Services,Public Health,Third Party Payments,460803,Contract Payments,04-Sep-2015,3017496-LJHY/17NRT,675.10,ASHCHEM LTD.
Children and Adult Services,Public Health,Third Party Payments,460803,Contract Payments,04-Sep-2015,3017502-DXGC/17NRT,"1,281.19",BEWICK PHARMACY.
Children and Adult Services,Public Health,Third Party Payments,460803,Contract Payments,04-Sep-2015,3017512-DZJM/19NRT,632.59,BOOTS THE CHEMISTS LTD.
Children and Adult Services,Public Health,Third Party Payments,460803,Contract Payments,04-Sep-2015,3017518-DXNF/16NRT,884.69,BRITTON & ROBSON LTD.
Children and Adult Services,Public Health,Third Party Payments,460803,Contract Payments,04-Sep-2015,3017529-FDDM/13NRT,997.82,CHEAPSIDE PHARMACY.
Children and Adult Services,Childrens Services,Supplies and Services,338044,Services,04-Sep-2015,3017559-SC/LS137,520.65,DR SUSAN COOPER.
Children and Adult Services,Childrens Services,Third Party Payments,425040,Rendered by Voluntary Organisations,04-Sep-2015,3017580-124162,820.00,FOSTER CARES LTD.
Children and Adult Services,Childrens Services,Third Party Payments,425040,Rendered by Voluntary Organisations,04-Sep-2015,3017580-124163,730.00,FOSTER CARES LTD.
Children and Adult Services,Public Health,Third Party Payments,460803,Contract Payments,04-Sep-2015,3017582-FNCW/20NRT,"1,303.50",G WHITFIELD LTD.
Children and Adult Services,Commissioning inc Supporting People,Third Party Payments,473111,Purchase of Care,04-Sep-2015,3017626-RINVTP/00370211,"4,128.14",LEONARD CHESHIRE DISABILITY.
Children and Adult Services,Childrens Services,Supplies and Services,384362,Miscellaneous Expenses,04-Sep-2015,3017641-0006,780.00,MARGOT SKELTON T/A JITTABUGS DURHAM.
Children and Adult Services,Central Charges (CYPS),Employees,005001,Pay,04-Sep-2015,3017651-RES-09-2015-021,"21,000.00",REDACTED - PAYMENT TO INDIVIDUAL
Children and Adult Services,Public Health,Third Party Payments,460803,Contract Payments,04-Sep-2015,3017688-A83074,509.50,PEASEWAY PARTNERSHIP.
Children and Adult Services,Public Health,Third Party Payments,460803,Contract Payments,04-Sep-2015,3017690-FMFT/10NRT,623.46,PHILLIPS CHEMISTS LTD.
Children and Adult Services,Childrens Services,Employees,040149,Recruitment Instruction and Training,04-Sep-2015,3017709-5531,"1,145.00",RIGHT 2 WRITE LTD.
Children and Adult Services,Planning & Service Strategy,Employees,040149,Recruitment Instruction and Training,04-Sep-2015,3017737-12089413,"11,414.00",SOUTH TYNESIDE COUNCIL.
Children and Adult Services,Head of Adults,Supplies and Services,328041,Clothing Uniforms and Laundry,04-Sep-2015,3017760-N/IN152973,897.60,THOMAS OWEN & SONS (NEWCASTLE) LTD.
Children and Adult Services,Head of Adults,Supplies and Services,336005,Advertising,04-Sep-2015,3017766-2380946A,"1,150.00",TRINITY MIRROR PUBLISHING LTD.
Children and Adult Services,Public Health,Third Party Payments,460803,Contract Payments,04-Sep-2015,3017780-FRAK/20NRT,883.76,WG CLEMITSONS LTD.
Dedicated Schools Grant,Dedicated Schools Grant,Central Support and Capital,689996,Unclassified,04-Sep-2015,3017478-CAS-09-2015-021,"21,954.31",ACRE RIGG ACADEMY.
Dedicated Schools Grant,Dedicated Schools Grant,Supplies and Services,304259,Equipment and Materials,04-Sep-2015,3017498-65759,"1,196.88",BAILEYS BLINDS LTD.
Dedicated Schools Grant,Dedicated Schools Grant,Central Support and Capital,689996,Unclassified,04-Sep-2015,3017534-CAS-09-2015-026,"25,915.10",CLEVES CROSS ACADEMY.
Dedicated Schools Grant,Dedicated Schools Grant,Central Support and Capital,689996,Unclassified,04-Sep-2015,3017564-CAS-09-2015-010,"3,207.23",EASINGTON ACADEMY.
Dedicated Schools Grant,Dedicated Schools Grant,Central Support and Capital,689996,Unclassified,04-Sep-2015,3017573-CAS-09-2015-008,"5,064.88",EXCEL ACADEMY PARTNERSHIP T/A FRAMWELLGATE SCH DURHAM.
Dedicated Schools Grant,Dedicated Schools Grant,Central Support and Capital,689995,Unclassified,04-Sep-2015,3017594-CAS-09-2015-007,"18,679.89",HERMITAGE ACADEMY.
Dedicated Schools Grant,Dedicated Schools Grant,Central Support and Capital,689996,Unclassified,04-Sep-2015,3017594-CAS-09-2015-014,"17,721.79",HERMITAGE ACADEMY.
Dedicated Schools Grant,Dedicated Schools Grant,Central Support and Capital,689996,Unclassified,04-Sep-2015,3017623-CAS-09-2015-017,"16,403.04",KING JAMES I ACADEMY.
Dedicated Schools Grant,Dedicated Schools Grant,Central Support and Capital,689996,Unclassified,04-Sep-2015,3017660-CAS-09-2015-023,"3,207.22",NEW COLLEGE ACADEMIES TRUST - CONSETT ACADEMY.
Dedicated Schools Grant,Dedicated Schools Grant,Central Support and Capital,689996,Unclassified,04-Sep-2015,3017686-CAS-09-2015-022,"6,568.07",PARK VIEW ACADEMY.
Dedicated Schools Grant,Dedicated Schools Grant,Central Support and Capital,689996,Unclassified,04-Sep-2015,3017705-CAS-09-2015-025,"36,445.24",RIBBON ACADEMY TRUST.
Dedicated Schools Grant,Dedicated Schools Grant,Central Support and Capital,689996,Unclassified,04-Sep-2015,3017740-CAS-09-2015-012,"9,656.43",ST BEDES CATHOLIC ACADEMY (LANCHESTER).
Dedicated Schools Grant,Dedicated Schools Grant,Central Support and Capital,689996,Unclassified,04-Sep-2015,3017741-CAS-09-2015-011,"1,890.44",ST JOHN`S SCHOOL & SIXTH FORM COLLEGE A CATHOLIC ACADEMY.
Dedicated Schools Grant,Dedicated Schools Grant,Central Support and Capital,689996,Unclassified,04-Sep-2015,3017742-CAS-09-2015-015,"1,734.90",STAINDROP SCHOOL.
Dedicated Schools Grant,Dedicated Schools Grant,Central Support and Capital,689996,Unclassified,04-Sep-2015,3017746-CAS-09-2015-019,"23,449.61",STEPHENSON WAY COMMUNITY PRIMARY SCHOOL.
Dedicated Schools Grant,Dedicated Schools Grant,Central Support and Capital,689996,Unclassified,04-Sep-2015,3017756-CAS-09-2015-013,"2,351.18",TEESDALE EDUCATION TRUST.
Dedicated Schools Grant,Dedicated Schools Grant,Central Support and Capital,689996,Unclassified,04-Sep-2015,3017758-CAS-09-2015-009,"5,897.85",THE ACADEMY AT SHOTTON HALL.
Dedicated Schools Grant,Dedicated Schools Grant,Central Support and Capital,689996,Unclassified,04-Sep-2015,3017770-CAS-09-2015-020,"10,366.04",VICTORIA LANE ACADEMY.
Dedicated Schools Grant,Dedicated Schools Grant,Central Support and Capital,689996,Unclassified,04-Sep-2015,3017783-CAS-09-2015-016,"1,734.90",WOODHAM ACADEMY.
Neighbourhood Services,Direct Services,Third Party Payments,430100,Rendered by Private Contractors,04-Sep-2015,3017476-2184,"4,537.50",A & J GUTHRIE.
Neighbourhood Services,Technical Services,Supplies and Services,304221,Equipment and Materials,04-Sep-2015,3017485-21891100,"1,238.95",AGGREGATE INDUSTRIES UK LTD.
Neighbourhood Services,Technical Services,Supplies and Services,304221,Equipment and Materials,04-Sep-2015,3017485-21891101,952.35,AGGREGATE INDUSTRIES UK LTD.
Neighbourhood Services,Technical Services,Supplies and Services,304221,Equipment and Materials,04-Sep-2015,3017485-21891102,742.10,AGGREGATE INDUSTRIES UK LTD.
Neighbourhood Services,Technical Services,Supplies and Services,304221,Equipment and Materials,04-Sep-2015,3017485-21891106,908.84,AGGREGATE INDUSTRIES UK LTD.
Neighbourhood Services,Technical Services,Supplies and Services,304221,Equipment and Materials,04-Sep-2015,3017485-21891107,518.31,AGGREGATE INDUSTRIES UK LTD.
Neighbourhood Services,Direct Services,Third Party Payments,430100,Rendered by Private Contractors,04-Sep-2015,3017487-47860,"1,320.18",ALAN REED LTD.
Neighbourhood Services,Direct Services,Transport,210057,Repair and Maintenance of Vehicles,04-Sep-2015,3017499-25159840,568.13,BELL TRUCK SALES LTD.
Neighbourhood Services,Direct Services,Third Party Payments,430100,Rendered by Private Contractors,04-Sep-2015,3017525-17220,"4,577.60",CATHEDRAL LOCK & SAFE SERVICES LTD.
Neighbourhood Services,Culture & Sport,Premises,106082,Centrally Controlled Rep and Maint,04-Sep-2015,3017568-15500485,847.50,ENER-G COMBINED POWER LTD.
Neighbourhood Services,Culture & Sport,Premises,106082,Centrally Controlled Rep and Maint,04-Sep-2015,3017568-15500503,683.16,ENER-G COMBINED POWER LTD.
Neighbourhood Services,Culture & Sport,Premises,106082,Centrally Controlled Rep and Maint,04-Sep-2015,3017568-15500747,683.06,ENER-G COMBINED POWER LTD.
Neighbourhood Services,Culture & Sport,Premises,106082,Centrally Controlled Rep and Maint,04-Sep-2015,3017568-15500805,847.50,ENER-G COMBINED POWER LTD.
Neighbourhood Services,Culture & Sport,Construction Work,908105,Construction work,04-Sep-2015,3017572-INS1,"45,121.69",ESH CONSTRUCTION LTD FORMERLY LUMSDEN & CARROLL CONSTRUCTION LTD.
Neighbourhood Services,Technical Services,Supplies and Services,304357,Equipment and Materials,04-Sep-2015,3017583-DCC160815,"12,601.61",GAP GROUP LTD.
Neighbourhood Services,Culture & Sport,Premises,145023,Cleaning and Domestic Supplies,04-Sep-2015,3017588-08/463407,895.69,GREENHAM TRADING LTD.
Neighbourhood Services,Direct Services,Transport,215005,Running Costs of Vehicles,04-Sep-2015,3017592-547453,"4,401.50",HARVEST ENERGY LTD.
Neighbourhood Services,Direct Services,Transport,215022,Running Costs of Vehicles,04-Sep-2015,3017592-547455,"1,272.33",HARVEST ENERGY LTD.
Neighbourhood Services,Direct Services,Third Party Payments,430101,Rendered by Private Contractors,04-Sep-2015,3017596-5067519330,508.50,HI Q TYRESERVICES.
Neighbourhood Services,Direct Services,Third Party Payments,430101,Rendered by Private Contractors,04-Sep-2015,3017596-5067524413,933.00,HI Q TYRESERVICES.
Neighbourhood Services,Technical Services,Construction Work,908108,Capital - Surface Dressing,04-Sep-2015,3017606-11497,"1,624.49",JACK COUPE & SONS LTD T/A COUPE LINE.
Neighbourhood Services,Technical Services,Construction Work,908105,Construction work,04-Sep-2015,3017606-11526,"4,158.00",JACK COUPE & SONS LTD T/A COUPE LINE.
Neighbourhood Services,Culture & Sport,Supplies and Services,304083,Equipment and Materials,04-Sep-2015,3017607-29973,"1,138.00",JBL SERVICES LTD.
Neighbourhood Services,Culture & Sport,Employees,080025,Agency Staff,04-Sep-2015,3017612-GALA2015AUG,"1,640.00",JOHN MURDOCH.
Neighbourhood Services,Technical Services,Third Party Payments,430100,Rendered by Private Contractors,04-Sep-2015,3017613-0000078801,"13,999.00",JOHN WADE (HAULAGE) LTD.
Neighbourhood Services,Direct Services,Third Party Payments,430100,Rendered by Private Contractors,04-Sep-2015,3017615-65222443,500.00,JOHNSTON SWEEPERS LTD.
Neighbourhood Services,Technical Services,Supplies and Services,304221,Equipment and Materials,04-Sep-2015,3017617-BII169837,541.60,JT DOVE LTD.
Neighbourhood Services,Technical Services,Stock,926900,Stock in hand-Inventory system,04-Sep-2015,3017617-PHBII25369,873.00,JT DOVE LTD.
Neighbourhood Services,Direct Services,Supplies and Services,304999,Equipment and Materials,04-Sep-2015,3017622-SI02-0075410,"5,009.54",KILLGERM CHEMICALS LTD.
Neighbourhood Services,Technical Services,Supplies and Services,304357,Equipment and Materials,04-Sep-2015,3017637-7883007,"1,483.68",MABEY HIRE SERVICES LTD.
Neighbourhood Services,Projects and Business services,Third Party Payments,430121,Rendered by Private Contractors,04-Sep-2015,3017663-134003385,861.61,NEWEY & EYRE LTD.
Neighbourhood Services,Technical Services,Employees,040149,Recruitment Instruction and Training,04-Sep-2015,3017665-7549,"1,795.00",NGST (NEWCASTLE) LTD.
Neighbourhood Services,Direct Services,Third Party Payments,430100,Rendered by Private Contractors,04-Sep-2015,3017675-15080031,"6,857.50",NOVUS PROPERTY SOLUTIONS LTD.
Neighbourhood Services,Technical Services,Premises,120009,Energy Costs,04-Sep-2015,3017678-NNO7QDLF,"247,414.17",NPOWER.
Neighbourhood Services,Technical Services,Stock,926900,Stock in hand-Inventory system,04-Sep-2015,3017684-XL150163,"2,205.00",PARK ELECTRICAL DISTRIBUTORS LTD.
Neighbourhood Services,Technical Services,Stock,926900,Stock in hand-Inventory system,04-Sep-2015,3017684-XL150167,"1,764.00",PARK ELECTRICAL DISTRIBUTORS LTD.
Neighbourhood Services,Technical Services,Stock,926900,Stock in hand-Inventory system,04-Sep-2015,3017684-XL150269,"3,800.00",PARK ELECTRICAL DISTRIBUTORS LTD.
Neighbourhood Services,Direct Services,Supplies and Services,304221,Equipment and Materials,04-Sep-2015,3017694-INV213415,"1,911.02",POINTER FIRE LTD.
Neighbourhood Services,Technical Services,Third Party Payments,430100,Rendered by Private Contractors,04-Sep-2015,3017701-2580/150739,"143,129.58",RAINTON CONSTRUCTION LTD.
Neighbourhood Services,Direct Services,Vehicles Equipment Furniture and Fittings,912541,Purchase-vehicles,04-Sep-2015,3017722-200706,"23,041.23",S JENNINGS LTD.
Neighbourhood Services,Direct Services,Vehicles Equipment Furniture and Fittings,912541,Purchase-vehicles,04-Sep-2015,3017722-200707,"14,132.25",S JENNINGS LTD.
Neighbourhood Services,Direct Services,Vehicles Equipment Furniture and Fittings,912541,Purchase-vehicles,04-Sep-2015,3017722-200708,"14,132.25",S JENNINGS LTD.
Neighbourhood Services,Culture & Sport,Supplies and Services,384237,Miscellaneous Expenses,04-Sep-2015,3017735-CT05/8/15,630.00,SLAM COMMUNITY DEVELOPMENT TRUST (CDT).
Neighbourhood Services,Direct Services,Supplies and Services,304221,Equipment and Materials,04-Sep-2015,3017751-JE00895/TL/EP,"1,264.64",T MANNERS & SONS LTD.
Neighbourhood Services,Direct Services,Supplies and Services,304221,Equipment and Materials,04-Sep-2015,3017751-JE00938/TL/EP,"1,767.25",T MANNERS & SONS LTD.
Neighbourhood Services,Culture & Sport,Supplies and Services,324117,Provisions,04-Sep-2015,3017754-9410932420,645.35,TCHIBO COFFEE INTERNATIONAL LTD.
Neighbourhood Services,Direct Services,Transport,210057,Repair and Maintenance of Vehicles,04-Sep-2015,3017757-96315759,697.63,TERBERG MATEC (UK) LTD.
Neighbourhood Services,Direct Services,Transport,210057,Repair and Maintenance of Vehicles,04-Sep-2015,3017757-96315760,594.79,TERBERG MATEC (UK) LTD.
Neighbourhood Services,Direct Services,Transport,210057,Repair and Maintenance of Vehicles,04-Sep-2015,3017757-96315952,"2,727.72",TERBERG MATEC (UK) LTD.
Neighbourhood Services,Technical Services,Stock,926900,Stock in hand-Inventory system,04-Sep-2015,3017761-SIP-145213,"2,029.74",THYSSENKRUPP ENCASA A DIVISION OF THYSSENKRUPP ACCESS LTD.
Neighbourhood Services,Direct Services,Supplies and Services,304221,Equipment and Materials,04-Sep-2015,3017763-103996,826.69,TOMMY WARDLE.
Neighbourhood Services,Direct Services,Supplies and Services,304221,Equipment and Materials,04-Sep-2015,3017763-104081,"4,760.00",TOMMY WARDLE.
Neighbourhood Services,Direct Services,Supplies and Services,304221,Equipment and Materials,04-Sep-2015,3017781-2000186,593.73,WILKIES.
Neighbourhood Services,Direct Services,Transport,210057,Repair and Maintenance of Vehicles,04-Sep-2015,3017786-SVI34309,535.04,ZOELLER WASTE SYSTEMS LTD.
Regeneration & Economic Development,Economic Development and Housing,Premises,120021,Energy Costs,04-Sep-2015,3017537-10392121,767.99,CORONA ENERGY RETAIL 2 LTD.
Regeneration & Economic Development,Spatial Policy Planning Assets & Environment,Supplies and Services,384964,Miscellaneous Expenses,04-Sep-2015,3017549-1504,"8,950.00",DIFFERENTIA LTD.
Regeneration & Economic Development,Spatial Policy Planning Assets & Environment,Supplies and Services,384159,Miscellaneous Expenses,04-Sep-2015,3017562-139,"6,988.80",EAGLE SECURITY BISHOP AUCKLAND LTD.
Regeneration & Economic Development,Economic Development and Housing,Cap Exp on Grants & Other Financial Assistance (REFCUS),918401,Capital grants,04-Sep-2015,3017605-015,"4,800.00",JA SEMPLE T/A PLUMBTITE PLUMBING SERVICES
Regeneration & Economic Development,Economic Development and Housing,Cap Exp on Grants & Other Financial Assistance (REFCUS),918401,Capital grants,04-Sep-2015,3017650-016,564.21,REDACTED - PAYMENT TO INDIVIDUAL
Regeneration & Economic Development,Economic Development and Housing,Supplies and Services,384700,Miscellaneous Expenses,04-Sep-2015,3017652-019,"1,260.00",MR M BROWN.......
Regeneration & Economic Development,Spatial Policy Planning Assets & Environment,Supplies and Services,338027,Services,04-Sep-2015,3017714-DHM002,"1,300.00",ROSALIND FARROW.
Resources,I.C.T. Services,Debtors,930167,Debtor-Telephone Holding Account,04-Sep-2015,3017517,"3,377.48",BRITISH TELECOMMUNICATIONS PLC.
Resources,I.C.T. Services,Supplies and Services,344033,Telephones,04-Sep-2015,3017519-13843179,812.58,CABLE & WIRELESS UK.
Resources,I.C.T. Services,Supplies and Services,332029,Printing Stationery and Gen Off Exps,04-Sep-2015,3017567-96403,618.00,ELANDERS UK.
Resources,I.C.T. Services,Supplies and Services,304303,Equipment and Materials,04-Sep-2015,3017589-INV0159424,"3,053.00",GV MULTI MEDIA LTD.
Resources,Financial Services,Supplies and Services,384199,Miscellaneous Expenses,04-Sep-2015,3017629-93216,"1,385.08",LIBERATA UK LTD T/A CAPACITYGRID.
Resources,I.C.T. Services,Supplies and Services,332029,Printing Stationery and Gen Off Exps,04-Sep-2015,3017630-2211,717.00,LIDDLE FOIL BLOCKING.
Resources,I.C.T. Services,Supplies and Services,342051,Computers and Communications,04-Sep-2015,3017679-205841,"42,450.00",NETWORK TECHNOLOGY SOLUTIONS (UK) LTD (NTS).
Resources,I.C.T. Services,Supplies and Services,372009,Subscriptions,04-Sep-2015,3017725-10374,"3,300.00",SATISNET LTD.
Resources,Corporate Finance,Supplies and Services,352001,Conference Expenses,04-Sep-2015,3017765-1655694-80444224,558.00,TRINITY EVENT SOLUTIONS LTD.
Assistant Chief Executive,Partnerships & Community Engagement Div.,Supplies and Services,384085,Miscellaneous Expenses,07-Sep-2015,3017829-BLAJ08-15,"1,050.00",BOWBURN LOCAL HISTORY SOCIETY.
Assistant Chief Executive,Partnerships & Community Engagement Div.,Supplies and Services,384085,Miscellaneous Expenses,07-Sep-2015,3017860-PATA05-15STAM07-15,500.00,CROOK TOWN WANDERERS.
Assistant Chief Executive,Partnerships & Community Engagement Div.,Supplies and Services,384085,Miscellaneous Expenses,07-Sep-2015,3017966-JOHO04-15YOUR05-15,"1,688.00",LANCHESTER PARISH COUNCIL.
Assistant Chief Executive,Partnerships & Community Engagement Div.,Supplies and Services,384085,Miscellaneous Expenses,07-Sep-2015,3018032-FORS04-15SHAK04-15,500.00,PARKSIDE & DISTRICT COMMUNITY ASSOCIATION.
Assistant Chief Executive,Partnerships & Community Engagement Div.,Supplies and Services,384085,Miscellaneous Expenses,07-Sep-2015,3018099-ORMR03-15,750.00,ST ANTONY`S PRIORY.
Children and Adult Services,Childrens Services,Transport,230710,Contract Hire,07-Sep-2015,3017804-L01136444,"2,076.00",ARNOLD CLARK FINANCE LTD.
Children and Adult Services,Public Health,Third Party Payments,460803,Contract Payments,07-Sep-2015,3017817-DYPD/15NRT,911.31,BESTWAY NATIONAL CHEMIST LTD T/A WELL.
Children and Adult Services,Public Health,Third Party Payments,460803,Contract Payments,07-Sep-2015,3017825-DPWT/18NRT,991.05,BOOTS THE CHEMISTS LTD.
Children and Adult Services,Public Health,Third Party Payments,460803,Contract Payments,07-Sep-2015,3017827-FGMG/11NRT,714.52,BOOTS THE CHEMISTS LTD.
Children and Adult Services,Education,Transport,235057,Public Transport,07-Sep-2015,3017843-30/9/14-6/11/14,633.94,CDC ENTERPRISE AGENCY.
Children and Adult Services,Education,Transport,235057,Public Transport,07-Sep-2015,3017843-TRAV,602.41,CDC ENTERPRISE AGENCY.
Children and Adult Services,Childrens Services,Transport,235073,Public Transport,07-Sep-2015,3017850-C/8856,850.00,COCHRANES T/A KELVIN TRAVEL.
Children and Adult Services,Public Health,Third Party Payments,460802,Contract Payments,07-Sep-2015,3017874-143/16/1207,"12,000.00",DISC LTD.
Children and Adult Services,Head of Adults,Supplies and Services,338365,Services,07-Sep-2015,3017875-8947,650.00,DOLPHIN STAIRLIFTS (NORTH EAST) LTD.
Children and Adult Services,Education,Construction Work,908105,Construction work,07-Sep-2015,3017878-5309,"4,279.00",DUNELM GEOTECHNICAL & ENVIRONMENTAL LTD.
Children and Adult Services,Childrens Services,Supplies and Services,384638,Miscellaneous Expenses,07-Sep-2015,3017879-02-2015-16,"5,625.00",DURHAM AREA DISABILITY LEISURE GROUP.
Children and Adult Services,Childrens Services,Third Party Payments,425040,Rendered by Voluntary Organisations,07-Sep-2015,3017898-0000056682,"2,642.86",FIVE RIVERS CHILD CARE LTD.
Children and Adult Services,Public Health,Third Party Payments,460803,Contract Payments,07-Sep-2015,3017923-FFFR/19NRT,720.27,HANCOCK & AINSLEY CHEMIST LTD.
Children and Adult Services,Childrens Services,Supplies and Services,304259,Equipment and Materials,07-Sep-2015,3017925-933795,"1,196.00",HEART OF ENGLAND NHS FOUNDATION TRUST.
Children and Adult Services,Planning & Service Strategy,Supplies and Services,338089,Services,07-Sep-2015,3017933-1876,"1,600.00",HSF TRAINING LTD.
Children and Adult Services,Public Health,Third Party Payments,460803,Contract Payments,07-Sep-2015,3017948-FAYZ/24NRT,855.38,JOHN LOW LTD T/A MOORSIDE PHARMACY.
Children and Adult Services,Head of Adults,Premises,125009,Rents,07-Sep-2015,3017963-394643,782.50,KNIGHT FRANK LLP.
Children and Adult Services,Public Health,Third Party Payments,460803,Contract Payments,07-Sep-2015,3017972-FLRB/17NRT,702.06,LLOYDS PHARMACY.
Children and Adult Services,Public Health,Third Party Payments,460803,Contract Payments,07-Sep-2015,3017974-DWGM,597.79,LLOYDS PHARMACY.
Children and Adult Services,Public Health,Third Party Payments,460803,Contract Payments,07-Sep-2015,3017979-FDWJ/15NRT,509.80,LYDON PHARMACY GROUP LTD.
Children and Adult Services,Public Health,Third Party Payments,460803,Contract Payments,07-Sep-2015,3017980-FPZD/22NRT,833.89,LYDON PHARMACY GROUP LTD.
Children and Adult Services,Public Health,Third Party Payments,460803,Contract Payments,07-Sep-2015,3017982-LGFQ/22NRT,605.93,M & M PHARMACIES LTD.
Children and Adult Services,Public Health,Third Party Payments,460803,Contract Payments,07-Sep-2015,3017985-DWMD,982.38,M & M PHARMACIES LTD.
Children and Adult Services,Public Health,Third Party Payments,460803,Contract Payments,07-Sep-2015,3017986-DXDN/13NRT,884.80,M WHITFIELD LTD.
Children and Adult Services,Public Health,Third Party Payments,460803,Contract Payments,07-Sep-2015,3017993-DTJG/16NRT,507.37,MANICHEM LTD.
Children and Adult Services,Childrens Services,Supplies and Services,384302,Miscellaneous Expenses,07-Sep-2015,3018019-1630,525.00,NORTH EAST DANCE CIC.
Children and Adult Services,Public Health,Third Party Payments,460803,Contract Payments,07-Sep-2015,3018042-DQWG/19NRT,754.45,PHILLIPS CHEMISTS LTD.
Children and Adult Services,Public Health,Third Party Payments,460803,Contract Payments,07-Sep-2015,3018043-FTDK/18NRT,720.71,PHILLIPS CHEMISTS LTD.
Children and Adult Services,Public Health,Third Party Payments,460803,Contract Payments,07-Sep-2015,3018063-FCTK/16NRT,609.66,ROBERTS & ROBERTS LTD T/A HIGGINBOTTOM PHARMACY.
Children and Adult Services,Childrens Services,Supplies and Services,340001,Postages,07-Sep-2015,3018066-1801714266,787.00,ROYAL MAIL GROUP PLC.
Children and Adult Services,Childrens Services,Supplies and Services,364352,Grants to Voluntary Organisations,07-Sep-2015,3018103-D1IN/00019509,"1,510.82",STONHAM HOUSING ASSOCIATION LTD.
Children and Adult Services,Childrens Services,Supplies and Services,364352,Grants to Voluntary Organisations,07-Sep-2015,3018103-D1IN/00019511,"1,307.02",STONHAM HOUSING ASSOCIATION LTD.
Children and Adult Services,Childrens Services,Supplies and Services,364352,Grants to Voluntary Organisations,07-Sep-2015,3018103-D1IN/00019512,"1,307.02",STONHAM HOUSING ASSOCIATION LTD.
Children and Adult Services,Childrens Services,Supplies and Services,364352,Grants to Voluntary Organisations,07-Sep-2015,3018103-D1IN/00019513,"1,122.72",STONHAM HOUSING ASSOCIATION LTD.
Children and Adult Services,Public Health,Third Party Payments,460803,Contract Payments,07-Sep-2015,3018107-LQPJ/18NRT,777.60,T & J HEALTHCARE LTD T/A STATION ROAD PHARMACY..
Children and Adult Services,Public Health,Third Party Payments,460803,Contract Payments,07-Sep-2015,3018151-DWFD/13NRT,"1,324.46",WHITWORTH CHEMISTS LTD.
Dedicated Schools Grant,Dedicated Schools Grant,Central Support and Capital,689996,Unclassified,07-Sep-2015,3018119-CAS-09-2015-018,"11,850.84",THE SHOTTON HALL LEARNING TRUST.
Neighbourhood Services,Culture & Sport,Supplies and Services,304259,Equipment and Materials,07-Sep-2015,3017790-116265984,"1,245.82",AC ENTERTAINMENT TECHNOLOGIES.
Neighbourhood Services,Technical Services,Employees,080025,Agency Staff,07-Sep-2015,3017793-28227281,"7,356.98",AECOM LTD.
Neighbourhood Services,Technical Services,Supplies and Services,304221,Equipment and Materials,07-Sep-2015,3017795-21897801,"1,275.32",AGGREGATE INDUSTRIES UK LTD.
Neighbourhood Services,Technical Services,Supplies and Services,304221,Equipment and Materials,07-Sep-2015,3017795-21897802,970.06,AGGREGATE INDUSTRIES UK LTD.
Neighbourhood Services,Technical Services,Supplies and Services,304221,Equipment and Materials,07-Sep-2015,3017795-21897803,752.04,AGGREGATE INDUSTRIES UK LTD.
Neighbourhood Services,Technical Services,Supplies and Services,304221,Equipment and Materials,07-Sep-2015,3017795-21897804,"12,474.78",AGGREGATE INDUSTRIES UK LTD.
Neighbourhood Services,Technical Services,Supplies and Services,304221,Equipment and Materials,07-Sep-2015,3017795-21897805,"1,231.43",AGGREGATE INDUSTRIES UK LTD.
Neighbourhood Services,Technical Services,Supplies and Services,304221,Equipment and Materials,07-Sep-2015,3017795-21897806,"1,743.72",AGGREGATE INDUSTRIES UK LTD.
Neighbourhood Services,Technical Services,Supplies and Services,304221,Equipment and Materials,07-Sep-2015,3017795-21905121,"1,226.86",AGGREGATE INDUSTRIES UK LTD.
Neighbourhood Services,Technical Services,Supplies and Services,304221,Equipment and Materials,07-Sep-2015,3017795-21905122,651.01,AGGREGATE INDUSTRIES UK LTD.
Neighbourhood Services,Projects and Business services,Third Party Payments,430116,Rendered by Private Contractors,07-Sep-2015,3017808-3012,"7,000.00",AUTOMATIC FLARE SYSTEMS LTD.
Neighbourhood Services,Culture & Sport,Supplies and Services,384540,Miscellaneous Expenses,07-Sep-2015,3017814-GTT43415,595.00,BEAU BUSINESS MEDIA LTD.
Neighbourhood Services,Direct Services,Third Party Payments,430100,Rendered by Private Contractors,07-Sep-2015,3017840-17230,"1,884.76",CATHEDRAL LOCK & SAFE SERVICES LTD.
Neighbourhood Services,Direct Services,Transport,215005,Running Costs of Vehicles,07-Sep-2015,3017844-4879558,958.10,CERTAS ENERGY UK LTD.
Neighbourhood Services,Technical Services,Stock,926900,Stock in hand-Inventory system,07-Sep-2015,3017845-0386746,"2,800.00",CHAMBERLAIN DOORS LTD.
Neighbourhood Services,Technical Services,Premises,150015,Apportioned Exps of Operational Blds,07-Sep-2015,3017849-26042,862.47,CLEE HILL PLANT LTD.
Neighbourhood Services,Technical Services,Supplies and Services,304221,Equipment and Materials,07-Sep-2015,3017863-302601,532.30,DACRYLATE PAINTS LTD.
Neighbourhood Services,Technical Services,Supplies and Services,342033,Computers and Communications,07-Sep-2015,3017868-7402229274,"4,352.00",DELL COMPUTER CORPORATION LTD.
Neighbourhood Services,Culture & Sport,Supplies and Services,384199,Miscellaneous Expenses,07-Sep-2015,3017880-21567,510.00,DURHAM CITY COACHES.
Neighbourhood Services,Culture & Sport,Supplies and Services,384199,Miscellaneous Expenses,07-Sep-2015,3017881-160815,600.00,DURHAM MARKETS CO.
Neighbourhood Services,Culture & Sport,Supplies and Services,304221,Equipment and Materials,07-Sep-2015,3017885,500.00,DUSK `TIL DAWN ENTERTAINMENT LTD.
Neighbourhood Services,Direct Services,Supplies and Services,304259,Equipment and Materials,07-Sep-2015,3017888-5080427,"3,739.48",EAST RIDING HORTICULTURE LTD.
Neighbourhood Services,Direct Services,Supplies and Services,304259,Equipment and Materials,07-Sep-2015,3017890-IN108228,"5,700.00",EGBERT H TAYLOR & CO LTD.
Neighbourhood Services,Technical Services,Stock,926900,Stock in hand-Inventory system,07-Sep-2015,3017901-692540,500.47,FRED WILLIAMSON & SONS LTD.
Neighbourhood Services,Technical Services,Supplies and Services,304252,Equipment and Materials,07-Sep-2015,3017904-007051252,"10,300.00",GAP GROUP LTD.
Neighbourhood Services,Technical Services,Supplies and Services,304221,Equipment and Materials,07-Sep-2015,3017909-692015,"2,532.10",GLASDON UK LTD.
Neighbourhood Services,Culture & Sport,Supplies and Services,308011,Furniture,07-Sep-2015,3017913-090127,"1,272.60",GODFREY SYRETT LTD.
Neighbourhood Services,Technical Services,Third Party Payments,430100,Rendered by Private Contractors,07-Sep-2015,3017914-30708,640.00,GRAB & DELIVER LTD.
Neighbourhood Services,Direct Services,Supplies and Services,304221,Equipment and Materials,07-Sep-2015,3017919-J5082,737.74,GROVE REED.
Neighbourhood Services,Direct Services,Third Party Payments,430100,Rendered by Private Contractors,07-Sep-2015,3017929-8278,990.00,HILLCREST AUTO ELECTRICS.
Neighbourhood Services,Technical Services,Construction Work,908108,Capital - Surface Dressing,07-Sep-2015,3017944-11498,"2,454.69",JACK COUPE & SONS LTD T/A COUPE LINE.
Neighbourhood Services,Technical Services,Stock,926900,Stock in hand-Inventory system,07-Sep-2015,3017949-NI028773,"1,295.00",JOHN MACLEAN & SONS ELECTRICAL (DINGWALL) LTD.
Neighbourhood Services,Technical Services,Supplies and Services,304358,Equipment and Materials,07-Sep-2015,3017950-23415,"1,097.90",JOHN R BUTTERFIELD LTD.
Neighbourhood Services,Technical Services,Supplies and Services,304358,Equipment and Materials,07-Sep-2015,3017950-23741,"1,027.00",JOHN R BUTTERFIELD LTD.
Neighbourhood Services,Technical Services,Supplies and Services,304358,Equipment and Materials,07-Sep-2015,3017950-23770,819.00,JOHN R BUTTERFIELD LTD.
Neighbourhood Services,Technical Services,Supplies and Services,304358,Equipment and Materials,07-Sep-2015,3017950-23801,"1,027.00",JOHN R BUTTERFIELD LTD.
Neighbourhood Services,Technical Services,Supplies and Services,304358,Equipment and Materials,07-Sep-2015,3017950-23871,"2,140.25",JOHN R BUTTERFIELD LTD.
Neighbourhood Services,Technical Services,Stock,926900,Stock in hand-Inventory system,07-Sep-2015,3017953-00000520,"1,300.00",JP MATERIALS & PLANT HIRE LTD.
Neighbourhood Services,Technical Services,Stock,926900,Stock in hand-Inventory system,07-Sep-2015,3017953-00000521,714.00,JP MATERIALS & PLANT HIRE LTD.
Neighbourhood Services,Technical Services,Supplies and Services,304221,Equipment and Materials,07-Sep-2015,3017955-BII169964,762.00,JT DOVE LTD.
Neighbourhood Services,Technical Services,Supplies and Services,304221,Equipment and Materials,07-Sep-2015,3017955-BII170093,"1,042.03",JT DOVE LTD.
Neighbourhood Services,Technical Services,Supplies and Services,304221,Equipment and Materials,07-Sep-2015,3017955-HEI604503,652.65,JT DOVE LTD.
Neighbourhood Services,Technical Services,Supplies and Services,304221,Equipment and Materials,07-Sep-2015,3017955-STI424472,521.38,JT DOVE LTD.
Neighbourhood Services,Technical Services,Supplies and Services,304221,Equipment and Materials,07-Sep-2015,3017955-STI424545,693.93,JT DOVE LTD.
Neighbourhood Services,Projects and Business services,Construction Work,908105,Construction work,07-Sep-2015,3017992-9009053811,"1,562.00",MAMMOET UK LTD.
Neighbourhood Services,Technical Services,Supplies and Services,304221,Equipment and Materials,07-Sep-2015,3018022-DI20221238,"3,422.93",NORTHERN POWERGRID (NORTHEAST) LTD.
Neighbourhood Services,Technical Services,Stock,926900,Stock in hand-Inventory system,07-Sep-2015,3018024-1687254,559.09,NORTHERN TOOLS & ACCESSORIES.
Neighbourhood Services,Direct Services,Supplies and Services,304259,Equipment and Materials,07-Sep-2015,3018024-1689627,580.10,NORTHERN TOOLS & ACCESSORIES.
Neighbourhood Services,Direct Services,Supplies and Services,304259,Equipment and Materials,07-Sep-2015,3018024-1693006,701.53,NORTHERN TOOLS & ACCESSORIES.
Neighbourhood Services,Direct Services,Construction Work,908105,Construction work,07-Sep-2015,3018026-NEI,740.00,NORTHUMBRIAN WATER LTD.
Neighbourhood Services,Technical Services,Stock,926900,Stock in hand-Inventory system,07-Sep-2015,3018031-XL150315,"14,297.70",PARK ELECTRICAL DISTRIBUTORS LTD.
Neighbourhood Services,Culture & Sport,Supplies and Services,304221,Equipment and Materials,07-Sep-2015,3018036-25354,"3,999.00",PBL PRINT.
Neighbourhood Services,Technical Services,Third Party Payments,430100,Rendered by Private Contractors,07-Sep-2015,3018055-157,765.00,PRM FABRICATIONS LTD.
Neighbourhood Services,Direct Services,Debtors,930046,Debtor-leasing,07-Sep-2015,3018072-200710,"23,041.23",S JENNINGS LTD.
Neighbourhood Services,Direct Services,Debtors,930046,Debtor-leasing,07-Sep-2015,3018072-200711,"23,041.63",S JENNINGS LTD.
Neighbourhood Services,Direct Services,Supplies and Services,338013,Services,07-Sep-2015,3018076-WWB1083510,804.40,SGS UNITED KINGDOM LTD.
Neighbourhood Services,Technical Services,Supplies and Services,304358,Equipment and Materials,07-Sep-2015,3018081-2015059,"1,371.00",SHIREHAVEN LTD.
Neighbourhood Services,Technical Services,Supplies and Services,304358,Equipment and Materials,07-Sep-2015,3018081-2015060,"1,226.80",SHIREHAVEN LTD.
Neighbourhood Services,Technical Services,Supplies and Services,304358,Equipment and Materials,07-Sep-2015,3018081-2015061,"1,277.00",SHIREHAVEN LTD.
Neighbourhood Services,Culture & Sport,Supplies and Services,338099,Services,07-Sep-2015,3018083-115165,867.00,SHOWSEC INTERNATIONAL LTD.
Neighbourhood Services,Technical Services,Employees,040149,Recruitment Instruction and Training,07-Sep-2015,3018098-45711,995.00,SSG TRAINING & CONSULTANCY LTD.
Neighbourhood Services,Technical Services,Employees,040149,Recruitment Instruction and Training,07-Sep-2015,3018098-45728,995.00,SSG TRAINING & CONSULTANCY LTD.
Neighbourhood Services,Direct Services,Supplies and Services,304221,Equipment and Materials,07-Sep-2015,3018108-1690127,"1,294.34",T CROSSLING & CO LTD.
Neighbourhood Services,Direct Services,Supplies and Services,304221,Equipment and Materials,07-Sep-2015,3018108-1691218,"9,055.58",T CROSSLING & CO LTD.
Neighbourhood Services,Direct Services,Supplies and Services,304221,Equipment and Materials,07-Sep-2015,3018108-1691313,"19,499.26",T CROSSLING & CO LTD.
Neighbourhood Services,Direct Services,Supplies and Services,304221,Equipment and Materials,07-Sep-2015,3018124-30012,"1,750.00",TOTAL PUMP SOLUTIONS LTD.
Neighbourhood Services,Technical Services,Stock,926900,Stock in hand-Inventory system,07-Sep-2015,3018135-INV032702,"107,500.00",URBIS SCHREDER LTD.
Neighbourhood Services,Technical Services,Stock,926900,Stock in hand-Inventory system,07-Sep-2015,3018135-INV032703,"76,500.00",URBIS SCHREDER LTD.
Neighbourhood Services,Direct Services,Supplies and Services,304221,Equipment and Materials,07-Sep-2015,3018137-6890194163,"1,147.50",VIESSMANN LTD.
Neighbourhood Services,Direct Services,Supplies and Services,304221,Equipment and Materials,07-Sep-2015,3018137-6890194444,"1,143.00",VIESSMANN LTD.
Neighbourhood Services,EnvironmentHealth & Consumer Protection,Supplies and Services,332047,Printing Stationery and Gen Off Exps,07-Sep-2015,3018139-17103,"2,423.74",VIP SYSTEM LTD.
Neighbourhood Services,Direct Services,Supplies and Services,338099,Services,07-Sep-2015,3018141-39645,794.00,W MARLEY AGRICULTURAL CONTRACTORS LTD.
Neighbourhood Services,Technical Services,Employees,040149,Recruitment Instruction and Training,07-Sep-2015,3018145-67246,670.00,WARREN ACCESS LTD.
Neighbourhood Services,Technical Services,Employees,040149,Recruitment Instruction and Training,07-Sep-2015,3018145-67247,670.00,WARREN ACCESS LTD.
Neighbourhood Services,Direct Services,Premises,150015,Apportioned Exps of Operational Blds,07-Sep-2015,3018149-445017,702.00,WERNICK HIRE LTD.
Neighbourhood Services,Direct Services,Premises,150015,Apportioned Exps of Operational Blds,07-Sep-2015,3018149-445042,726.93,WERNICK HIRE LTD.
Neighbourhood Services,Technical Services,Supplies and Services,304221,Equipment and Materials,07-Sep-2015,3018153-7428,"1,500.00",WILF HUSBAND PLANT HIRE.
Neighbourhood Services,Technical Services,Stock,926900,Stock in hand-Inventory system,07-Sep-2015,3018156-25120245,614.01,WOLSELEY UK LTD.
Regeneration & Economic Development,Economic Development and Housing,Third Party Payments,460305,Contract Payments,07-Sep-2015,3017820-88,"2,260.00",BLUE SKY THINK LLP.
Regeneration & Economic Development,Economic Development and Housing,Third Party Payments,460305,Contract Payments,07-Sep-2015,3017820-89,"2,260.00",BLUE SKY THINK LLP.
Regeneration & Economic Development,Economic Development and Housing,Third Party Payments,460305,Contract Payments,07-Sep-2015,3017820-90,"5,000.00",BLUE SKY THINK LLP.
Regeneration & Economic Development,Economic Development and Housing,Third Party Payments,460305,Contract Payments,07-Sep-2015,3017820-91,"6,990.00",BLUE SKY THINK LLP.
Regeneration & Economic Development,Transport and Contracted Services,Third Party Payments,430109,Rendered by Private Contractors,07-Sep-2015,3017835-108095,"1,202.00",CA TRAFFIC LTD.
Regeneration & Economic Development,Spatial Policy Planning Assets & Environment,Supplies and Services,338027,Services,07-Sep-2015,3017837-7067,975.00,CAMBRIDGE ECONOMETRICS.
Regeneration & Economic Development,Spatial Policy Planning Assets & Environment,Supplies and Services,338066,Services,07-Sep-2015,3017841-50BCD00013071,"2,150.00",CBRE LTD.
Regeneration & Economic Development,Transport and Contracted Services,Employees,040149,Recruitment Instruction and Training,07-Sep-2015,3017842-0218,"4,050.00",CCTV TRAINING ACADEMY.
Regeneration & Economic Development,Economic Development and Housing,Supplies and Services,338035,Services,07-Sep-2015,3017847-803872040,890.00,CITY & GUILDS OF LONDON INSTITUTE.
Regeneration & Economic Development,Transport and Contracted Services,Supplies and Services,384199,Miscellaneous Expenses,07-Sep-2015,3017865-2763426,"61,771.50",DARLINGTON BOROUGH COUNCIL.
Regeneration & Economic Development,Economic Development and Housing,Cap Exp on Grants & Other Financial Assistance (REFCUS),918401,Capital grants,07-Sep-2015,3017873-RED-08-2015-089,"3,018.45",DIGON PROPERTY SERVICES LTD.
Regeneration & Economic Development,Spatial Policy Planning Assets & Environment,Vehicles Equipment Furniture and Fittings,912701,Computer equipment,07-Sep-2015,3017935-7006401,"3,900.00",IDOX SOFTWARE LTD.
Regeneration & Economic Development,Spatial Policy Planning Assets & Environment,Supplies and Services,336005,Advertising,07-Sep-2015,3018014-12205215,724.41,NEWSQUEST (YORKSHIRE & NORTH EAST) LTD.
Regeneration & Economic Development,Spatial Policy Planning Assets & Environment,Supplies and Services,338099,Services,07-Sep-2015,3018034-140815,800.00,PAUL MARTIN T/A ALDIN WOODCRAFT
Regeneration & Economic Development,Economic Development and Housing,Income,710765,Other Grants and Contributions,07-Sep-2015,3018064-022,"1,280.00",REDACTED - PAYMENT TO INDIVIDUAL
Regeneration & Economic Development,Economic Development and Housing,Cap Exp on Grants & Other Financial Assistance (REFCUS),918401,Capital grants,07-Sep-2015,3018086-RED-08-2015-087,720.00,SKL ROOFING SERVICES.
Regeneration & Economic Development,Economic Development and Housing,Premises,108099,Service Repairs and Maintenance,07-Sep-2015,3018146,"1,295.00",WASTEAWAY.
Regeneration & Economic Development,Strategy Programmes and Performance,Supplies and Services,384437,Miscellaneous Expenses,07-Sep-2015,3018150-OrderNo1450371,"4,328.28",WESTERN UNION BUSINESS SOLUTIONS.
Resources,I.C.T. Services,Supplies and Services,342051,Computers and Communications,07-Sep-2015,3017834-422229,"2,586.29",BYTES SOFTWARE SERVICES LTD.
Resources,I.C.T. Services,Supplies and Services,342033,Computers and Communications,07-Sep-2015,3017869-4219671445,"101,636.60",DELL FINANCIAL SERVICES.
Resources,I.C.T. Services,Supplies and Services,304303,Equipment and Materials,07-Sep-2015,3017957-37264,"3,745.00",KBR IT & NETWORKING SOLUTIONS.
Resources,I.C.T. Services,Supplies and Services,304303,Equipment and Materials,07-Sep-2015,3017957-37265,"2,575.00",KBR IT & NETWORKING SOLUTIONS.
Resources,I.C.T. Services,Supplies and Services,304303,Equipment and Materials,07-Sep-2015,3017957-37266,"4,555.00",KBR IT & NETWORKING SOLUTIONS.
Resources,Financial Services,Supplies and Services,384199,Miscellaneous Expenses,07-Sep-2015,3018025-91343613,"12,002.27",NORTHGATE PUBLIC SERVICES (UK) LTD.
Resources,I.C.T. Services,Supplies and Services,332029,Printing Stationery and Gen Off Exps,07-Sep-2015,3018051-620306,"6,938.00",POTTS PRINTERS LTD.
Resources,I.C.T. Services,Supplies and Services,304245,Equipment and Materials,07-Sep-2015,3018053-7778228,533.52,PREMIER PAPER GROUP LTD.
Resources,I.C.T. Services,Vehicles Equipment Furniture and Fittings,912701,Computer equipment,07-Sep-2015,3018088-INV01206035,"83,821.60",SOFTCAT LTD.
Resources,I.C.T. Services,Supplies and Services,342033,Computers and Communications,07-Sep-2015,3018088-INV01206059,"3,611.68",SOFTCAT LTD.
Resources,I.C.T. Services,Supplies and Services,342033,Computers and Communications,07-Sep-2015,3018088-INV01206064,"3,611.68",SOFTCAT LTD.
Resources,I.C.T. Services,Supplies and Services,342033,Computers and Communications,07-Sep-2015,3018088-INV01206065,"3,611.68",SOFTCAT LTD.
Resources,I.C.T. Services,Supplies and Services,342033,Computers and Communications,07-Sep-2015,3018088-INV01206066,"3,908.05",SOFTCAT LTD.
Resources,I.C.T. Services,Vehicles Equipment Furniture and Fittings,912701,Computer equipment,07-Sep-2015,3018094-OP/M041755,592.00,SPECIALIST COMPUTER CENTRES PLC.
Resources,Human Resources,Supplies and Services,352001,Conference Expenses,07-Sep-2015,3018098-45704,625.00,SSG TRAINING & CONSULTANCY LTD.
Resources,Legal & Democratic Services,Supplies and Services,332047,Printing Stationery and Gen Off Exps,07-Sep-2015,3018105-7633687,585.00,SUPPLIES TEAM LTD (NOW KNOWN AS BANNER).
Children and Adult Services,Childrens Services,Third Party Payments,440021,Other Third Party Payments,08-Sep-2015,3018285-1050764,680.00,REDACTED - PAYMENT TO INDIVIDUAL
Children and Adult Services,Childrens Services,Third Party Payments,440025,Other Third Party Payments,08-Sep-2015,3018380-1049904,"1,930.10",REDACTED - PAYMENT TO INDIVIDUAL
Children and Adult Services,Childrens Services,Third Party Payments,440001,Other Third Party Payments,08-Sep-2015,3018656-1050258,624.00,REDACTED - PAYMENT TO INDIVIDUAL
Children and Adult Services,Childrens Services,Third Party Payments,440027,Other Third Party Payments,08-Sep-2015,3018688-1051031,706.23,REDACTED - PAYMENT TO INDIVIDUAL
Children and Adult Services,Childrens Services,Third Party Payments,425040,Rendered by Voluntary Organisations,08-Sep-2015,3018752-15/1806,"3,100.00",ACORN HOUSE (FOSTERING SERVICES) LTD.
Children and Adult Services,Education,Third Party Payments,440999,Other Third Party Payments,08-Sep-2015,3018753-INV02045,"1,728.00",ACUMEN COMMUNITY ENTERPRISE DEVELOPMENT TRUST LTD.
Children and Adult Services,Commissioning inc Supporting People,Supplies and Services,384540,Miscellaneous Expenses,08-Sep-2015,3018766-350936,"4,990.00",BAUER RADIO LTD.
Children and Adult Services,Childrens Services,Transport,235073,Public Transport,08-Sep-2015,3018792-21573,"1,250.00",DURHAM CITY COACHES.
Children and Adult Services,Childrens Services,Third Party Payments,425040,Rendered by Voluntary Organisations,08-Sep-2015,3018797-0000056497,"3,128.70",FIVE RIVERS CHILD CARE LTD.
Children and Adult Services,Childrens Services,Third Party Payments,425040,Rendered by Voluntary Organisations,08-Sep-2015,3018798-630161966,"4,079.43",FOSTER CARE ASSOCIATES LTD.
Children and Adult Services,Childrens Services,Third Party Payments,425040,Rendered by Voluntary Organisations,08-Sep-2015,3018798-630162528,"4,079.43",FOSTER CARE ASSOCIATES LTD.
Children and Adult Services,Childrens Services,Third Party Payments,425040,Rendered by Voluntary Organisations,08-Sep-2015,3018798-630165110,"4,045.72",FOSTER CARE ASSOCIATES LTD.
Children and Adult Services,Childrens Services,Third Party Payments,425040,Rendered by Voluntary Organisations,08-Sep-2015,3018798-630165339,"3,947.83",FOSTER CARE ASSOCIATES LTD.
Children and Adult Services,Childrens Services,Third Party Payments,425040,Rendered by Voluntary Organisations,08-Sep-2015,3018798-630165363,"3,947.83",FOSTER CARE ASSOCIATES LTD.
Children and Adult Services,Childrens Services,Third Party Payments,425040,Rendered by Voluntary Organisations,08-Sep-2015,3018798-630165587,"3,947.83",FOSTER CARE ASSOCIATES LTD.
Children and Adult Services,Childrens Services,Third Party Payments,425040,Rendered by Voluntary Organisations,08-Sep-2015,3018798-630165645,"3,947.83",FOSTER CARE ASSOCIATES LTD.
Children and Adult Services,Childrens Services,Third Party Payments,425040,Rendered by Voluntary Organisations,08-Sep-2015,3018798-630165705,"3,947.83",FOSTER CARE ASSOCIATES LTD.
Children and Adult Services,Childrens Services,Third Party Payments,425040,Rendered by Voluntary Organisations,08-Sep-2015,3018798-630165869,"3,947.83",FOSTER CARE ASSOCIATES LTD.
Children and Adult Services,Childrens Services,Third Party Payments,425040,Rendered by Voluntary Organisations,08-Sep-2015,3018799-124151,730.00,FOSTER CARES LTD.
Children and Adult Services,Childrens Services,Third Party Payments,425040,Rendered by Voluntary Organisations,08-Sep-2015,3018799-124156,"1,180.00",FOSTER CARES LTD.
Children and Adult Services,Childrens Services,Third Party Payments,425040,Rendered by Voluntary Organisations,08-Sep-2015,3018799-124161,820.00,FOSTER CARES LTD.
Children and Adult Services,Childrens Services,Third Party Payments,425040,Rendered by Voluntary Organisations,08-Sep-2015,3018799-124170,730.00,FOSTER CARES LTD.
Children and Adult Services,Childrens Services,Third Party Payments,425040,Rendered by Voluntary Organisations,08-Sep-2015,3018799-124173,730.00,FOSTER CARES LTD.
Children and Adult Services,Childrens Services,Third Party Payments,425040,Rendered by Voluntary Organisations,08-Sep-2015,3018799-124178,730.00,FOSTER CARES LTD.
Children and Adult Services,Childrens Services,Third Party Payments,425040,Rendered by Voluntary Organisations,08-Sep-2015,3018799-124179,730.00,FOSTER CARES LTD.
Children and Adult Services,Childrens Services,Third Party Payments,425040,Rendered by Voluntary Organisations,08-Sep-2015,3018800-149170,"1,877.22",FOSTERING SOLUTIONS LTD.
Children and Adult Services,Childrens Services,Third Party Payments,425040,Rendered by Voluntary Organisations,08-Sep-2015,3018800-150630,"3,232.99",FOSTERING SOLUTIONS LTD.
Children and Adult Services,Childrens Services,Supplies and Services,384199,Miscellaneous Expenses,08-Sep-2015,3018801-C/SONEPOINT,875.00,FURY EVENTS ACTIVITIES.
Children and Adult Services,Childrens Services,Third Party Payments,425040,Rendered by Voluntary Organisations,08-Sep-2015,3018802-29018,651.42,FUTURES FOR CHILDREN LTD.
Children and Adult Services,Public Health,Supplies and Services,352001,Conference Expenses,08-Sep-2015,3018808-893,"11,000.00",HEALTHWORKS NEWCASTLE.
Children and Adult Services,Education,Transfer Payments,510026,School Children,08-Sep-2015,3018809-19607,"1,170.00",HOUSE OF EDEN CHILDRENS NURSERY.
Children and Adult Services,Education,Construction Work,908105,Construction work,08-Sep-2015,3018813-INS1,"14,582.10",JOHN WADE (HAULAGE) LTD.
Children and Adult Services,Public Health,Third Party Payments,460803,Contract Payments,08-Sep-2015,3018816-DXBX/10NRT,735.60,LANCHESTER PHARMACY.
Children and Adult Services,Education,Vehicles Equipment Furniture and Fittings,912529,Purchase-equipment,08-Sep-2015,3018817-SIV066841,"16,898.20",LES MILLS FITNESS UK LTD.
Children and Adult Services,Education,Construction Work,908105,Construction work,08-Sep-2015,3018820-18326,"2,307.20",MAC SECURITY & FIRE LTD.
Children and Adult Services,Childrens Services,Third Party Payments,425040,Rendered by Voluntary Organisations,08-Sep-2015,3018824-NFA140536,"4,340.00",NATIONAL FOSTERING AGENCY LTD.
Children and Adult Services,Childrens Services,Third Party Payments,486046,Service Level Agreements,08-Sep-2015,3018825-36156,523.35,NATIONAL YOUTH ADVOCACY SERVICE.
Children and Adult Services,Childrens Services,Third Party Payments,425019,Rendered by Voluntary Organisations,08-Sep-2015,3018838-260414,"14,048.40",PEARTREE PROJECTS LTD.
Children and Adult Services,Childrens Services,Employees,080025,Agency Staff,08-Sep-2015,3018848-0228406785,585.00,REED MANAGED SERVICES LTD.
Children and Adult Services,Childrens Services,Employees,080025,Agency Staff,08-Sep-2015,3018848-0228406786,975.00,REED MANAGED SERVICES LTD.
Children and Adult Services,Childrens Services,Employees,080025,Agency Staff,08-Sep-2015,3018848-0228435665,975.00,REED MANAGED SERVICES LTD.
Children and Adult Services,Childrens Services,Employees,080025,Agency Staff,08-Sep-2015,3018848-0228435666,780.00,REED MANAGED SERVICES LTD.
Children and Adult Services,Childrens Services,Third Party Payments,425040,Rendered by Voluntary Organisations,08-Sep-2015,3018852-1185,967.43,ROCSOLID.
Children and Adult Services,Childrens Services,Transport,240045,Car Allowances,08-Sep-2015,3018857-4374,"61,124.80",SOCIAL RESOURCE CENTRE LTD.
Children and Adult Services,Childrens Services,Third Party Payments,425040,Rendered by Voluntary Organisations,08-Sep-2015,3018859-1160627,"3,100.00",ST CUTHBERTS CARE.
Children and Adult Services,Childrens Services,Third Party Payments,425020,Rendered by Voluntary Organisations,08-Sep-2015,3018859-1160656,624.00,ST CUTHBERTS CARE.
Children and Adult Services,Childrens Services,Third Party Payments,425040,Rendered by Voluntary Organisations,08-Sep-2015,3018865-168798,900.00,SWIIS FOSTER CARE LTD.
Children and Adult Services,Childrens Services,Third Party Payments,425040,Rendered by Voluntary Organisations,08-Sep-2015,3018865-168799,910.00,SWIIS FOSTER CARE LTD.
Children and Adult Services,Childrens Services,Third Party Payments,425044,Rendered by Voluntary Organisations,08-Sep-2015,3018865-168800,578.61,SWIIS FOSTER CARE LTD.
Children and Adult Services,Childrens Services,Third Party Payments,425040,Rendered by Voluntary Organisations,08-Sep-2015,3018865-168801,730.03,SWIIS FOSTER CARE LTD.
Children and Adult Services,Childrens Services,Third Party Payments,425040,Rendered by Voluntary Organisations,08-Sep-2015,3018865-168805,900.00,SWIIS FOSTER CARE LTD.
Children and Adult Services,Childrens Services,Employees,080025,Agency Staff,08-Sep-2015,3018866-4810005393,"6,592.00",TEES ESK & WEAR VALLEYS NHS FOUNDATION TRUST.
Children and Adult Services,Childrens Services,Employees,080025,Agency Staff,08-Sep-2015,3018866-4810005579,"6,592.00",TEES ESK & WEAR VALLEYS NHS FOUNDATION TRUST.
Children and Adult Services,Childrens Services,Third Party Payments,425040,Rendered by Voluntary Organisations,08-Sep-2015,3018867-000161,"8,166.33",THE FOSTERING COMPANY NE LTD.
Children and Adult Services,Childrens Services,Premises,150005,Apportioned Exps of Operational Blds,08-Sep-2015,3018873-DCC0014,697.19,TYNE VIEW PROPERTY MANAGEMENT LTD.
Children and Adult Services,Childrens Services,Premises,155001,Insurance of Premises,08-Sep-2015,3018875-201500001614,915.78,VINE PROPERTY MANAGEMENT LLP.
Dedicated Schools Grant,Dedicated Schools Grant,Third Party Payments,425005,Rendered by Voluntary Organisations,08-Sep-2015,3018834-NK211/AM,"3,216.33",NUNNYKIRK CENTRE FOR DYSLEXIA.
Neighbourhood Services,Direct Services,Third Party Payments,430100,Rendered by Private Contractors,08-Sep-2015,3018754-30352037-61,798.00,ADT FIRE & SECURITY PLC.
Neighbourhood Services,Technical Services,Supplies and Services,304221,Equipment and Materials,08-Sep-2015,3018756-21912068,"4,952.04",AGGREGATE INDUSTRIES UK LTD.
Neighbourhood Services,Culture & Sport,Supplies and Services,338047,Services,08-Sep-2015,3018758-SMC150826,"4,306.30",ALAN BEARMAN MUSIC.
Neighbourhood Services,Direct Services,Transport,210057,Repair and Maintenance of Vehicles,08-Sep-2015,3018775-INV087375,550.00,BUS & TRUCK PARTS (NORTH EAST) LTD.
Neighbourhood Services,Culture & Sport,Third Party Payments,430100,Rendered by Private Contractors,08-Sep-2015,3018779-1089REPROVISION,"1,000.00",CLASSROOM MEDICS LTD - IN LIQUIDATION.
Neighbourhood Services,Direct Services,Supplies and Services,384956,Miscellaneous Expenses,08-Sep-2015,3018796-H00079995,880.00,ENVIRONMENT AGENCY.
Neighbourhood Services,Direct Services,Supplies and Services,384956,Miscellaneous Expenses,08-Sep-2015,3018796-H00079996,500.00,ENVIRONMENT AGENCY.
Neighbourhood Services,Direct Services,Supplies and Services,384956,Miscellaneous Expenses,08-Sep-2015,3018796-H00080002,710.00,ENVIRONMENT AGENCY.
Neighbourhood Services,Technical Services,Construction Work,908108,Capital - Surface Dressing,08-Sep-2015,3018811-11501,"2,212.70",JACK COUPE & SONS LTD T/A COUPE LINE.
Neighbourhood Services,Direct Services,Supplies and Services,384194,Miscellaneous Expenses,08-Sep-2015,3018829-38498,"2,375.00",NIRAMAX GROUP LTD.
Neighbourhood Services,Direct Services,Third Party Payments,430100,Rendered by Private Contractors,08-Sep-2015,3018836-625,"2,946.60",PARAMOUNT CEILINGS & PARTITIONS.
Neighbourhood Services,Culture & Sport,Supplies and Services,384237,Miscellaneous Expenses,08-Sep-2015,3018840-NEI,930.00,PETERLEE TOWN COUNCIL.
Neighbourhood Services,Technical Services,Third Party Payments,430100,Rendered by Private Contractors,08-Sep-2015,3018844-135355,"7,501.83",PREMIER TRAFFIC MANAGEMENT LTD.
Neighbourhood Services,Direct Services,Premises,108135,Service Repairs and Maintenance,08-Sep-2015,3018856-SAJ/2015/02304,"2,750.00",SHERING WEIGHING LTD.
Neighbourhood Services,Direct Services,Premises,108135,Service Repairs and Maintenance,08-Sep-2015,3018856-SAJ/2015/02305,"2,750.00",SHERING WEIGHING LTD.
Neighbourhood Services,Direct Services,Premises,108135,Service Repairs and Maintenance,08-Sep-2015,3018856-SAJ/2015/02306,"1,375.00",SHERING WEIGHING LTD.
Neighbourhood Services,Direct Services,Premises,108135,Service Repairs and Maintenance,08-Sep-2015,3018856-SAJ/2015/02307,750.00,SHERING WEIGHING LTD.
Neighbourhood Services,Technical Services,Stock,926900,Stock in hand-Inventory system,08-Sep-2015,3018864-46/969373,"1,160.00",SUPPLY UK.
RED HRA,HRA Capital,Construction Work,908105,Construction work,08-Sep-2015,3018842-15071,"4,800.00",PIMSS DATA SYSTEMS LTD.
Regeneration & Economic Development,Economic Development and Housing,Premises,120009,Energy Costs,08-Sep-2015,3018795-000000751313,894.42,EDF ENERGY CUSTOMERS PLC.
Regeneration & Economic Development,Spatial Policy Planning Assets & Environment,Supplies and Services,384540,Miscellaneous Expenses,08-Sep-2015,3018821-1050,"2,250.00",MARCUS BYRON.
Regeneration & Economic Development,Transport and Contracted Services,Fees,901002,Professional Fees,08-Sep-2015,3018826-DCC-1383,"19,956.02",NEPRO LTD.
Regeneration & Economic Development,Transport and Contracted Services,Supplies and Services,338066,Services,08-Sep-2015,3018826-DCC-1394,"31,705.46",NEPRO LTD.
Regeneration & Economic Development,Spatial Policy Planning Assets & Environment,Construction Work,908105,Construction work,08-Sep-2015,3018832-009,740.00,NORTHUMBRIAN WATER LTD.
Regeneration & Economic Development,Economic Development and Housing,Premises,106099,Centrally Controlled Rep and Maint,08-Sep-2015,3018841-62492504,"1,929.94",PHS GROUP PLC.
Regeneration & Economic Development,Economic Development and Housing,Construction Work,908105,Construction work,08-Sep-2015,3018869-INS1,"13,405.00",THOMPSONS OF PRUDHOE LTD.
Resources,Financial Services,Transfer Payments,520002,Housing Benefits,08-Sep-2015,3018783,"3,223.54",DALE & VALLEY HOMES.
Resources,Financial Services,Transfer Payments,520002,Housing Benefits,08-Sep-2015,3018793,"2,956.41",DURHAM CITY HOMES LTD.
Resources,Financial Services,Transfer Payments,520002,Housing Benefits,08-Sep-2015,3018794,"3,409.96",EAST DURHAM HOMES.
Resources,Corporate Services Financing,Debtors,930031,Debtor-outstand insur claims,08-Sep-2015,3018815,"4,428.66",KENNEDYS LAW LLP.
Resources,Legal & Democratic Services,Premises,120021,Energy Costs,08-Sep-2015,3018771-D16531,773.35,BRADLEY HALL CHARTERED SURVEYORS CLIENT ACCOUNT.
Resources,I.C.T. Services,Debtors,930168,Debtor - Mobile Telephone Holding Account,08-Sep-2015,3018845-169218,571.68,PROCESSFLOWS UK LTD.
Resources,I.C.T. Services,Supplies and Services,304259,Equipment and Materials,08-Sep-2015,3018877-900135813,"127,802.99",XEROX FINANCE LTD.
Assistant Chief Executive,Partnerships & Community Engagement Div.,Cap Exp on Grants & Other Financial Assistance (REFCUS),918004,Contributions to other bodies,09-Sep-2015,3019254-14AB-4TOG014,"5,000.00",CHILTON COMMUNITY COLLEGE.
Children and Adult Services,Head of Adults,Third Party Payments,478101,Purchase of Care,09-Sep-2015,300672-2259225,"1,232.44",REDACTED - PAYMENT TO INDIVIDUAL
Children and Adult Services,Childrens Services,Supplies and Services,338044,Services,09-Sep-2015,300686-1838,722.00,PSYCHOLOGICAL MEDICINE CONSULTANTS LTD.
Children and Adult Services,Childrens Services,Premises,150005,Apportioned Exps of Operational Blds,09-Sep-2015,300697-201500001244,"1,906.25",VINE PROPERTY MANAGEMENT LLP.
Children and Adult Services,Head of Adults,Third Party Payments,470101,Purchase of Care,09-Sep-2015,3018878-2259313,"6,031.16",3 RED ADMIRAL COURT.
Children and Adult Services,Head of Adults,Third Party Payments,470101,Purchase of Care,09-Sep-2015,3018879-2259606,"6,397.60",368 THE RIDGE.
Children and Adult Services,Head of Adults,Third Party Payments,470101,Purchase of Care,09-Sep-2015,3018880-2259300,"1,970.88",A CHARLES THOMAS (CARE) LTD.
Children and Adult Services,Head of Adults,Third Party Payments,474101,Purchase of Care,09-Sep-2015,3018880-2259349,"2,064.08",A CHARLES THOMAS (CARE) LTD.
Children and Adult Services,Head of Adults,Third Party Payments,474101,Purchase of Care,09-Sep-2015,3018880-2259352,"2,064.08",A CHARLES THOMAS (CARE) LTD.
Children and Adult Services,Head of Adults,Third Party Payments,470101,Purchase of Care,09-Sep-2015,3018880-2259621,"1,970.88",A CHARLES THOMAS (CARE) LTD.
Children and Adult Services,Head of Adults,Third Party Payments,470101,Purchase of Care,09-Sep-2015,3018880-2259824,"1,970.88",A CHARLES THOMAS (CARE) LTD.
Children and Adult Services,Head of Adults,Third Party Payments,470101,Purchase of Care,09-Sep-2015,3018880-2260129,"1,970.88",A CHARLES THOMAS (CARE) LTD.
Children and Adult Services,Head of Adults,Third Party Payments,470101,Purchase of Care,09-Sep-2015,3018880-2260199,"1,970.88",A CHARLES THOMAS (CARE) LTD.
Children and Adult Services,Head of Adults,Third Party Payments,470101,Purchase of Care,09-Sep-2015,3018880-2260202,"1,970.88",A CHARLES THOMAS (CARE) LTD.
Children and Adult Services,Head of Adults,Third Party Payments,470101,Purchase of Care,09-Sep-2015,3018880-2260415,"1,970.88",A CHARLES THOMAS (CARE) LTD.
Children and Adult Services,Head of Adults,Third Party Payments,474101,Purchase of Care,09-Sep-2015,3018880-2260659,"2,064.08",A CHARLES THOMAS (CARE) LTD.
Children and Adult Services,Head of Adults,Third Party Payments,474101,Purchase of Care,09-Sep-2015,3018880-2260677,"2,064.08",A CHARLES THOMAS (CARE) LTD.
Children and Adult Services,Head of Adults,Third Party Payments,474101,Purchase of Care,09-Sep-2015,3018880-2260977,"2,064.08",A CHARLES THOMAS (CARE) LTD.
Children and Adult Services,Head of Adults,Third Party Payments,470101,Purchase of Care,09-Sep-2015,3018880-2261275,"1,970.88",A CHARLES THOMAS (CARE) LTD.
Children and Adult Services,Head of Adults,Third Party Payments,470101,Purchase of Care,09-Sep-2015,3018880-2261481,"1,970.88",A CHARLES THOMAS (CARE) LTD.
Children and Adult Services,Head of Adults,Third Party Payments,470101,Purchase of Care,09-Sep-2015,3018880-2261557,"1,970.88",A CHARLES THOMAS (CARE) LTD.
Children and Adult Services,Head of Adults,Third Party Payments,470101,Purchase of Care,09-Sep-2015,3018880-2261730,"2,182.05",A CHARLES THOMAS (CARE) LTD.
Children and Adult Services,Head of Adults,Third Party Payments,470101,Purchase of Care,09-Sep-2015,3018880-2261793,"1,970.88",A CHARLES THOMAS (CARE) LTD.
Children and Adult Services,Head of Adults,Third Party Payments,474101,Purchase of Care,09-Sep-2015,3018880-2262183,"2,064.08",A CHARLES THOMAS (CARE) LTD.
Children and Adult Services,Head of Adults,Third Party Payments,470101,Purchase of Care,09-Sep-2015,3018880-2262224,"1,970.88",A CHARLES THOMAS (CARE) LTD.
Children and Adult Services,Head of Adults,Third Party Payments,470101,Purchase of Care,09-Sep-2015,3018880-2262230,"1,970.88",A CHARLES THOMAS (CARE) LTD.
Children and Adult Services,Head of Adults,Third Party Payments,470101,Purchase of Care,09-Sep-2015,3018880-2262309,"1,970.88",A CHARLES THOMAS (CARE) LTD.
Children and Adult Services,Head of Adults,Third Party Payments,474101,Purchase of Care,09-Sep-2015,3018880-2262543,"2,064.08",A CHARLES THOMAS (CARE) LTD.
Children and Adult Services,Head of Adults,Third Party Payments,474101,Purchase of Care,09-Sep-2015,3018880-2262666,"2,064.08",A CHARLES THOMAS (CARE) LTD.
Children and Adult Services,Head of Adults,Third Party Payments,474101,Purchase of Care,09-Sep-2015,3018880-2262956,"2,064.08",A CHARLES THOMAS (CARE) LTD.
Children and Adult Services,Head of Adults,Third Party Payments,470101,Purchase of Care,09-Sep-2015,3018880-2263028,633.49,A CHARLES THOMAS (CARE) LTD.
Children and Adult Services,Head of Adults,Third Party Payments,470101,Purchase of Care,09-Sep-2015,3018880-2263147,844.66,A CHARLES THOMAS (CARE) LTD.
Children and Adult Services,Head of Adults,Third Party Payments,474101,Purchase of Care,09-Sep-2015,3018880-2263169,"2,064.08",A CHARLES THOMAS (CARE) LTD.
Children and Adult Services,Head of Adults,Third Party Payments,474101,Purchase of Care,09-Sep-2015,3018880-2263225,"2,064.08",A CHARLES THOMAS (CARE) LTD.
Children and Adult Services,Head of Adults,Third Party Payments,470101,Purchase of Care,09-Sep-2015,3018880-2263394,"1,126.21",A CHARLES THOMAS (CARE) LTD.
Children and Adult Services,Head of Adults,Third Party Payments,474101,Purchase of Care,09-Sep-2015,3018881-2259117,"2,303.28",ABBEYMOOR CLINIC.
Children and Adult Services,Head of Adults,Third Party Payments,474101,Purchase of Care,09-Sep-2015,3018881-2260959,"2,303.28",ABBEYMOOR CLINIC.
Children and Adult Services,Head of Adults,Third Party Payments,470101,Purchase of Care,09-Sep-2015,3018882-2259622,"1,970.88",ABBEYVALE.
Children and Adult Services,Head of Adults,Third Party Payments,470101,Purchase of Care,09-Sep-2015,3018882-2259658,"2,500.00",ABBEYVALE.
Children and Adult Services,Head of Adults,Third Party Payments,470101,Purchase of Care,09-Sep-2015,3018882-2259692,"1,970.88",ABBEYVALE.
Children and Adult Services,Head of Adults,Third Party Payments,471101,Purchase of Care,09-Sep-2015,3018882-2259702,"2,043.64",ABBEYVALE.
Children and Adult Services,Head of Adults,Third Party Payments,470101,Purchase of Care,09-Sep-2015,3018882-2259738,"1,970.88",ABBEYVALE.
Children and Adult Services,Head of Adults,Third Party Payments,471101,Purchase of Care,09-Sep-2015,3018882-2259805,"2,043.64",ABBEYVALE.
Children and Adult Services,Head of Adults,Third Party Payments,471101,Purchase of Care,09-Sep-2015,3018882-2259890,"2,539.28",ABBEYVALE.
Children and Adult Services,Head of Adults,Third Party Payments,471101,Purchase of Care,09-Sep-2015,3018882-2260014,"2,043.64",ABBEYVALE.
Children and Adult Services,Head of Adults,Third Party Payments,470101,Purchase of Care,09-Sep-2015,3018882-2260032,"2,030.88",ABBEYVALE.
Children and Adult Services,Head of Adults,Third Party Payments,471101,Purchase of Care,09-Sep-2015,3018882-2260115,"2,043.64",ABBEYVALE.
Children and Adult Services,Head of Adults,Third Party Payments,470101,Purchase of Care,09-Sep-2015,3018882-2260162,"1,970.88",ABBEYVALE.
Children and Adult Services,Head of Adults,Third Party Payments,470101,Purchase of Care,09-Sep-2015,3018882-2260172,"1,970.88",ABBEYVALE.
Children and Adult Services,Head of Adults,Third Party Payments,470101,Purchase of Care,09-Sep-2015,3018882-2260266,"2,500.00",ABBEYVALE.
Children and Adult Services,Head of Adults,Third Party Payments,471101,Purchase of Care,09-Sep-2015,3018882-2260309,"1,021.84",ABBEYVALE.
Children and Adult Services,Head of Adults,Third Party Payments,470101,Purchase of Care,09-Sep-2015,3018882-2260335,"2,500.00",ABBEYVALE.
Children and Adult Services,Head of Adults,Third Party Payments,471101,Purchase of Care,09-Sep-2015,3018882-2260376,"2,043.64",ABBEYVALE.
Children and Adult Services,Head of Adults,Third Party Payments,470101,Purchase of Care,09-Sep-2015,3018882-2260385,"1,970.88",ABBEYVALE.
Children and Adult Services,Head of Adults,Third Party Payments,470101,Purchase of Care,09-Sep-2015,3018882-2260404,"1,970.88",ABBEYVALE.
Children and Adult Services,Head of Adults,Third Party Payments,470101,Purchase of Care,09-Sep-2015,3018882-2260492,"1,970.88",ABBEYVALE.
Children and Adult Services,Head of Adults,Third Party Payments,470101,Purchase of Care,09-Sep-2015,3018882-2260548,"1,390.00",ABBEYVALE.
Children and Adult Services,Head of Adults,Third Party Payments,470101,Purchase of Care,09-Sep-2015,3018882-2260918,"1,970.88",ABBEYVALE.
Children and Adult Services,Head of Adults,Third Party Payments,471101,Purchase of Care,09-Sep-2015,3018882-2261071,"2,043.64",ABBEYVALE.
Children and Adult Services,Head of Adults,Third Party Payments,471101,Purchase of Care,09-Sep-2015,3018882-2261935,"2,043.64",ABBEYVALE.
Children and Adult Services,Head of Adults,Third Party Payments,470101,Purchase of Care,09-Sep-2015,3018882-2262110,"1,970.88",ABBEYVALE.
Children and Adult Services,Head of Adults,Third Party Payments,470101,Purchase of Care,09-Sep-2015,3018882-2262126,"1,970.88",ABBEYVALE.
Children and Adult Services,Head of Adults,Third Party Payments,471101,Purchase of Care,09-Sep-2015,3018882-2262430,"2,043.64",ABBEYVALE.
Children and Adult Services,Head of Adults,Third Party Payments,471101,Purchase of Care,09-Sep-2015,3018882-2262700,"2,043.64",ABBEYVALE.
Children and Adult Services,Head of Adults,Third Party Payments,470101,Purchase of Care,09-Sep-2015,3018882-2262769,"1,970.88",ABBEYVALE.
Children and Adult Services,Head of Adults,Third Party Payments,470101,Purchase of Care,09-Sep-2015,3018882-2262833,"1,970.88",ABBEYVALE.
Children and Adult Services,Head of Adults,Third Party Payments,471101,Purchase of Care,09-Sep-2015,3018882-2262976,"2,043.64",ABBEYVALE.
Children and Adult Services,Head of Adults,Third Party Payments,471101,Purchase of Care,09-Sep-2015,3018882-2263058,"2,043.64",ABBEYVALE.
Children and Adult Services,Head of Adults,Third Party Payments,471101,Purchase of Care,09-Sep-2015,3018882-2263246,"2,043.64",ABBEYVALE.
Children and Adult Services,Head of Adults,Third Party Payments,470101,Purchase of Care,09-Sep-2015,3018883-2259407,"1,970.88",ABBOTTS COURT CARE HOME.
Children and Adult Services,Head of Adults,Third Party Payments,471101,Purchase of Care,09-Sep-2015,3018883-2259485,"2,043.64",ABBOTTS COURT CARE HOME.
Children and Adult Services,Head of Adults,Third Party Payments,471101,Purchase of Care,09-Sep-2015,3018883-2259523,"2,043.64",ABBOTTS COURT CARE HOME.
Children and Adult Services,Head of Adults,Third Party Payments,470101,Purchase of Care,09-Sep-2015,3018883-2259961,"1,970.88",ABBOTTS COURT CARE HOME.
Children and Adult Services,Head of Adults,Third Party Payments,470101,Purchase of Care,09-Sep-2015,3018883-2260042,"1,970.88",ABBOTTS COURT CARE HOME.
Children and Adult Services,Head of Adults,Third Party Payments,471101,Purchase of Care,09-Sep-2015,3018883-2260208,"2,043.64",ABBOTTS COURT CARE HOME.
Children and Adult Services,Head of Adults,Third Party Payments,471101,Purchase of Care,09-Sep-2015,3018883-2260383,"2,043.64",ABBOTTS COURT CARE HOME.
Children and Adult Services,Head of Adults,Third Party Payments,471101,Purchase of Care,09-Sep-2015,3018883-2260512,"2,043.64",ABBOTTS COURT CARE HOME.
Children and Adult Services,Head of Adults,Third Party Payments,470101,Purchase of Care,09-Sep-2015,3018883-2260608,"1,970.88",ABBOTTS COURT CARE HOME.
Children and Adult Services,Head of Adults,Third Party Payments,470101,Purchase of Care,09-Sep-2015,3018883-2260704,"1,970.88",ABBOTTS COURT CARE HOME.
Children and Adult Services,Head of Adults,Third Party Payments,471101,Purchase of Care,09-Sep-2015,3018883-2260759,"2,043.64",ABBOTTS COURT CARE HOME.
Children and Adult Services,Head of Adults,Third Party Payments,470101,Purchase of Care,09-Sep-2015,3018883-2260798,"1,970.88",ABBOTTS COURT CARE HOME.
Children and Adult Services,Head of Adults,Third Party Payments,471101,Purchase of Care,09-Sep-2015,3018883-2260856,"1,240.78",ABBOTTS COURT CARE HOME.
Children and Adult Services,Head of Adults,Third Party Payments,470101,Purchase of Care,09-Sep-2015,3018883-2261001,"1,970.88",ABBOTTS COURT CARE HOME.
Children and Adult Services,Head of Adults,Third Party Payments,470101,Purchase of Care,09-Sep-2015,3018883-2261470,"1,970.88",ABBOTTS COURT CARE HOME.
Children and Adult Services,Head of Adults,Third Party Payments,470101,Purchase of Care,09-Sep-2015,3018883-2261531,"1,970.88",ABBOTTS COURT CARE HOME.
Children and Adult Services,Head of Adults,Third Party Payments,470101,Purchase of Care,09-Sep-2015,3018883-2261581,"1,970.88",ABBOTTS COURT CARE HOME.
Children and Adult Services,Head of Adults,Third Party Payments,470101,Purchase of Care,09-Sep-2015,3018883-2261624,"1,970.88",ABBOTTS COURT CARE HOME.
Children and Adult Services,Head of Adults,Third Party Payments,470101,Purchase of Care,09-Sep-2015,3018883-2261864,"1,970.88",ABBOTTS COURT CARE HOME.
Children and Adult Services,Head of Adults,Third Party Payments,470101,Purchase of Care,09-Sep-2015,3018883-2261934,"2,252.43",ABBOTTS COURT CARE HOME.
Children and Adult Services,Head of Adults,Third Party Payments,470101,Purchase of Care,09-Sep-2015,3018883-2261977,"1,970.88",ABBOTTS COURT CARE HOME.
Children and Adult Services,Head of Adults,Third Party Payments,471101,Purchase of Care,09-Sep-2015,3018883-2262155,"2,043.64",ABBOTTS COURT CARE HOME.
Children and Adult Services,Head of Adults,Third Party Payments,470101,Purchase of Care,09-Sep-2015,3018883-2262485,"1,970.88",ABBOTTS COURT CARE HOME.
Children and Adult Services,Head of Adults,Third Party Payments,470101,Purchase of Care,09-Sep-2015,3018883-2263034,"1,970.88",ABBOTTS COURT CARE HOME.
Children and Adult Services,Head of Adults,Third Party Payments,471101,Purchase of Care,09-Sep-2015,3018883-2263070,"2,043.64",ABBOTTS COURT CARE HOME.
Children and Adult Services,Head of Adults,Third Party Payments,470101,Purchase of Care,09-Sep-2015,3018883-2263427,"1,055.82",ABBOTTS COURT CARE HOME.
Children and Adult Services,Head of Adults,Third Party Payments,470101,Purchase of Care,09-Sep-2015,3018883-2263543,774.27,ABBOTTS COURT CARE HOME.
Children and Adult Services,Head of Adults,Third Party Payments,470101,Purchase of Care,09-Sep-2015,3018884-2260342,"1,864.56",ACOMB COURT.
Children and Adult Services,Head of Adults,Third Party Payments,470101,Purchase of Care,09-Sep-2015,3018885-2259403,"1,865.32",ACORN GRANGE NURSING HOME.
Children and Adult Services,Head of Adults,Third Party Payments,471101,Purchase of Care,09-Sep-2015,3018885-2259436,"1,939.12",ACORN GRANGE NURSING HOME.
Children and Adult Services,Head of Adults,Third Party Payments,470101,Purchase of Care,09-Sep-2015,3018885-2259467,"1,865.32",ACORN GRANGE NURSING HOME.
Children and Adult Services,Head of Adults,Third Party Payments,471101,Purchase of Care,09-Sep-2015,3018885-2259829,"1,939.12",ACORN GRANGE NURSING HOME.
Children and Adult Services,Head of Adults,Third Party Payments,470101,Purchase of Care,09-Sep-2015,3018885-2259933,"1,865.32",ACORN GRANGE NURSING HOME.
Children and Adult Services,Head of Adults,Third Party Payments,471101,Purchase of Care,09-Sep-2015,3018885-2259959,"1,939.12",ACORN GRANGE NURSING HOME.
Children and Adult Services,Head of Adults,Third Party Payments,471101,Purchase of Care,09-Sep-2015,3018885-2260094,"1,939.12",ACORN GRANGE NURSING HOME.
Children and Adult Services,Head of Adults,Third Party Payments,470101,Purchase of Care,09-Sep-2015,3018885-2260099,"1,865.32",ACORN GRANGE NURSING HOME.
Children and Adult Services,Head of Adults,Third Party Payments,470101,Purchase of Care,09-Sep-2015,3018885-2260181,"1,865.32",ACORN GRANGE NURSING HOME.
Children and Adult Services,Head of Adults,Third Party Payments,470101,Purchase of Care,09-Sep-2015,3018885-2260233,"1,865.32",ACORN GRANGE NURSING HOME.
Children and Adult Services,Head of Adults,Third Party Payments,471101,Purchase of Care,09-Sep-2015,3018885-2260389,"1,939.12",ACORN GRANGE NURSING HOME.
Children and Adult Services,Head of Adults,Third Party Payments,471101,Purchase of Care,09-Sep-2015,3018885-2260403,"1,939.12",ACORN GRANGE NURSING HOME.
Children and Adult Services,Head of Adults,Third Party Payments,471101,Purchase of Care,09-Sep-2015,3018885-2260466,"1,939.12",ACORN GRANGE NURSING HOME.
Children and Adult Services,Head of Adults,Third Party Payments,471101,Purchase of Care,09-Sep-2015,3018885-2260483,"1,939.12",ACORN GRANGE NURSING HOME.
Children and Adult Services,Head of Adults,Third Party Payments,471101,Purchase of Care,09-Sep-2015,3018885-2260500,"1,939.12",ACORN GRANGE NURSING HOME.
Children and Adult Services,Head of Adults,Third Party Payments,470101,Purchase of Care,09-Sep-2015,3018885-2260530,"1,865.32",ACORN GRANGE NURSING HOME.
Children and Adult Services,Head of Adults,Third Party Payments,470101,Purchase of Care,09-Sep-2015,3018885-2261125,799.42,ACORN GRANGE NURSING HOME.
Children and Adult Services,Head of Adults,Third Party Payments,470101,Purchase of Care,09-Sep-2015,3018885-2261172,"1,865.32",ACORN GRANGE NURSING HOME.
Children and Adult Services,Head of Adults,Third Party Payments,470101,Purchase of Care,09-Sep-2015,3018885-2261957,"1,065.89",ACORN GRANGE NURSING HOME.
Children and Adult Services,Head of Adults,Third Party Payments,471101,Purchase of Care,09-Sep-2015,3018885-2262347,"1,939.12",ACORN GRANGE NURSING HOME.
Children and Adult Services,Head of Adults,Third Party Payments,471101,Purchase of Care,09-Sep-2015,3018885-2262356,"1,939.12",ACORN GRANGE NURSING HOME.
Children and Adult Services,Head of Adults,Third Party Payments,471101,Purchase of Care,09-Sep-2015,3018885-2262417,"1,939.12",ACORN GRANGE NURSING HOME.
Children and Adult Services,Head of Adults,Third Party Payments,470101,Purchase of Care,09-Sep-2015,3018885-2262514,"1,865.32",ACORN GRANGE NURSING HOME.
Children and Adult Services,Head of Adults,Third Party Payments,471101,Purchase of Care,09-Sep-2015,3018885-2262536,554.03,ACORN GRANGE NURSING HOME.
Children and Adult Services,Head of Adults,Third Party Payments,471101,Purchase of Care,09-Sep-2015,3018885-2262875,"1,939.12",ACORN GRANGE NURSING HOME.
Children and Adult Services,Head of Adults,Third Party Payments,471101,Purchase of Care,09-Sep-2015,3018885-2262907,"1,939.12",ACORN GRANGE NURSING HOME.
Children and Adult Services,Head of Adults,Third Party Payments,471101,Purchase of Care,09-Sep-2015,3018885-2262912,969.56,ACORN GRANGE NURSING HOME.
Children and Adult Services,Head of Adults,Third Party Payments,471101,Purchase of Care,09-Sep-2015,3018885-2262986,"1,939.12",ACORN GRANGE NURSING HOME.
Children and Adult Services,Head of Adults,Third Party Payments,470101,Purchase of Care,09-Sep-2015,3018885-2263242,"1,865.32",ACORN GRANGE NURSING HOME.
Children and Adult Services,Head of Adults,Third Party Payments,471101,Purchase of Care,09-Sep-2015,3018885-2263243,"1,939.12",ACORN GRANGE NURSING HOME.
Children and Adult Services,Head of Adults,Third Party Payments,470101,Purchase of Care,09-Sep-2015,3018885-2263252,"1,865.32",ACORN GRANGE NURSING HOME.
Children and Adult Services,Head of Adults,Third Party Payments,470101,Purchase of Care,09-Sep-2015,3018885-2263374,599.56,ACORN GRANGE NURSING HOME.
Children and Adult Services,Head of Adults,Third Party Payments,470101,Purchase of Care,09-Sep-2015,3018885-2263375,"1,032.56",ACORN GRANGE NURSING HOME.
Children and Adult Services,Head of Adults,Third Party Payments,470101,Purchase of Care,09-Sep-2015,3018886-2261026,"1,816.40",ALBANY CARE HOME.
Children and Adult Services,Head of Adults,Third Party Payments,470101,Purchase of Care,09-Sep-2015,3018886-2261943,"1,946.14",ALBANY CARE HOME.
Children and Adult Services,Head of Adults,Third Party Payments,471101,Purchase of Care,09-Sep-2015,3018887-2262863,881.80,ALEXANDRA VIEW CARE CENTRE.
Children and Adult Services,Head of Adults,Third Party Payments,470101,Purchase of Care,09-Sep-2015,3018888-2259144,911.08,ALLIANCE CARE.
Children and Adult Services,Head of Adults,Third Party Payments,470101,Purchase of Care,09-Sep-2015,3018888-2259200,"1,194.00",ALLIANCE CARE.
Children and Adult Services,Head of Adults,Third Party Payments,470101,Purchase of Care,09-Sep-2015,3018888-2259276,"1,717.16",ALLIANCE CARE.
Children and Adult Services,Head of Adults,Third Party Payments,474101,Purchase of Care,09-Sep-2015,3018888-2259999,"2,074.44",ALLIANCE CARE.
Children and Adult Services,Head of Adults,Third Party Payments,474101,Purchase of Care,09-Sep-2015,3018888-2260104,"2,074.44",ALLIANCE CARE.
Children and Adult Services,Head of Adults,Third Party Payments,470101,Purchase of Care,09-Sep-2015,3018888-2261328,"1,638.36",ALLIANCE CARE.
Children and Adult Services,Head of Adults,Third Party Payments,470101,Purchase of Care,09-Sep-2015,3018888-2261375,"2,038.96",ALLIANCE CARE.
Children and Adult Services,Head of Adults,Third Party Payments,474101,Purchase of Care,09-Sep-2015,3018888-2261817,"1,765.44",ALLIANCE CARE.
Children and Adult Services,Head of Adults,Third Party Payments,470101,Purchase of Care,09-Sep-2015,3018888-2262629,"1,638.36",ALLIANCE CARE.
Children and Adult Services,Head of Adults,Third Party Payments,474101,Purchase of Care,09-Sep-2015,3018888-2263663,"2,296.70",ALLIANCE CARE.
Children and Adult Services,Head of Adults,Third Party Payments,470101,Purchase of Care,09-Sep-2015,3018889-2259148,"1,465.68",ALLIANCE CARE.
Children and Adult Services,Head of Adults,Third Party Payments,471101,Purchase of Care,09-Sep-2015,3018889-2259303,"2,043.64",ALLIANCE CARE.
Children and Adult Services,Head of Adults,Third Party Payments,470101,Purchase of Care,09-Sep-2015,3018889-2259306,"1,703.00",ALLIANCE CARE.
Children and Adult Services,Head of Adults,Third Party Payments,470101,Purchase of Care,09-Sep-2015,3018889-2259518,"1,970.88",ALLIANCE CARE.
Children and Adult Services,Head of Adults,Third Party Payments,470101,Purchase of Care,09-Sep-2015,3018889-2259675,"1,970.88",ALLIANCE CARE.
Children and Adult Services,Head of Adults,Third Party Payments,474101,Purchase of Care,09-Sep-2015,3018889-2260021,"1,399.28",ALLIANCE CARE.
Children and Adult Services,Head of Adults,Third Party Payments,470101,Purchase of Care,09-Sep-2015,3018889-2260155,"1,970.88",ALLIANCE CARE.
Children and Adult Services,Head of Adults,Third Party Payments,471101,Purchase of Care,09-Sep-2015,3018889-2260359,"1,450.00",ALLIANCE CARE.
Children and Adult Services,Head of Adults,Third Party Payments,470101,Purchase of Care,09-Sep-2015,3018889-2260407,"1,465.68",ALLIANCE CARE.
Children and Adult Services,Head of Adults,Third Party Payments,470101,Purchase of Care,09-Sep-2015,3018889-2260629,"1,970.88",ALLIANCE CARE.
Children and Adult Services,Head of Adults,Third Party Payments,470101,Purchase of Care,09-Sep-2015,3018889-2260705,"1,970.88",ALLIANCE CARE.
Children and Adult Services,Head of Adults,Third Party Payments,470101,Purchase of Care,09-Sep-2015,3018889-2260746,"1,337.04",ALLIANCE CARE.
Children and Adult Services,Head of Adults,Third Party Payments,470101,Purchase of Care,09-Sep-2015,3018889-2260863,"1,126.21",ALLIANCE CARE.
Children and Adult Services,Head of Adults,Third Party Payments,471101,Purchase of Care,09-Sep-2015,3018889-2260864,"1,403.05",ALLIANCE CARE.
Children and Adult Services,Head of Adults,Third Party Payments,471101,Purchase of Care,09-Sep-2015,3018889-2260892,"1,386.75",ALLIANCE CARE.
Children and Adult Services,Head of Adults,Third Party Payments,471101,Purchase of Care,09-Sep-2015,3018889-2261007,"2,043.64",ALLIANCE CARE.
Children and Adult Services,Head of Adults,Third Party Payments,474101,Purchase of Care,09-Sep-2015,3018889-2261063,"1,558.88",ALLIANCE CARE.
Children and Adult Services,Head of Adults,Third Party Payments,470101,Purchase of Care,09-Sep-2015,3018889-2261114,"4,364.09",ALLIANCE CARE.
Children and Adult Services,Head of Adults,Third Party Payments,470101,Purchase of Care,09-Sep-2015,3018889-2261236,866.36,ALLIANCE CARE.
Children and Adult Services,Head of Adults,Third Party Payments,471101,Purchase of Care,09-Sep-2015,3018889-2261297,"1,454.44",ALLIANCE CARE.
Children and Adult Services,Head of Adults,Third Party Payments,474101,Purchase of Care,09-Sep-2015,3018889-2261405,"1,032.04",ALLIANCE CARE.
Children and Adult Services,Head of Adults,Third Party Payments,470101,Purchase of Care,09-Sep-2015,3018889-2261408,650.68,ALLIANCE CARE.
Children and Adult Services,Head of Adults,Third Party Payments,474101,Purchase of Care,09-Sep-2015,3018889-2261461,"2,064.08",ALLIANCE CARE.
Children and Adult Services,Head of Adults,Third Party Payments,470101,Purchase of Care,09-Sep-2015,3018889-2261475,633.49,ALLIANCE CARE.
Children and Adult Services,Head of Adults,Third Party Payments,471101,Purchase of Care,09-Sep-2015,3018889-2261595,"1,021.80",ALLIANCE CARE.
Children and Adult Services,Head of Adults,Third Party Payments,471101,Purchase of Care,09-Sep-2015,3018889-2261751,"1,538.44",ALLIANCE CARE.
Children and Adult Services,Head of Adults,Third Party Payments,474101,Purchase of Care,09-Sep-2015,3018889-2261798,"1,375.40",ALLIANCE CARE.
Children and Adult Services,Head of Adults,Debtors,930135,Debtor Residential Care - IC+ Rehabilitation,09-Sep-2015,3018889-2261823,621.09,ALLIANCE CARE.
Children and Adult Services,Head of Adults,Third Party Payments,471101,Purchase of Care,09-Sep-2015,3018889-2261862,"2,043.64",ALLIANCE CARE.
Children and Adult Services,Head of Adults,Debtors,930135,Debtor Residential Care - IC+ Rehabilitation,09-Sep-2015,3018889-2261875,621.09,ALLIANCE CARE.
Children and Adult Services,Head of Adults,Third Party Payments,470101,Purchase of Care,09-Sep-2015,3018889-2261983,"1,443.88",ALLIANCE CARE.
Children and Adult Services,Head of Adults,Debtors,930135,Debtor Residential Care - IC+ Rehabilitation,09-Sep-2015,3018889-2262143,828.12,ALLIANCE CARE.
Children and Adult Services,Head of Adults,Third Party Payments,470101,Purchase of Care,09-Sep-2015,3018889-2262157,"1,970.88",ALLIANCE CARE.
Children and Adult Services,Head of Adults,Third Party Payments,470101,Purchase of Care,09-Sep-2015,3018889-2262258,"1,241.76",ALLIANCE CARE.
Children and Adult Services,Head of Adults,Third Party Payments,471101,Purchase of Care,09-Sep-2015,3018889-2262349,"2,043.64",ALLIANCE CARE.
Children and Adult Services,Head of Adults,Third Party Payments,471101,Purchase of Care,09-Sep-2015,3018889-2262467,"2,043.64",ALLIANCE CARE.
Children and Adult Services,Head of Adults,Third Party Payments,474101,Purchase of Care,09-Sep-2015,3018889-2262852,634.49,ALLIANCE CARE.
Children and Adult Services,Head of Adults,Third Party Payments,470101,Purchase of Care,09-Sep-2015,3018889-2262909,"1,970.88",ALLIANCE CARE.
Children and Adult Services,Head of Adults,Third Party Payments,470101,Purchase of Care,09-Sep-2015,3018889-2262977,"1,005.32",ALLIANCE CARE.
Children and Adult Services,Head of Adults,Third Party Payments,474101,Purchase of Care,09-Sep-2015,3018889-2263067,"2,064.08",ALLIANCE CARE.
Children and Adult Services,Head of Adults,Third Party Payments,470101,Purchase of Care,09-Sep-2015,3018889-2263075,"1,970.88",ALLIANCE CARE.
Children and Adult Services,Head of Adults,Third Party Payments,470101,Purchase of Care,09-Sep-2015,3018889-2263142,985.44,ALLIANCE CARE.
Children and Adult Services,Head of Adults,Debtors,930135,Debtor Residential Care - IC+ Rehabilitation,09-Sep-2015,3018889-2263589,"1,242.18",ALLIANCE CARE.
Children and Adult Services,Head of Adults,Third Party Payments,470101,Purchase of Care,09-Sep-2015,3018889-2263591,"1,407.77",ALLIANCE CARE.
Children and Adult Services,Head of Adults,Debtors,930135,Debtor Residential Care - IC+ Rehabilitation,09-Sep-2015,3018889-2263592,"1,104.16",ALLIANCE CARE.
Children and Adult Services,Head of Adults,Debtors,930135,Debtor Residential Care - IC+ Rehabilitation,09-Sep-2015,3018889-2263594,"1,656.24",ALLIANCE CARE.
Children and Adult Services,Head of Adults,Debtors,930135,Debtor Residential Care - IC+ Rehabilitation,09-Sep-2015,3018889-2263598,"1,518.22",ALLIANCE CARE.
Children and Adult Services,Head of Adults,Third Party Payments,470101,Purchase of Care,09-Sep-2015,3018889-2263599,"1,478.16",ALLIANCE CARE.
Children and Adult Services,Head of Adults,Debtors,930135,Debtor Residential Care - IC+ Rehabilitation,09-Sep-2015,3018889-2263603,"1,173.17",ALLIANCE CARE.
Children and Adult Services,Head of Adults,Debtors,930135,Debtor Residential Care - IC+ Rehabilitation,09-Sep-2015,3018889-2263604,"1,587.23",ALLIANCE CARE.
Children and Adult Services,Head of Adults,Third Party Payments,471101,Purchase of Care,09-Sep-2015,3018889-2263606,"15,523.34",ALLIANCE CARE.
Children and Adult Services,Head of Adults,Third Party Payments,470101,Purchase of Care,09-Sep-2015,3018890-2260297,"1,661.12",AMELIA HOUSE.
Children and Adult Services,Head of Adults,Third Party Payments,471101,Purchase of Care,09-Sep-2015,3018891-2257980,"2,132.08",AMERIND GROVE NURSING HOME.
Children and Adult Services,Head of Adults,Third Party Payments,471101,Purchase of Care,09-Sep-2015,3018891-2262669,"2,132.08",AMERIND GROVE NURSING HOME.
Children and Adult Services,Head of Adults,Third Party Payments,470101,Purchase of Care,09-Sep-2015,3018892-2256524,"1,824.00",ANCHOR HOUSING ASSOCIATION.
Children and Adult Services,Head of Adults,Third Party Payments,470101,Purchase of Care,09-Sep-2015,3018892-2257688,"1,824.00",ANCHOR HOUSING ASSOCIATION.
Children and Adult Services,Head of Adults,Third Party Payments,470101,Purchase of Care,09-Sep-2015,3018892-2258208,"1,824.00",ANCHOR HOUSING ASSOCIATION.
Children and Adult Services,Head of Adults,Third Party Payments,470101,Purchase of Care,09-Sep-2015,3018892-2261248,"1,824.00",ANCHOR HOUSING ASSOCIATION.
Children and Adult Services,Head of Adults,Third Party Payments,470101,Purchase of Care,09-Sep-2015,3018892-2262401,"1,824.00",ANCHOR HOUSING ASSOCIATION.
Children and Adult Services,Head of Adults,Third Party Payments,470101,Purchase of Care,09-Sep-2015,3018892-2262865,"1,824.00",ANCHOR HOUSING ASSOCIATION.
Children and Adult Services,Head of Adults,Third Party Payments,474101,Purchase of Care,09-Sep-2015,3018893-2260031,"1,620.48",ANN CHARLTON LODGE.
Children and Adult Services,Head of Adults,Third Party Payments,470101,Purchase of Care,09-Sep-2015,3018894-2257480,502.28,ARK HOUSE REHAB LTD.
Children and Adult Services,Head of Adults,Third Party Payments,471101,Purchase of Care,09-Sep-2015,3018895-2259714,"1,400.32",ASCOT CARE NORTHEAST LTD.
Children and Adult Services,Head of Adults,Third Party Payments,474101,Purchase of Care,09-Sep-2015,3018895-2260338,"1,361.36",ASCOT CARE NORTHEAST LTD.
Children and Adult Services,Head of Adults,Third Party Payments,470101,Purchase of Care,09-Sep-2015,3018895-2260852,"1,865.32",ASCOT CARE NORTHEAST LTD.
Children and Adult Services,Head of Adults,Third Party Payments,471101,Purchase of Care,09-Sep-2015,3018895-2261208,"1,433.92",ASCOT CARE NORTHEAST LTD.
Children and Adult Services,Head of Adults,Third Party Payments,470101,Purchase of Care,09-Sep-2015,3018895-2261219,"1,073.60",ASCOT CARE NORTHEAST LTD.
Children and Adult Services,Head of Adults,Third Party Payments,471101,Purchase of Care,09-Sep-2015,3018895-2261530,"1,196.70",ASCOT CARE NORTHEAST LTD.
Children and Adult Services,Head of Adults,Third Party Payments,470101,Purchase of Care,09-Sep-2015,3018895-2261699,"1,865.32",ASCOT CARE NORTHEAST LTD.
Children and Adult Services,Head of Adults,Third Party Payments,470101,Purchase of Care,09-Sep-2015,3018895-2261773,"1,360.12",ASCOT CARE NORTHEAST LTD.
Children and Adult Services,Head of Adults,Third Party Payments,470101,Purchase of Care,09-Sep-2015,3018895-2261882,"1,360.12",ASCOT CARE NORTHEAST LTD.
Children and Adult Services,Head of Adults,Third Party Payments,470101,Purchase of Care,09-Sep-2015,3018895-2262116,"1,269.96",ASCOT CARE NORTHEAST LTD.
Children and Adult Services,Head of Adults,Third Party Payments,471101,Purchase of Care,09-Sep-2015,3018895-2262201,959.52,ASCOT CARE NORTHEAST LTD.
Children and Adult Services,Head of Adults,Third Party Payments,470101,Purchase of Care,09-Sep-2015,3018895-2262284,"1,342.60",ASCOT CARE NORTHEAST LTD.
Children and Adult Services,Head of Adults,Third Party Payments,470101,Purchase of Care,09-Sep-2015,3018895-2262389,"1,360.12",ASCOT CARE NORTHEAST LTD.
Children and Adult Services,Head of Adults,Third Party Payments,470101,Purchase of Care,09-Sep-2015,3018895-2262474,"1,212.68",ASCOT CARE NORTHEAST LTD.
Children and Adult Services,Head of Adults,Third Party Payments,470101,Purchase of Care,09-Sep-2015,3018895-2262710,974.04,ASCOT CARE NORTHEAST LTD.
Children and Adult Services,Head of Adults,Third Party Payments,470101,Purchase of Care,09-Sep-2015,3018895-2262742,"1,360.12",ASCOT CARE NORTHEAST LTD.
Children and Adult Services,Head of Adults,Third Party Payments,470101,Purchase of Care,09-Sep-2015,3018895-2262825,"1,315.92",ASCOT CARE NORTHEAST LTD.
Children and Adult Services,Head of Adults,Third Party Payments,470101,Purchase of Care,09-Sep-2015,3018895-2262906,"1,865.32",ASCOT CARE NORTHEAST LTD.
Children and Adult Services,Head of Adults,Third Party Payments,474101,Purchase of Care,09-Sep-2015,3018895-2262920,"1,158.76",ASCOT CARE NORTHEAST LTD.
Children and Adult Services,Head of Adults,Third Party Payments,474101,Purchase of Care,09-Sep-2015,3018895-2263015,"1,010.24",ASCOT CARE NORTHEAST LTD.
Children and Adult Services,Head of Adults,Third Party Payments,474101,Purchase of Care,09-Sep-2015,3018895-2263134,"1,331.68",ASCOT CARE NORTHEAST LTD.
Children and Adult Services,Head of Adults,Third Party Payments,470101,Purchase of Care,09-Sep-2015,3018896-2260150,"1,824.00",ASCOT CARE T/A THE GARDENS CARE HOME.
Children and Adult Services,Head of Adults,Third Party Payments,470101,Purchase of Care,09-Sep-2015,3018897-2242838,"2,596.80",ASHFIELD NURSING HOME LTD.
Children and Adult Services,Head of Adults,Third Party Payments,470101,Purchase of Care,09-Sep-2015,3018897-2249932,"2,596.80",ASHFIELD NURSING HOME LTD.
Children and Adult Services,Head of Adults,Third Party Payments,470101,Purchase of Care,09-Sep-2015,3018897-2254879,"2,596.80",ASHFIELD NURSING HOME LTD.
Children and Adult Services,Head of Adults,Third Party Payments,470101,Purchase of Care,09-Sep-2015,3018897-2259570,"2,596.80",ASHFIELD NURSING HOME LTD.
Children and Adult Services,Head of Adults,Third Party Payments,470101,Purchase of Care,09-Sep-2015,3018898-2261929,"1,846.85",WINNIE CARE (ASHLEA COURT GRIMSBY) LTD.
Children and Adult Services,Head of Adults,Third Party Payments,470101,Purchase of Care,09-Sep-2015,3018899-2259688,"1,660.20",ASHLEIGH HOUSE CARE HOME.
Children and Adult Services,Head of Adults,Third Party Payments,470101,Purchase of Care,09-Sep-2015,3018899-2259913,"1,102.00",ASHLEIGH HOUSE CARE HOME.
Children and Adult Services,Head of Adults,Third Party Payments,470101,Purchase of Care,09-Sep-2015,3018899-2260325,950.00,ASHLEIGH HOUSE CARE HOME.
Children and Adult Services,Head of Adults,Third Party Payments,470101,Purchase of Care,09-Sep-2015,3018899-2260481,950.00,ASHLEIGH HOUSE CARE HOME.
Children and Adult Services,Head of Adults,Third Party Payments,470101,Purchase of Care,09-Sep-2015,3018900-2259638,"3,564.00",AUTISM CARE UK (4) LTD.
Children and Adult Services,Head of Adults,Third Party Payments,470101,Purchase of Care,09-Sep-2015,3018900-2260434,"4,244.80",AUTISM CARE UK (4) LTD.
Children and Adult Services,Head of Adults,Third Party Payments,470101,Purchase of Care,09-Sep-2015,3018900-2260435,"1,742.44",AUTISM CARE UK (4) LTD.
Children and Adult Services,Head of Adults,Third Party Payments,470101,Purchase of Care,09-Sep-2015,3018900-2260436,568.96,AUTISM CARE UK (4) LTD.
Children and Adult Services,Head of Adults,Third Party Payments,470101,Purchase of Care,09-Sep-2015,3018901-2259790,"9,318.00",AUTISM NORTH.
Children and Adult Services,Head of Adults,Third Party Payments,470101,Purchase of Care,09-Sep-2015,3018902-2259501,"6,478.68",AUTISM NORTH.
Children and Adult Services,Head of Adults,Third Party Payments,470101,Purchase of Care,09-Sep-2015,3018903-2259107,"1,865.32",AYCLIFFE CARE HOME.
Children and Adult Services,Head of Adults,Third Party Payments,471101,Purchase of Care,09-Sep-2015,3018903-2259269,"1,939.12",AYCLIFFE CARE HOME.
Children and Adult Services,Head of Adults,Third Party Payments,471101,Purchase of Care,09-Sep-2015,3018903-2259287,"1,939.12",AYCLIFFE CARE HOME.
Children and Adult Services,Head of Adults,Third Party Payments,471101,Purchase of Care,09-Sep-2015,3018903-2259348,"1,939.12",AYCLIFFE CARE HOME.
Children and Adult Services,Head of Adults,Third Party Payments,470101,Purchase of Care,09-Sep-2015,3018903-2259356,"1,865.32",AYCLIFFE CARE HOME.
Children and Adult Services,Head of Adults,Third Party Payments,470101,Purchase of Care,09-Sep-2015,3018903-2259680,"1,865.32",AYCLIFFE CARE HOME.
Children and Adult Services,Head of Adults,Third Party Payments,471101,Purchase of Care,09-Sep-2015,3018903-2259823,"1,939.12",AYCLIFFE CARE HOME.
Children and Adult Services,Head of Adults,Third Party Payments,470101,Purchase of Care,09-Sep-2015,3018903-2259925,"1,865.32",AYCLIFFE CARE HOME.
Children and Adult Services,Head of Adults,Third Party Payments,474101,Purchase of Care,09-Sep-2015,3018903-2260026,979.24,AYCLIFFE CARE HOME.
Children and Adult Services,Head of Adults,Third Party Payments,470101,Purchase of Care,09-Sep-2015,3018903-2260276,"1,865.32",AYCLIFFE CARE HOME.
Children and Adult Services,Head of Adults,Third Party Payments,474101,Purchase of Care,09-Sep-2015,3018903-2260369,"1,958.48",AYCLIFFE CARE HOME.
Children and Adult Services,Head of Adults,Third Party Payments,470101,Purchase of Care,09-Sep-2015,3018903-2260380,"1,865.32",AYCLIFFE CARE HOME.
Children and Adult Services,Head of Adults,Third Party Payments,470101,Purchase of Care,09-Sep-2015,3018903-2260605,"1,865.32",AYCLIFFE CARE HOME.
Children and Adult Services,Head of Adults,Third Party Payments,471101,Purchase of Care,09-Sep-2015,3018903-2260762,"1,939.12",AYCLIFFE CARE HOME.
Children and Adult Services,Head of Adults,Third Party Payments,474101,Purchase of Care,09-Sep-2015,3018903-2260763,979.24,AYCLIFFE CARE HOME.
Children and Adult Services,Head of Adults,Third Party Payments,471101,Purchase of Care,09-Sep-2015,3018903-2260936,"1,939.12",AYCLIFFE CARE HOME.
Children and Adult Services,Head of Adults,Third Party Payments,470101,Purchase of Care,09-Sep-2015,3018903-2261040,"1,865.32",AYCLIFFE CARE HOME.
Children and Adult Services,Head of Adults,Third Party Payments,474101,Purchase of Care,09-Sep-2015,3018903-2261092,"1,888.53",AYCLIFFE CARE HOME.
Children and Adult Services,Head of Adults,Third Party Payments,470101,Purchase of Care,09-Sep-2015,3018903-2261117,932.66,AYCLIFFE CARE HOME.
Children and Adult Services,Head of Adults,Third Party Payments,474101,Purchase of Care,09-Sep-2015,3018903-2261126,909.29,AYCLIFFE CARE HOME.
Children and Adult Services,Head of Adults,Third Party Payments,470101,Purchase of Care,09-Sep-2015,3018903-2261228,"1,865.32",AYCLIFFE CARE HOME.
Children and Adult Services,Head of Adults,Third Party Payments,470101,Purchase of Care,09-Sep-2015,3018903-2261315,"1,865.32",AYCLIFFE CARE HOME.
Children and Adult Services,Head of Adults,Third Party Payments,471101,Purchase of Care,09-Sep-2015,3018903-2261385,"1,939.12",AYCLIFFE CARE HOME.
Children and Adult Services,Head of Adults,Third Party Payments,471101,Purchase of Care,09-Sep-2015,3018903-2261573,"1,939.12",AYCLIFFE CARE HOME.
Children and Adult Services,Head of Adults,Third Party Payments,471101,Purchase of Care,09-Sep-2015,3018903-2261591,"1,939.12",AYCLIFFE CARE HOME.
Children and Adult Services,Head of Adults,Third Party Payments,471101,Purchase of Care,09-Sep-2015,3018903-2261674,"1,038.81",AYCLIFFE CARE HOME.
Children and Adult Services,Head of Adults,Third Party Payments,471101,Purchase of Care,09-Sep-2015,3018903-2261826,"1,939.12",AYCLIFFE CARE HOME.
Children and Adult Services,Head of Adults,Third Party Payments,470101,Purchase of Care,09-Sep-2015,3018903-2261835,"1,865.32",AYCLIFFE CARE HOME.
Children and Adult Services,Head of Adults,Third Party Payments,471101,Purchase of Care,09-Sep-2015,3018903-2261950,"1,939.12",AYCLIFFE CARE HOME.
Children and Adult Services,Head of Adults,Third Party Payments,474101,Purchase of Care,09-Sep-2015,3018903-2261969,"1,958.48",AYCLIFFE CARE HOME.
Children and Adult Services,Head of Adults,Third Party Payments,471101,Purchase of Care,09-Sep-2015,3018903-2262154,"1,939.12",AYCLIFFE CARE HOME.
Children and Adult Services,Head of Adults,Third Party Payments,474101,Purchase of Care,09-Sep-2015,3018903-2262213,979.24,AYCLIFFE CARE HOME.
Children and Adult Services,Head of Adults,Third Party Payments,470101,Purchase of Care,09-Sep-2015,3018903-2262302,"1,065.89",AYCLIFFE CARE HOME.
Children and Adult Services,Head of Adults,Third Party Payments,470101,Purchase of Care,09-Sep-2015,3018903-2262422,932.68,AYCLIFFE CARE HOME.
Children and Adult Services,Head of Adults,Third Party Payments,471101,Purchase of Care,09-Sep-2015,3018903-2262489,"1,939.12",AYCLIFFE CARE HOME.
Children and Adult Services,Head of Adults,Third Party Payments,471101,Purchase of Care,09-Sep-2015,3018903-2262540,"1,939.12",AYCLIFFE CARE HOME.
Children and Adult Services,Head of Adults,Third Party Payments,470101,Purchase of Care,09-Sep-2015,3018903-2262581,"1,865.32",AYCLIFFE CARE HOME.
Children and Adult Services,Head of Adults,Third Party Payments,470101,Purchase of Care,09-Sep-2015,3018903-2262635,"1,865.32",AYCLIFFE CARE HOME.
Children and Adult Services,Head of Adults,Third Party Payments,474101,Purchase of Care,09-Sep-2015,3018903-2262716,"1,958.48",AYCLIFFE CARE HOME.
Children and Adult Services,Head of Adults,Third Party Payments,474101,Purchase of Care,09-Sep-2015,3018903-2262740,"1,958.48",AYCLIFFE CARE HOME.
Children and Adult Services,Head of Adults,Third Party Payments,471101,Purchase of Care,09-Sep-2015,3018903-2263095,"1,939.12",AYCLIFFE CARE HOME.
Children and Adult Services,Head of Adults,Third Party Payments,470101,Purchase of Care,09-Sep-2015,3018903-2263119,"1,865.32",AYCLIFFE CARE HOME.
Children and Adult Services,Head of Adults,Third Party Payments,470101,Purchase of Care,09-Sep-2015,3018903-2263214,"1,865.32",AYCLIFFE CARE HOME.
Children and Adult Services,Head of Adults,Third Party Payments,474101,Purchase of Care,09-Sep-2015,3018903-2263244,979.24,AYCLIFFE CARE HOME.
Children and Adult Services,Head of Adults,Third Party Payments,471101,Purchase of Care,09-Sep-2015,3018904-2260214,"1,894.20",BARCHESTER HEALTHCARE HOMES LTD.
Children and Adult Services,Head of Adults,Third Party Payments,474101,Purchase of Care,09-Sep-2015,3018905-2259165,"2,136.00",BARCHESTER HEALTHCARE HOMES LTD.
Children and Adult Services,Head of Adults,Third Party Payments,474101,Purchase of Care,09-Sep-2015,3018905-2259238,"1,958.48",BARCHESTER HEALTHCARE HOMES LTD.
Children and Adult Services,Head of Adults,Third Party Payments,474101,Purchase of Care,09-Sep-2015,3018905-2259370,"1,958.48",BARCHESTER HEALTHCARE HOMES LTD.
Children and Adult Services,Head of Adults,Third Party Payments,474101,Purchase of Care,09-Sep-2015,3018905-2259480,"1,958.48",BARCHESTER HEALTHCARE HOMES LTD.
Children and Adult Services,Head of Adults,Third Party Payments,474101,Purchase of Care,09-Sep-2015,3018905-2259703,"1,958.48",BARCHESTER HEALTHCARE HOMES LTD.
Children and Adult Services,Head of Adults,Third Party Payments,474101,Purchase of Care,09-Sep-2015,3018905-2259772,"1,958.48",BARCHESTER HEALTHCARE HOMES LTD.
Children and Adult Services,Head of Adults,Third Party Payments,474101,Purchase of Care,09-Sep-2015,3018905-2259988,"1,958.48",BARCHESTER HEALTHCARE HOMES LTD.
Children and Adult Services,Head of Adults,Third Party Payments,474101,Purchase of Care,09-Sep-2015,3018905-2260028,"1,958.48",BARCHESTER HEALTHCARE HOMES LTD.
Children and Adult Services,Head of Adults,Third Party Payments,474101,Purchase of Care,09-Sep-2015,3018905-2260505,"1,958.48",BARCHESTER HEALTHCARE HOMES LTD.
Children and Adult Services,Head of Adults,Third Party Payments,474101,Purchase of Care,09-Sep-2015,3018905-2260790,"1,958.48",BARCHESTER HEALTHCARE HOMES LTD.
Children and Adult Services,Head of Adults,Third Party Payments,474101,Purchase of Care,09-Sep-2015,3018905-2260927,"2,136.00",BARCHESTER HEALTHCARE HOMES LTD.
Children and Adult Services,Head of Adults,Third Party Payments,474101,Purchase of Care,09-Sep-2015,3018905-2261034,"1,958.48",BARCHESTER HEALTHCARE HOMES LTD.
Children and Adult Services,Head of Adults,Third Party Payments,474101,Purchase of Care,09-Sep-2015,3018905-2261146,"2,136.00",BARCHESTER HEALTHCARE HOMES LTD.
Children and Adult Services,Head of Adults,Third Party Payments,474101,Purchase of Care,09-Sep-2015,3018905-2261242,979.24,BARCHESTER HEALTHCARE HOMES LTD.
Children and Adult Services,Head of Adults,Third Party Payments,474101,Purchase of Care,09-Sep-2015,3018905-2261278,"2,136.00",BARCHESTER HEALTHCARE HOMES LTD.
Children and Adult Services,Head of Adults,Third Party Payments,474101,Purchase of Care,09-Sep-2015,3018905-2261346,979.24,BARCHESTER HEALTHCARE HOMES LTD.
Children and Adult Services,Head of Adults,Third Party Payments,474101,Purchase of Care,09-Sep-2015,3018905-2261509,"1,958.48",BARCHESTER HEALTHCARE HOMES LTD.
Children and Adult Services,Head of Adults,Third Party Payments,474101,Purchase of Care,09-Sep-2015,3018905-2261676,"7,624.08",BARCHESTER HEALTHCARE HOMES LTD.
Children and Adult Services,Central/Other,Debtors,930024,Debtor-free nursing care,09-Sep-2015,3018905-2261677,"2,374.00",BARCHESTER HEALTHCARE HOMES LTD.
Children and Adult Services,Head of Adults,Third Party Payments,474101,Purchase of Care,09-Sep-2015,3018905-2261806,979.24,BARCHESTER HEALTHCARE HOMES LTD.
Children and Adult Services,Head of Adults,Third Party Payments,474101,Purchase of Care,09-Sep-2015,3018905-2261814,"1,958.48",BARCHESTER HEALTHCARE HOMES LTD.
Children and Adult Services,Head of Adults,Third Party Payments,470101,Purchase of Care,09-Sep-2015,3018905-2261880,"3,182.00",BARCHESTER HEALTHCARE HOMES LTD.
Children and Adult Services,Head of Adults,Third Party Payments,474101,Purchase of Care,09-Sep-2015,3018905-2261944,"1,958.48",BARCHESTER HEALTHCARE HOMES LTD.
Children and Adult Services,Central/Other,Debtors,930024,Debtor-free nursing care,09-Sep-2015,3018905-2262262,512.00,BARCHESTER HEALTHCARE HOMES LTD.
Children and Adult Services,Head of Adults,Third Party Payments,474101,Purchase of Care,09-Sep-2015,3018905-2262459,"1,271.64",BARCHESTER HEALTHCARE HOMES LTD.
Children and Adult Services,Head of Adults,Third Party Payments,474101,Purchase of Care,09-Sep-2015,3018905-2262781,"2,600.00",BARCHESTER HEALTHCARE HOMES LTD.
Children and Adult Services,Head of Adults,Third Party Payments,474101,Purchase of Care,09-Sep-2015,3018905-2262929,979.24,BARCHESTER HEALTHCARE HOMES LTD.
Children and Adult Services,Head of Adults,Third Party Payments,474101,Purchase of Care,09-Sep-2015,3018905-2262990,"1,958.48",BARCHESTER HEALTHCARE HOMES LTD.
Children and Adult Services,Head of Adults,Third Party Payments,474101,Purchase of Care,09-Sep-2015,3018905-2262999,"1,958.48",BARCHESTER HEALTHCARE HOMES LTD.
Children and Adult Services,Head of Adults,Third Party Payments,474101,Purchase of Care,09-Sep-2015,3018905-2263062,"1,958.48",BARCHESTER HEALTHCARE HOMES LTD.
Children and Adult Services,Head of Adults,Third Party Payments,474101,Purchase of Care,09-Sep-2015,3018905-2263203,"1,958.48",BARCHESTER HEALTHCARE HOMES LTD.
Children and Adult Services,Head of Adults,Third Party Payments,474101,Purchase of Care,09-Sep-2015,3018905-2263235,"1,958.48",BARCHESTER HEALTHCARE HOMES LTD.
Children and Adult Services,Head of Adults,Third Party Payments,474101,Purchase of Care,09-Sep-2015,3018905-2263632,629.51,BARCHESTER HEALTHCARE HOMES LTD.
Children and Adult Services,Head of Adults,Third Party Payments,474101,Purchase of Care,09-Sep-2015,3018905-2263634,"1,958.48",BARCHESTER HEALTHCARE HOMES LTD.
Children and Adult Services,Head of Adults,Third Party Payments,474101,Purchase of Care,09-Sep-2015,3018905-2263637,"1,888.53",BARCHESTER HEALTHCARE HOMES LTD.
Children and Adult Services,Head of Adults,Third Party Payments,471101,Purchase of Care,09-Sep-2015,3018906-2260702,"1,100.00",BARCHESTER HEALTHCARE HOMES LTD.
Children and Adult Services,Head of Adults,Third Party Payments,474101,Purchase of Care,09-Sep-2015,3018907-2260952,"1,984.00",BARCHESTER HEALTHCARE HOMES LTD.
Children and Adult Services,Head of Adults,Third Party Payments,471101,Purchase of Care,09-Sep-2015,3018908-2255328,"1,872.00",BARCHESTER HEALTHCARE HOMES LTD.
Children and Adult Services,Head of Adults,Third Party Payments,471101,Purchase of Care,09-Sep-2015,3018908-2256075,"1,805.14",BARCHESTER HEALTHCARE HOMES LTD.
Children and Adult Services,Head of Adults,Third Party Payments,471101,Purchase of Care,09-Sep-2015,3018908-2256159,"1,872.00",BARCHESTER HEALTHCARE HOMES LTD.
Children and Adult Services,Head of Adults,Third Party Payments,471101,Purchase of Care,09-Sep-2015,3018908-2257059,"1,872.00",BARCHESTER HEALTHCARE HOMES LTD.
Children and Adult Services,Head of Adults,Third Party Payments,471101,Purchase of Care,09-Sep-2015,3018908-2257340,"1,872.00",BARCHESTER HEALTHCARE HOMES LTD.
Children and Adult Services,Head of Adults,Third Party Payments,470101,Purchase of Care,09-Sep-2015,3018908-2257400,"1,816.00",BARCHESTER HEALTHCARE HOMES LTD.
Children and Adult Services,Head of Adults,Third Party Payments,471101,Purchase of Care,09-Sep-2015,3018908-2257734,"1,872.00",BARCHESTER HEALTHCARE HOMES LTD.
Children and Adult Services,Head of Adults,Third Party Payments,471101,Purchase of Care,09-Sep-2015,3018908-2257788,"1,878.00",BARCHESTER HEALTHCARE HOMES LTD.
Children and Adult Services,Head of Adults,Third Party Payments,471101,Purchase of Care,09-Sep-2015,3018908-2260015,"1,872.00",BARCHESTER HEALTHCARE HOMES LTD.
Children and Adult Services,Head of Adults,Third Party Payments,471101,Purchase of Care,09-Sep-2015,3018908-2260731,"1,872.00",BARCHESTER HEALTHCARE HOMES LTD.
Children and Adult Services,Head of Adults,Third Party Payments,471101,Purchase of Care,09-Sep-2015,3018908-2260801,"1,872.00",BARCHESTER HEALTHCARE HOMES LTD.
Children and Adult Services,Head of Adults,Third Party Payments,471101,Purchase of Care,09-Sep-2015,3018908-2261780,"1,872.00",BARCHESTER HEALTHCARE HOMES LTD.
Children and Adult Services,Head of Adults,Third Party Payments,471101,Purchase of Care,09-Sep-2015,3018908-2262085,"1,872.00",BARCHESTER HEALTHCARE HOMES LTD.
Children and Adult Services,Head of Adults,Third Party Payments,470101,Purchase of Care,09-Sep-2015,3018908-2262138,"1,816.00",BARCHESTER HEALTHCARE HOMES LTD.
Children and Adult Services,Head of Adults,Third Party Payments,471101,Purchase of Care,09-Sep-2015,3018908-2262444,"1,872.00",BARCHESTER HEALTHCARE HOMES LTD.
Children and Adult Services,Head of Adults,Third Party Payments,471101,Purchase of Care,09-Sep-2015,3018908-2262487,"1,872.00",BARCHESTER HEALTHCARE HOMES LTD.
Children and Adult Services,Head of Adults,Third Party Payments,474101,Purchase of Care,09-Sep-2015,3018909-2259151,"1,836.72",BARNES COURT NURSING HOME.
Children and Adult Services,Head of Adults,Third Party Payments,470101,Purchase of Care,09-Sep-2015,3018910-2260463,"1,865.32",BEACONSFIELD COURT.
Children and Adult Services,Head of Adults,Third Party Payments,470101,Purchase of Care,09-Sep-2015,3018910-2260592,"1,865.32",BEACONSFIELD COURT.
Children and Adult Services,Head of Adults,Third Party Payments,470101,Purchase of Care,09-Sep-2015,3018910-2260594,"1,865.32",BEACONSFIELD COURT.
Children and Adult Services,Head of Adults,Third Party Payments,470101,Purchase of Care,09-Sep-2015,3018910-2260851,"1,865.32",BEACONSFIELD COURT.
Children and Adult Services,Head of Adults,Third Party Payments,470101,Purchase of Care,09-Sep-2015,3018910-2261021,"1,119.19",BEACONSFIELD COURT.
Children and Adult Services,Head of Adults,Third Party Payments,470101,Purchase of Care,09-Sep-2015,3018910-2261423,"1,865.32",BEACONSFIELD COURT.
Children and Adult Services,Head of Adults,Third Party Payments,470101,Purchase of Care,09-Sep-2015,3018910-2261697,"1,865.32",BEACONSFIELD COURT.
Children and Adult Services,Head of Adults,Third Party Payments,470101,Purchase of Care,09-Sep-2015,3018910-2261760,"1,865.32",BEACONSFIELD COURT.
Children and Adult Services,Head of Adults,Third Party Payments,470101,Purchase of Care,09-Sep-2015,3018910-2261796,"1,865.32",BEACONSFIELD COURT.
Children and Adult Services,Head of Adults,Third Party Payments,470101,Purchase of Care,09-Sep-2015,3018910-2261979,"1,865.32",BEACONSFIELD COURT.
Children and Adult Services,Head of Adults,Third Party Payments,470101,Purchase of Care,09-Sep-2015,3018910-2262410,"1,865.32",BEACONSFIELD COURT.
Children and Adult Services,Head of Adults,Third Party Payments,470101,Purchase of Care,09-Sep-2015,3018910-2262817,"1,865.32",BEACONSFIELD COURT.
Children and Adult Services,Head of Adults,Third Party Payments,470101,Purchase of Care,09-Sep-2015,3018910-2262868,"1,865.32",BEACONSFIELD COURT.
Children and Adult Services,Head of Adults,Third Party Payments,470101,Purchase of Care,09-Sep-2015,3018910-2262974,"1,865.32",BEACONSFIELD COURT.
Children and Adult Services,Head of Adults,Third Party Payments,470101,Purchase of Care,09-Sep-2015,3018910-2262978,"1,865.32",BEACONSFIELD COURT.
Children and Adult Services,Head of Adults,Third Party Payments,470101,Purchase of Care,09-Sep-2015,3018910-2262979,"1,865.32",BEACONSFIELD COURT.
Children and Adult Services,Head of Adults,Third Party Payments,470101,Purchase of Care,09-Sep-2015,3018910-2263118,"1,865.32",BEACONSFIELD COURT.
Children and Adult Services,Head of Adults,Third Party Payments,470101,Purchase of Care,09-Sep-2015,3018911-2259272,"1,865.32",BEAMISH RESIDENTIAL HOME.
Children and Adult Services,Head of Adults,Third Party Payments,470101,Purchase of Care,09-Sep-2015,3018911-2259544,"1,321.76",BEAMISH RESIDENTIAL HOME.
Children and Adult Services,Head of Adults,Third Party Payments,470101,Purchase of Care,09-Sep-2015,3018911-2259554,"1,300.80",BEAMISH RESIDENTIAL HOME.
Children and Adult Services,Head of Adults,Third Party Payments,470101,Purchase of Care,09-Sep-2015,3018911-2260123,"1,865.32",BEAMISH RESIDENTIAL HOME.
Children and Adult Services,Head of Adults,Third Party Payments,470101,Purchase of Care,09-Sep-2015,3018911-2260143,"1,352.56",BEAMISH RESIDENTIAL HOME.
Children and Adult Services,Head of Adults,Third Party Payments,470101,Purchase of Care,09-Sep-2015,3018911-2261046,"1,308.12",BEAMISH RESIDENTIAL HOME.
Children and Adult Services,Head of Adults,Third Party Payments,470101,Purchase of Care,09-Sep-2015,3018911-2261210,"1,865.32",BEAMISH RESIDENTIAL HOME.
Children and Adult Services,Head of Adults,Third Party Payments,470101,Purchase of Care,09-Sep-2015,3018911-2261643,836.44,BEAMISH RESIDENTIAL HOME.
Children and Adult Services,Head of Adults,Third Party Payments,470101,Purchase of Care,09-Sep-2015,3018911-2261786,"1,223.92",BEAMISH RESIDENTIAL HOME.
Children and Adult Services,Head of Adults,Third Party Payments,470101,Purchase of Care,09-Sep-2015,3018911-2262231,"1,865.32",BEAMISH RESIDENTIAL HOME.
Children and Adult Services,Head of Adults,Third Party Payments,470101,Purchase of Care,09-Sep-2015,3018911-2262286,"1,865.32",BEAMISH RESIDENTIAL HOME.
Children and Adult Services,Head of Adults,Third Party Payments,470101,Purchase of Care,09-Sep-2015,3018911-2262517,932.68,BEAMISH RESIDENTIAL HOME.
Children and Adult Services,Head of Adults,Third Party Payments,470101,Purchase of Care,09-Sep-2015,3018911-2262659,"1,865.32",BEAMISH RESIDENTIAL HOME.
Children and Adult Services,Head of Adults,Third Party Payments,470101,Purchase of Care,09-Sep-2015,3018911-2263045,"1,865.32",BEAMISH RESIDENTIAL HOME.
Children and Adult Services,Head of Adults,Third Party Payments,470101,Purchase of Care,09-Sep-2015,3018911-2263120,"1,865.32",BEAMISH RESIDENTIAL HOME.
Children and Adult Services,Head of Adults,Third Party Payments,470101,Purchase of Care,09-Sep-2015,3018911-2263162,"1,720.79",BEAMISH RESIDENTIAL HOME.
Children and Adult Services,Head of Adults,Third Party Payments,470101,Purchase of Care,09-Sep-2015,3018911-2263699,"1,142.60",BEAMISH RESIDENTIAL HOME.
Children and Adult Services,Head of Adults,Third Party Payments,471101,Purchase of Care,09-Sep-2015,3018912-2242651,"1,733.24",BEAULEY LODGE CARE HOME.
Children and Adult Services,Head of Adults,Third Party Payments,470101,Purchase of Care,09-Sep-2015,3018912-2243505,"1,073.08",BEAULEY LODGE CARE HOME.
Children and Adult Services,Head of Adults,Third Party Payments,471101,Purchase of Care,09-Sep-2015,3018912-2244058,"1,242.44",BEAULEY LODGE CARE HOME.
Children and Adult Services,Head of Adults,Third Party Payments,470101,Purchase of Care,09-Sep-2015,3018912-2244650,"1,659.60",BEAULEY LODGE CARE HOME.
Children and Adult Services,Head of Adults,Third Party Payments,470101,Purchase of Care,09-Sep-2015,3018912-2244669,"1,659.60",BEAULEY LODGE CARE HOME.
Children and Adult Services,Head of Adults,Third Party Payments,470101,Purchase of Care,09-Sep-2015,3018912-2245987,"1,659.60",BEAULEY LODGE CARE HOME.
Children and Adult Services,Head of Adults,Third Party Payments,470101,Purchase of Care,09-Sep-2015,3018912-2246024,"1,659.60",BEAULEY LODGE CARE HOME.
Children and Adult Services,Head of Adults,Third Party Payments,471101,Purchase of Care,09-Sep-2015,3018912-2249754,"1,733.24",BEAULEY LODGE CARE HOME.
Children and Adult Services,Head of Adults,Third Party Payments,470101,Purchase of Care,09-Sep-2015,3018912-2250578,"1,073.08",BEAULEY LODGE CARE HOME.
Children and Adult Services,Head of Adults,Third Party Payments,471101,Purchase of Care,09-Sep-2015,3018912-2251139,"1,242.44",BEAULEY LODGE CARE HOME.
Children and Adult Services,Head of Adults,Third Party Payments,470101,Purchase of Care,09-Sep-2015,3018912-2251777,"1,659.60",BEAULEY LODGE CARE HOME.
Children and Adult Services,Head of Adults,Third Party Payments,470101,Purchase of Care,09-Sep-2015,3018912-2251795,"1,659.60",BEAULEY LODGE CARE HOME.
Children and Adult Services,Head of Adults,Third Party Payments,470101,Purchase of Care,09-Sep-2015,3018912-2253223,"1,659.60",BEAULEY LODGE CARE HOME.
Children and Adult Services,Head of Adults,Third Party Payments,470101,Purchase of Care,09-Sep-2015,3018912-2253281,"1,659.60",BEAULEY LODGE CARE HOME.
Children and Adult Services,Head of Adults,Third Party Payments,471101,Purchase of Care,09-Sep-2015,3018912-2259400,"1,733.24",BEAULEY LODGE CARE HOME.
Children and Adult Services,Head of Adults,Third Party Payments,470101,Purchase of Care,09-Sep-2015,3018912-2260189,"1,073.08",BEAULEY LODGE CARE HOME.
Children and Adult Services,Head of Adults,Third Party Payments,471101,Purchase of Care,09-Sep-2015,3018912-2260698,"1,242.44",BEAULEY LODGE CARE HOME.
Children and Adult Services,Head of Adults,Third Party Payments,470101,Purchase of Care,09-Sep-2015,3018912-2260750,"1,659.60",BEAULEY LODGE CARE HOME.
Children and Adult Services,Head of Adults,Third Party Payments,470101,Purchase of Care,09-Sep-2015,3018912-2261399,"1,659.60",BEAULEY LODGE CARE HOME.
Children and Adult Services,Head of Adults,Third Party Payments,470101,Purchase of Care,09-Sep-2015,3018912-2261416,"1,659.60",BEAULEY LODGE CARE HOME.
Children and Adult Services,Head of Adults,Third Party Payments,470101,Purchase of Care,09-Sep-2015,3018912-2262888,"1,659.60",BEAULEY LODGE CARE HOME.
Children and Adult Services,Head of Adults,Third Party Payments,470101,Purchase of Care,09-Sep-2015,3018913-2259584,"1,970.88",BEDDELL HOUSE.
Children and Adult Services,Head of Adults,Third Party Payments,470101,Purchase of Care,09-Sep-2015,3018913-2259674,"1,970.88",BEDDELL HOUSE.
Children and Adult Services,Head of Adults,Third Party Payments,470101,Purchase of Care,09-Sep-2015,3018913-2259685,"1,970.88",BEDDELL HOUSE.
Children and Adult Services,Head of Adults,Third Party Payments,470101,Purchase of Care,09-Sep-2015,3018913-2260148,"1,970.88",BEDDELL HOUSE.
Children and Adult Services,Head of Adults,Third Party Payments,470101,Purchase of Care,09-Sep-2015,3018913-2260254,"1,970.88",BEDDELL HOUSE.
Children and Adult Services,Head of Adults,Third Party Payments,470101,Purchase of Care,09-Sep-2015,3018913-2260658,"1,970.88",BEDDELL HOUSE.
Children and Adult Services,Head of Adults,Third Party Payments,470101,Purchase of Care,09-Sep-2015,3018913-2260665,"1,970.88",BEDDELL HOUSE.
Children and Adult Services,Head of Adults,Third Party Payments,470101,Purchase of Care,09-Sep-2015,3018913-2260924,"1,970.88",BEDDELL HOUSE.
Children and Adult Services,Head of Adults,Third Party Payments,470101,Purchase of Care,09-Sep-2015,3018913-2261229,"1,970.88",BEDDELL HOUSE.
Children and Adult Services,Head of Adults,Third Party Payments,470101,Purchase of Care,09-Sep-2015,3018913-2261856,563.10,BEDDELL HOUSE.
Children and Adult Services,Head of Adults,Third Party Payments,470101,Purchase of Care,09-Sep-2015,3018913-2262033,"1,970.88",BEDDELL HOUSE.
Children and Adult Services,Head of Adults,Third Party Payments,470101,Purchase of Care,09-Sep-2015,3018913-2262445,"1,970.88",BEDDELL HOUSE.
Children and Adult Services,Head of Adults,Third Party Payments,470101,Purchase of Care,09-Sep-2015,3018913-2262919,"1,970.88",BEDDELL HOUSE.
Children and Adult Services,Head of Adults,Third Party Payments,470101,Purchase of Care,09-Sep-2015,3018913-2263096,"1,970.88",BEDDELL HOUSE.
Children and Adult Services,Head of Adults,Third Party Payments,470101,Purchase of Care,09-Sep-2015,3018913-2263464,774.27,BEDDELL HOUSE.
Children and Adult Services,Head of Adults,Third Party Payments,470101,Purchase of Care,09-Sep-2015,3018914-2260128,"1,824.00",BELLE VUE HEALTHCARE LTD.
Children and Adult Services,Head of Adults,Third Party Payments,470101,Purchase of Care,09-Sep-2015,3018915-2259205,"1,548.52",BENAMY HOUSE.
Children and Adult Services,Head of Adults,Third Party Payments,470101,Purchase of Care,09-Sep-2015,3018915-2259209,"1,548.52",BENAMY HOUSE.
Children and Adult Services,Head of Adults,Third Party Payments,470101,Purchase of Care,09-Sep-2015,3018915-2259270,"1,870.32",BENAMY HOUSE.
Children and Adult Services,Head of Adults,Third Party Payments,470101,Purchase of Care,09-Sep-2015,3018915-2259283,"1,870.32",BENAMY HOUSE.
Children and Adult Services,Head of Adults,Third Party Payments,470101,Purchase of Care,09-Sep-2015,3018915-2259354,"1,548.52",BENAMY HOUSE.
Children and Adult Services,Head of Adults,Third Party Payments,474101,Purchase of Care,09-Sep-2015,3018916-2261689,949.60,BENFIELD HALL RESIDENTIAL CARE.
Children and Adult Services,Head of Adults,Third Party Payments,474101,Purchase of Care,09-Sep-2015,3018916-2262585,949.60,BENFIELD HALL RESIDENTIAL CARE.
Children and Adult Services,Head of Adults,Third Party Payments,474101,Purchase of Care,09-Sep-2015,3018916-2262587,949.60,BENFIELD HALL RESIDENTIAL CARE.
Children and Adult Services,Head of Adults,Third Party Payments,474101,Purchase of Care,09-Sep-2015,3018916-2262589,"1,899.16",BENFIELD HALL RESIDENTIAL CARE.
Children and Adult Services,Head of Adults,Third Party Payments,474101,Purchase of Care,09-Sep-2015,3018916-2262591,949.60,BENFIELD HALL RESIDENTIAL CARE.
Children and Adult Services,Head of Adults,Third Party Payments,474101,Purchase of Care,09-Sep-2015,3018916-2262593,"1,393.96",BENFIELD HALL RESIDENTIAL CARE.
Children and Adult Services,Head of Adults,Third Party Payments,474101,Purchase of Care,09-Sep-2015,3018916-2262595,949.60,BENFIELD HALL RESIDENTIAL CARE.
Children and Adult Services,Head of Adults,Third Party Payments,474101,Purchase of Care,09-Sep-2015,3018916-2262597,"1,899.16",BENFIELD HALL RESIDENTIAL CARE.
Children and Adult Services,Head of Adults,Third Party Payments,470101,Purchase of Care,09-Sep-2015,3018916-2263029,"1,808.20",BENFIELD HALL RESIDENTIAL CARE.
Children and Adult Services,Head of Adults,Third Party Payments,478101,Purchase of Care,09-Sep-2015,3018917-2260306,"1,232.44",REDACTED - PAYMENT TO INDIVIDUAL
Children and Adult Services,Head of Adults,Third Party Payments,478101,Purchase of Care,09-Sep-2015,3018917-2261400,"1,232.44",REDACTED - PAYMENT TO INDIVIDUAL
Children and Adult Services,Head of Adults,Third Party Payments,470101,Purchase of Care,09-Sep-2015,3018918-2259373,"1,865.32",BISHOPSGATE LODGE.
Children and Adult Services,Head of Adults,Third Party Payments,474101,Purchase of Care,09-Sep-2015,3018918-2259693,"1,958.48",BISHOPSGATE LODGE.
Children and Adult Services,Head of Adults,Third Party Payments,470101,Purchase of Care,09-Sep-2015,3018918-2259847,"1,865.32",BISHOPSGATE LODGE.
Children and Adult Services,Head of Adults,Third Party Payments,470101,Purchase of Care,09-Sep-2015,3018918-2259981,"1,865.32",BISHOPSGATE LODGE.
Children and Adult Services,Head of Adults,Third Party Payments,470101,Purchase of Care,09-Sep-2015,3018918-2260068,"1,865.32",BISHOPSGATE LODGE.
Children and Adult Services,Head of Adults,Third Party Payments,474101,Purchase of Care,09-Sep-2015,3018918-2260310,"1,958.48",BISHOPSGATE LODGE.
Children and Adult Services,Head of Adults,Third Party Payments,474101,Purchase of Care,09-Sep-2015,3018918-2260336,"1,958.48",BISHOPSGATE LODGE.
Children and Adult Services,Head of Adults,Third Party Payments,470101,Purchase of Care,09-Sep-2015,3018918-2260393,"1,865.32",BISHOPSGATE LODGE.
Children and Adult Services,Head of Adults,Third Party Payments,470101,Purchase of Care,09-Sep-2015,3018918-2260504,"1,865.32",BISHOPSGATE LODGE.
Children and Adult Services,Head of Adults,Third Party Payments,471101,Purchase of Care,09-Sep-2015,3018918-2260554,"1,939.12",BISHOPSGATE LODGE.
Children and Adult Services,Head of Adults,Third Party Payments,470101,Purchase of Care,09-Sep-2015,3018918-2260730,"1,865.32",BISHOPSGATE LODGE.
Children and Adult Services,Head of Adults,Third Party Payments,471101,Purchase of Care,09-Sep-2015,3018918-2260793,"1,939.12",BISHOPSGATE LODGE.
Children and Adult Services,Head of Adults,Debtors,930135,Debtor Residential Care - IC+ Rehabilitation,09-Sep-2015,3018918-2260910,"1,104.16",BISHOPSGATE LODGE.
Children and Adult Services,Head of Adults,Third Party Payments,470101,Purchase of Care,09-Sep-2015,3018918-2260938,"1,865.32",BISHOPSGATE LODGE.
Children and Adult Services,Head of Adults,Third Party Payments,470101,Purchase of Care,09-Sep-2015,3018918-2260973,"1,865.32",BISHOPSGATE LODGE.
Children and Adult Services,Head of Adults,Third Party Payments,474101,Purchase of Care,09-Sep-2015,3018918-2261050,"1,958.48",BISHOPSGATE LODGE.
Children and Adult Services,Head of Adults,Third Party Payments,471101,Purchase of Care,09-Sep-2015,3018918-2261073,"1,939.12",BISHOPSGATE LODGE.
Children and Adult Services,Head of Adults,Third Party Payments,474101,Purchase of Care,09-Sep-2015,3018918-2261157,"1,958.48",BISHOPSGATE LODGE.
Children and Adult Services,Head of Adults,Third Party Payments,470101,Purchase of Care,09-Sep-2015,3018918-2261159,"1,865.32",BISHOPSGATE LODGE.
Children and Adult Services,Head of Adults,Third Party Payments,470102,Purchase of Care,09-Sep-2015,3018918-2261307,966.14,BISHOPSGATE LODGE.
Children and Adult Services,Head of Adults,Debtors,930135,Debtor Residential Care - IC+ Rehabilitation,09-Sep-2015,3018918-2261418,966.14,BISHOPSGATE LODGE.
Children and Adult Services,Head of Adults,Third Party Payments,471101,Purchase of Care,09-Sep-2015,3018918-2261440,"1,939.12",BISHOPSGATE LODGE.
Children and Adult Services,Head of Adults,Third Party Payments,470101,Purchase of Care,09-Sep-2015,3018918-2261588,"1,865.32",BISHOPSGATE LODGE.
Children and Adult Services,Head of Adults,Third Party Payments,470101,Purchase of Care,09-Sep-2015,3018918-2261673,"1,865.32",BISHOPSGATE LODGE.
Children and Adult Services,Head of Adults,Debtors,930135,Debtor Residential Care - IC+ Rehabilitation,09-Sep-2015,3018918-2262012,"1,794.26",BISHOPSGATE LODGE.
Children and Adult Services,Head of Adults,Third Party Payments,470101,Purchase of Care,09-Sep-2015,3018918-2262100,"1,865.32",BISHOPSGATE LODGE.
Children and Adult Services,Head of Adults,Third Party Payments,474101,Purchase of Care,09-Sep-2015,3018918-2262175,"1,958.48",BISHOPSGATE LODGE.
Children and Adult Services,Head of Adults,Third Party Payments,470101,Purchase of Care,09-Sep-2015,3018918-2262291,"1,865.32",BISHOPSGATE LODGE.
Children and Adult Services,Head of Adults,Third Party Payments,470101,Purchase of Care,09-Sep-2015,3018918-2262376,"1,865.32",BISHOPSGATE LODGE.
Children and Adult Services,Head of Adults,Third Party Payments,470101,Purchase of Care,09-Sep-2015,3018918-2262503,"1,865.32",BISHOPSGATE LODGE.
Children and Adult Services,Head of Adults,Third Party Payments,470101,Purchase of Care,09-Sep-2015,3018918-2262560,"1,865.32",BISHOPSGATE LODGE.
Children and Adult Services,Head of Adults,Third Party Payments,470101,Purchase of Care,09-Sep-2015,3018918-2262985,"1,865.32",BISHOPSGATE LODGE.
Children and Adult Services,Head of Adults,Third Party Payments,470101,Purchase of Care,09-Sep-2015,3018918-2263025,"1,865.32",BISHOPSGATE LODGE.
Children and Adult Services,Head of Adults,Third Party Payments,471101,Purchase of Care,09-Sep-2015,3018918-2263089,"1,939.12",BISHOPSGATE LODGE.
Children and Adult Services,Head of Adults,Third Party Payments,474101,Purchase of Care,09-Sep-2015,3018918-2263434,559.56,BISHOPSGATE LODGE.
Children and Adult Services,Head of Adults,Third Party Payments,474101,Purchase of Care,09-Sep-2015,3018918-2263546,"1,119.12",BISHOPSGATE LODGE.
Children and Adult Services,Head of Adults,Third Party Payments,470101,Purchase of Care,09-Sep-2015,3018919-2261884,"2,600.00",BONHOMIE HOUSE.
Children and Adult Services,Head of Adults,Third Party Payments,470101,Purchase of Care,09-Sep-2015,3018920-2259441,"3,672.00",BOWES COURT CARE HOME.
Children and Adult Services,Head of Adults,Third Party Payments,474101,Purchase of Care,09-Sep-2015,3018920-2259494,"4,800.00",BOWES COURT CARE HOME.
Children and Adult Services,Head of Adults,Third Party Payments,474101,Purchase of Care,09-Sep-2015,3018920-2259517,"2,400.00",BOWES COURT CARE HOME.
Children and Adult Services,Head of Adults,Third Party Payments,470101,Purchase of Care,09-Sep-2015,3018920-2260464,"2,300.00",BOWES COURT CARE HOME.
Children and Adult Services,Head of Adults,Third Party Payments,470101,Purchase of Care,09-Sep-2015,3018920-2260465,"5,082.00",BOWES COURT CARE HOME.
Children and Adult Services,Head of Adults,Third Party Payments,470101,Purchase of Care,09-Sep-2015,3018920-2260625,"2,222.00",BOWES COURT CARE HOME.
Children and Adult Services,Head of Adults,Third Party Payments,470101,Purchase of Care,09-Sep-2015,3018920-2260626,"1,008.00",BOWES COURT CARE HOME.
Children and Adult Services,Head of Adults,Third Party Payments,474101,Purchase of Care,09-Sep-2015,3018920-2260897,"1,701.64",BOWES COURT CARE HOME.
Children and Adult Services,Head of Adults,Third Party Payments,474101,Purchase of Care,09-Sep-2015,3018920-2262352,"2,500.00",BOWES COURT CARE HOME.
Children and Adult Services,Head of Adults,Third Party Payments,474101,Purchase of Care,09-Sep-2015,3018920-2262441,"2,525.00",BOWES COURT CARE HOME.
Children and Adult Services,Head of Adults,Third Party Payments,474101,Purchase of Care,09-Sep-2015,3018920-2263180,"2,500.00",BOWES COURT CARE HOME.
Children and Adult Services,Head of Adults,Third Party Payments,470101,Purchase of Care,09-Sep-2015,3018921-2259444,"2,033.04",BRANCEPETH COURT.
Children and Adult Services,Head of Adults,Third Party Payments,470101,Purchase of Care,09-Sep-2015,3018921-2259445,"2,033.04",BRANCEPETH COURT.
Children and Adult Services,Head of Adults,Third Party Payments,470101,Purchase of Care,09-Sep-2015,3018921-2259446,"2,033.04",BRANCEPETH COURT.
Children and Adult Services,Head of Adults,Third Party Payments,470101,Purchase of Care,09-Sep-2015,3018921-2259447,"2,033.04",BRANCEPETH COURT.
Children and Adult Services,Head of Adults,Third Party Payments,474101,Purchase of Care,09-Sep-2015,3018921-2259602,"2,064.08",BRANCEPETH COURT.
Children and Adult Services,Head of Adults,Third Party Payments,470101,Purchase of Care,09-Sep-2015,3018921-2259676,"2,033.04",BRANCEPETH COURT.
Children and Adult Services,Head of Adults,Third Party Payments,474101,Purchase of Care,09-Sep-2015,3018921-2259726,"2,064.08",BRANCEPETH COURT.
Children and Adult Services,Head of Adults,Third Party Payments,470101,Purchase of Care,09-Sep-2015,3018921-2259849,"2,033.04",BRANCEPETH COURT.
Children and Adult Services,Head of Adults,Third Party Payments,470101,Purchase of Care,09-Sep-2015,3018921-2260761,"1,970.88",BRANCEPETH COURT.
Children and Adult Services,Head of Adults,Third Party Payments,474101,Purchase of Care,09-Sep-2015,3018921-2260988,"2,064.08",BRANCEPETH COURT.
Children and Adult Services,Head of Adults,Third Party Payments,470101,Purchase of Care,09-Sep-2015,3018921-2261009,"1,970.88",BRANCEPETH COURT.
Children and Adult Services,Head of Adults,Third Party Payments,470101,Purchase of Care,09-Sep-2015,3018921-2261502,"1,970.88",BRANCEPETH COURT.
Children and Adult Services,Head of Adults,Third Party Payments,474101,Purchase of Care,09-Sep-2015,3018921-2261733,"2,064.08",BRANCEPETH COURT.
Children and Adult Services,Head of Adults,Third Party Payments,470101,Purchase of Care,09-Sep-2015,3018921-2262105,"2,033.04",BRANCEPETH COURT.
Children and Adult Services,Head of Adults,Third Party Payments,470101,Purchase of Care,09-Sep-2015,3018921-2262205,"1,970.88",BRANCEPETH COURT.
Children and Adult Services,Head of Adults,Third Party Payments,470101,Purchase of Care,09-Sep-2015,3018921-2262239,"2,033.04",BRANCEPETH COURT.
Children and Adult Services,Head of Adults,Third Party Payments,470101,Purchase of Care,09-Sep-2015,3018921-2262251,"1,970.88",BRANCEPETH COURT.
Children and Adult Services,Head of Adults,Third Party Payments,470101,Purchase of Care,09-Sep-2015,3018921-2262391,"2,033.04",BRANCEPETH COURT.
Children and Adult Services,Head of Adults,Third Party Payments,474101,Purchase of Care,09-Sep-2015,3018921-2262814,"2,241.56",BRANCEPETH COURT.
Children and Adult Services,Head of Adults,Third Party Payments,470101,Purchase of Care,09-Sep-2015,3018921-2263100,"1,970.88",BRANCEPETH COURT.
Children and Adult Services,Head of Adults,Third Party Payments,470101,Purchase of Care,09-Sep-2015,3018921-2263102,"1,970.88",BRANCEPETH COURT.
Children and Adult Services,Head of Adults,Third Party Payments,470101,Purchase of Care,09-Sep-2015,3018922-2259100,"2,157.36",BRIDGEWOOD TRUST LTD.
Children and Adult Services,Head of Adults,Third Party Payments,470101,Purchase of Care,09-Sep-2015,3018923-2259304,"1,465.68",BROOMHOUSE CARE LTD.
Children and Adult Services,Head of Adults,Third Party Payments,471101,Purchase of Care,09-Sep-2015,3018923-2259806,"1,086.96",BROOMHOUSE CARE LTD.
Children and Adult Services,Head of Adults,Third Party Payments,470101,Purchase of Care,09-Sep-2015,3018923-2259962,"1,465.68",BROOMHOUSE CARE LTD.
Children and Adult Services,Head of Adults,Third Party Payments,470101,Purchase of Care,09-Sep-2015,3018923-2260221,"1,465.68",BROOMHOUSE CARE LTD.
Children and Adult Services,Head of Adults,Third Party Payments,471101,Purchase of Care,09-Sep-2015,3018923-2260267,"1,590.44",BROOMHOUSE CARE LTD.
Children and Adult Services,Head of Adults,Third Party Payments,470101,Purchase of Care,09-Sep-2015,3018923-2260742,"1,970.88",BROOMHOUSE CARE LTD.
Children and Adult Services,Head of Adults,Third Party Payments,471101,Purchase of Care,09-Sep-2015,3018923-2261086,"1,195.74",BROOMHOUSE CARE LTD.
Children and Adult Services,Head of Adults,Third Party Payments,470101,Purchase of Care,09-Sep-2015,3018923-2261322,"1,226.08",BROOMHOUSE CARE LTD.
Children and Adult Services,Head of Adults,Third Party Payments,471101,Purchase of Care,09-Sep-2015,3018923-2261613,"2,043.64",BROOMHOUSE CARE LTD.
Children and Adult Services,Head of Adults,Third Party Payments,471101,Purchase of Care,09-Sep-2015,3018923-2261739,734.97,BROOMHOUSE CARE LTD.
Children and Adult Services,Head of Adults,Third Party Payments,471101,Purchase of Care,09-Sep-2015,3018923-2262051,"1,224.16",BROOMHOUSE CARE LTD.
Children and Adult Services,Head of Adults,Third Party Payments,470101,Purchase of Care,09-Sep-2015,3018923-2262086,"1,354.00",BROOMHOUSE CARE LTD.
Children and Adult Services,Head of Adults,Third Party Payments,471101,Purchase of Care,09-Sep-2015,3018923-2262087,"2,043.64",BROOMHOUSE CARE LTD.
Children and Adult Services,Head of Adults,Third Party Payments,471101,Purchase of Care,09-Sep-2015,3018923-2262272,"2,043.64",BROOMHOUSE CARE LTD.
Children and Adult Services,Head of Adults,Third Party Payments,471101,Purchase of Care,09-Sep-2015,3018923-2262855,"2,043.64",BROOMHOUSE CARE LTD.
Children and Adult Services,Head of Adults,Third Party Payments,471101,Purchase of Care,09-Sep-2015,3018923-2262989,"2,043.64",BROOMHOUSE CARE LTD.
Children and Adult Services,Head of Adults,Third Party Payments,474101,Purchase of Care,09-Sep-2015,3018924-2259122,"1,950.52",BUPA CARE SERVICES.
Children and Adult Services,Head of Adults,Third Party Payments,474101,Purchase of Care,09-Sep-2015,3018924-2259130,"1,628.72",BUPA CARE SERVICES.
Children and Adult Services,Head of Adults,Third Party Payments,474101,Purchase of Care,09-Sep-2015,3018925-2260012,"1,715.08",BURLINGTON CARE LTD T/A MOORLANDS CARE HOME.
Children and Adult Services,Head of Adults,Third Party Payments,478101,Purchase of Care,09-Sep-2015,3018926-2260418,"1,371.04",REDACTED - PAYMENT TO INDIVIDUAL
Children and Adult Services,Head of Adults,Third Party Payments,470101,Purchase of Care,09-Sep-2015,3018927-2260085,"1,824.00",CARE UK..
Children and Adult Services,Head of Adults,Third Party Payments,474101,Purchase of Care,09-Sep-2015,3018927-2261427,"1,824.00",CARE UK..
Children and Adult Services,Head of Adults,Third Party Payments,471101,Purchase of Care,09-Sep-2015,3018928-2261497,"1,678.40",CARE UK..
Children and Adult Services,Head of Adults,Third Party Payments,471101,Purchase of Care,09-Sep-2015,3018928-2262491,"1,678.40",CARE UK..
Children and Adult Services,Head of Adults,Third Party Payments,474101,Purchase of Care,09-Sep-2015,3018929-2261752,"2,300.00",CARELINE LIFESTYLES LTD.
Children and Adult Services,Head of Adults,Third Party Payments,474101,Purchase of Care,09-Sep-2015,3018929-2261865,"5,400.00",CARELINE LIFESTYLES LTD.
Children and Adult Services,Head of Adults,Third Party Payments,474101,Purchase of Care,09-Sep-2015,3018929-2263092,"3,908.00",CARELINE LIFESTYLES LTD.
